Workbook

Sheet ENERO ok
C2: HECHOS PUNIBLES MAS RESALTANTES,DENUNCIADOS Y ACLARADOS EN TODO EL PAÍS POR ZONAS POLICIALES. ENERO 2020
C4: HECHOS PUNIBLES | D4: DIRECCIONES POLICIALES | X4: SUB TOTAL
D5: Asuncion | F5: Central | H5: Cordillera | J5: Amambay | L5: Concepcion | N5: Alto Py. | P5: San Pedro | R5: Caaguazu | T5: Caazapa | V5: Guaira
D6: D | E6: A | F6: D | G6: A | H6: D | I6: A | J6: D | K6: A | L6: D | M6: A | N6: D | O6: A | P6: D | Q6: A | R6: D | S6: A | T6: D | U6: A | V6: D | W6: A | X6: D | Y6: A
C7: ABIGEATO | F7: 5 | H7: 4 | J7: 1 | L7: 1 | M7: 1 | N7: 1 | P7: 4 | Q7: 1 | R7: 8 | S7: 1 | T7: 5 | U7: 2 | V7: 1 | W7: 1 | X7: =(D7+F7+H7+J7+L7+N7+P7+R7+T7+V7) -> 30 | Y7: =(E7+G7+I7+K7+M7+O7+Q7+S7+U7+W7) -> 6
C8: COACCION SEXUAL | D8: 6 | E8: 4 | F8: 17 | G8: 11 | H8: 4 | I8: 1 | J8: 1 | L8: 3 | M8: 3 | R8: 4 | X8: =(D8+F8+H8+J8+L8+N8+P8+R8+T8+V8) -> 35 | Y8: =(E8+G8+I8+K8+M8+O8+Q8+S8+U8+W8) -> 19
C9: HOMICIDIO CULPOSO EN ACC DE TTO. | D9: 4 | E9: 4 | F9: 10 | G9: 9 | H9: 2 | I9: 1 | J9: 1 | L9: 4 | M9: 3 | P9: 9 | Q9: 9 | R9: 11 | S9: 9 | T9: 2 | U9: 2 | V9: 3 | W9: 1 | X9: 46 | Y9: 38
C10: HOMICIDIO DOLOSO | D10: 1 | E10: 1 | F10: 8 | G10: 3 | J10: 10 | K10: 1 | L10: 3 | M10: 3 | N10: 1 | P10: 2 | R10: 1 | S10: 1 | T10: 2 | V10: 2 | W10: 1 | X10: 30 | Y10: 10
C11: HURTO | D11: 26 | E11: 18 | F11: 64 | G11: 36 | H11: 11 | I11: 3 | J11: 6 | K11: 3 | L11: 4 | M11: 2 | N11: 1 | P11: 3 | Q11: 1 | R11: 11 | S11: 5 | T11: 1 | V11: 5 | W11: 4 | X11: =(D11+F11+H11+J11+L11+N11+P11+R11+T11+V11) -> 132 | Y11: =(E11+G11+I11+K11+M11+O11+Q11+S11+U11+W11) -> 72
C12: HURTO AGRAVADO | D12: 12 | E12: 8 | F12: 35 | G12: 13 | H12: 4 | J12: 1 | L12: 4 | M12: 2 | P12: 3 | Q12: 1 | R12: 7 | S12: 2 | T12: 4 | V12: 5 | W12: 2 | X12: =(D12+F12+H12+J12+L12+N12+P12+R12+T12+V12) -> 75 | Y12: =(E12+G12+I12+K12+M12+O12+Q12+S12+U12+W12) -> 28
C13: LESION CULPOSA EN ACC. DE TTO. | D13: 16 | E13: 16 | F13: 56 | G13: 56 | H13: 23 | I13: 22 | J13: 7 | K13: 5 | L13: 4 | M13: 3 | P13: 13 | Q13: 13 | R13: 23 | S13: 20 | T13: 3 | U13: 2 | V13: 8 | W13: 6 | X13: 153 | Y13: 143
C14: LESION | D14: 19 | E14: 9 | F14: 45 | G14: 24 | H14: 7 | I14: 5 | J14: 19 | K14: 3 | L14: 10 | M14: 5 | N14: 1 | O14: 1 | P14: 7 | Q14: 1 | R14: 8 | S14: 4 | T14: 1 | U14: 1 | V14: 1 | X14: 118 | Y14: 53
C15: ROBO DE OBJETOS | D15: 10 | E15: 6 | F15: 19 | G15: 11 | H15: 4 | I15: 1 | J15: 2 | P15: 2 | Q15: 2 | R15: 2 | S15: 2 | X15: 39 | Y15: 22
C16: ROBO AGRAVADO DE OBJETOS | D16: 9 | F16: 49 | G16: 13 | H16: 4 | J16: 6 | K16: 2 | L16: 8 | M16: 2 | P16: 5 | Q16: 2 | R16: 7 | T16: 8 | V16: 2 | X16: 98 | Y16: 19
C17: ROBO DE VEHICULOS | D17: 26 | F17: 30 | J17: 1 | X17: 57 | Y17: 0
C18: ROBO AGRAVADO DE VEHICULOS | F18: 1 | X18: 1 | Y18: 0
C19: ROBO DE MOTOCICLETAS | D19: 45 | E19: 2 | F19: 86 | G19: 4 | H19: 11 | I19: 1 | L19: 12 | M19: 1 | N19: 1 | O19: 1 | R19: 8 | T19: 1 | V19: 15 | W19: 5 | X19: 179 | Y19: 14
C20: ROBO AGRAVADO DE MOTOCICLETAS | D20: 1 | F20: 14 | G20: 2 | L20: 10 | M20: 1 | R20: 1 | S20: 1 | T20: 2 | U20: 1 | V20: 1 | X20: 29 | Y20: 5
C21: TOTAL | D21: =SUM(D7:D20) -> 175 | E21: 68 | F21: 439 | G21: 182 | H21: 74 | I21: 34 | J21: 55 | K21: 14 | L21: 63 | M21: 26 | N21: 5 | O21: 2 | P21: 48 | Q21: 30 | R21: 91 | S21: 45 | T21: 29 | U21: 8 | V21: 43 | W21: 20 | X21: 1022 | Y21: 429
C22: PORCENTAJE DE ACLARADOS | D22: =+(E21/D21) -> 0.3885714286 | F22: =+(G21/F21) -> 0.4145785877 | H22: =+(I21/H21) -> 0.4594594595 | J22: =+(K21/J21) -> 0.2545454545 | L22: =+(M21/L21) -> 0.4126984127 | N22: =+(O21/N21) -> 0.4 | P22: =+(Q21/P21) -> 0.625 | R22: =+(S21/R21) -> 0.4945054945 | T22: =+(U21/T21) -> 0.275862069 | V22: =+(W21/V21) -> 0.4651162791 | X22: =+(Y21/X21) -> 0.4197651663
C24: HECHOS PUNIBLES | D24: TRANSPORTE | F24: DIRECCIONES POLICIALES | V24: TOTAL
F25: Alto Paraná | H25: Itapua | J25: Canindeyú | L25: Misiones | N25: Paraguari | P25: Ñeembucu | R25: Boqueron | T25: Pte Hayes
D26: D | E26: A | F26: D | G26: A | H26: D | I26: A | J26: D | K26: A | L26: D | M26: A | N26: D | O26: A | P26: D | Q26: A | R26: D | S26: A | T26: D | U26: A | V26: D | W26: A
C27: ABIGEATO | D27: =(X7) -> 30 | E27: =(Y7) -> 6 | F27: 2 | G27: 1 | H27: 7 | I27: 1 | J27: 1 | N27: 3 | O27: 2 | P27: 7 | Q27: 2 | T27: 1 | V27: =(D27+F27+H27+J27+L27+N27+P27+R27+T27) -> 51 | W27: =(E27+G27+I27+K27+M27+O27+Q27+S27+U27) -> 12 | AC27: =(W27/V27) -> 0.2352941176
C28: COACCION SEXUAL | D28: 35 | E28: 19 | F28: 7 | G28: 3 | H28: 6 | I28: 2 | L28: 1 | M28: 1 | N28: 3 | O28: 1 | P28: 1 | Q28: 1 | R28: 1 | S28: 1 | T28: 1 | U28: 1 | V28: =(D28+F28+H28+J28+L28+N28+P28+R28+T28) -> 55 | W28: =(E28+G28+I28+K28+M28+O28+Q28+S28+U28) -> 29 | AC28: =(W28/V28) -> 0.5272727273
C29: HOMICIDIO CULPOSO EN ACC DE TTO. | D29: 46 | E29: 38 | F29: 4 | G29: 4 | H29: 2 | I29: 2 | L29: 4 | M29: 4 | N29: 6 | O29: 6 | P29: 1 | Q29: 1 | R29: 1 | S29: 1 | T29: 2 | U29: 2 | V29: 66 | W29: =(E29+G29+I29+K29+M29+O29+Q29+S29+U29) -> 58 | AC29: 0.8787878788
C30: HOMICIDIO DOLOSO | D30: 30 | E30: 10 | F30: 8 | G30: 3 | H30: 4 | I30: 2 | L30: 1 | V30: 43 | W30: 15 | AC30: 0.3488372093
C31: HURTO | D31: 132 | E31: 72 | F31: 22 | G31: 9 | H31: 19 | I31: 6 | L31: 2 | N31: 4 | P31: 2 | T31: 2 | U31: 1 | V31: =(D31+F31+H31+J31+L31+N31+P31+R31+T31) -> 183 | W31: =(E31+G31+I31+K31+M31+O31+Q31+S31+U31) -> 88 | AC31: 0.4808743169
C32: HURTO AGRAVADO | D32: 75 | E32: 28 | F32: 7 | G32: 2 | H32: 3 | N32: 8 | O32: 1 | P32: 3 | V32: =(D32+F32+H32+J32+L32+N32+P32+R32+T32) -> 96 | W32: =(E32+G32+I32+K32+M32+O32+Q32+S32+U32) -> 31 | AC32: 0.3229166667
C33: LESION CULPOSA EN ACC. DE TTO. | D33: 153 | E33: 143 | F33: 29 | G33: 24 | H33: 9 | I33: 8 | L33: 6 | M33: 6 | N33: 21 | O33: 20 | P33: 7 | Q33: 6 | T33: 3 | U33: 3 | V33: 228 | W33: 210 | AC33: 0.9210526316
C34: LESION | D34: 118 | E34: 53 | F34: 11 | G34: 7 | H34: 7 | I34: 5 | J34: 1 | L34: 5 | M34: 4 | N34: 2 | P34: 5 | Q34: 3 | R34: 2 | S34: 2 | T34: 2 | U34: 1 | V34: 153 | W34: 75 | AC34: 0.4901960784
C35: ROBO DE OBJETOS | D35: 39 | E35: 22 | F35: 11 | G35: 3 | H35: 2 | I35: 1 | T35: 1 | U35: 1 | V35: 53 | W35: 27 | AC35: 0.5094339623
C36: ROBO AGRAVADO DE OBJETOS | D36: 98 | E36: 19 | F36: 16 | G36: 5 | H36: 11 | I36: 3 | J36: 2 | N36: 3 | O36: 1 | T36: 2 | U36: 2 | V36: 132 | W36: 30 | AC36: 0.2272727273
C37: ROBO DE VEHICULOS | D37: 57 | E37: 0 | F37: 4 | H37: 1 | I37: 1 | N37: 1 | V37: 63 | W37: 1 | AC37: 0.01587301587
C38: ROBO AGRAVADO DE VEHICULOS | D38: 1 | E38: 0 | H38: 1 | V38: 2 | W38: 0 | AC38: 0
C39: ROBO DE MOTOCICLETAS | D39: 179 | E39: 14 | F39: 9 | H39: 24 | N39: 11 | O39: 1 | P39: 2 | R39: 1 | T39: 8 | U39: 4 | V39: 234 | W39: 19 | AC39: 0.0811965812
C40: ROBO AGRAVADO DE MOTOCICLETAS | D40: 29 | E40: 5 | F40: 2 | G40: 1 | J40: 1 | T40: 1 | V40: 33 | W40: 6 | AC40: 0.1818181818
C41: TOTAL | D41: =+(D21+F21+H21+J21+L21+N21+P21+R21+T21+V21) -> 1022 | E41: =+(E21+G21+I21+K21+M21+O21+Q21+S21+U21+W21) -> 429 | F41: =SUM(F27:F40) -> 132 | G41: =SUM(G27:G40) -> 62 | H41: 96 | I41: 31 | J41: 5 | K41: 0 | L41: 19 | M41: 15 | N41: 62 | O41: 32 | P41: 28 | Q41: 13 | R41: 5 | S41: 4 | T41: 23 | U41: 15 | V41: 1392 | W41: 601
C42: PORCENTAJE DE ACLARADOS | D42: =+(E41/D41) -> 0.4197651663 | F42: =+(G41/F41) -> 0.4696969697 | H42: =+(I41/H41) -> 0.3229166667 | J42: =+(K41/J41) -> 0 | L42: =+(M41/L41) -> 0.7894736842 | N42: =+(O41/N41) -> 0.5161290323 | P42: =+(Q41/P41) -> 0.4642857143 | R42: =+(S41/R41) -> 0.8 | T42: =+(U41/T41) -> 0.652173913 | V42: =+(W41/V41) -> 0.4317528736
C44: FUENTE: ELABORADO EN EL DPTO. DE ESTADISTICA EN BASE A DATOS PROPORCIONADOS POR LA DIRECCION GENERAL. DE PREVENCION Y SEGURIDAD.

Sheet GRAF 1
B1: INFORME ESTADISTICO MENSUAL 3 | Q1: POLICIA NACIONAL - DPTO. DE ESTADISTICA
D5: HECHOS PUNIBLES MAS RESALTANTES, DENUNCIADOS EN TODO EL PAÍS. ENERO 2020
T7: DENUNCIADOS
S8: ABIGEATO | T8: 51
S9: COACCION SEXUAL | T9: 55
S10: HOMICIDIO CULPOSO EN ACC DE TTO. | T10: 66
S11: HOMICIDIO DOLOSO | T11: 43
S12: HURTO | T12: 183
S13: HURTO AGRAVADO | T13: 96
S14: LESION CULPOSA EN ACC. DE TTO. | T14: 228
S15: LESION | T15: 153
S16: ROBO DE OBJETOS | T16: 53
S17: ROBO AGRAVADO DE OBJETOS | T17: 132
S18: ROBO DE VEHICULOS | T18: 63
S19: ROBO AGRAVADO DE VEHICULOS | T19: 2
S20: ROBO DE MOTOCICLETAS | T20: 234
S21: ROBO AGRAVADO DE MOTOCICLETAS | T21: 33
T22: =SUM(T8:T21) -> 1392
D41: FUENTE: ELABORADO EN EL DPTO. DE ESTADISTICA EN BASE A DATOS PROPORCIONADOS POR LA DIRECCION GENERAL. DE ORDEN Y SEGURIDAD.

Sheet FEBRE
A1: INFORME ESTADISTICO MENSUAL 4 | AA1: POLICIA NACIONAL - DPTO. DE ESTADISTICA
C2: HECHOS PUNIBLES MAS RESALTANTES,DENUNCIADOS Y ACLARADOS EN TODO EL PAÍS POR ZONAS POLICIALES. FEBRERO 2020
F3: OK
C4: HECHOS PUNIBLES | D4: DIRECCIONES POLICIALES | X4: SUB TOTAL
D5: Asuncion | F5: Central | H5: Cordillera | J5: Amambay | L5: Concepcion | N5: Alto Py. | P5: San Pedro | R5: Caaguazu | T5: Caazapa | V5: Guaira
D6: D | E6: A | F6: D | G6: A | H6: D | I6: A | J6: D | K6: A | L6: D | M6: A | N6: D | O6: A | P6: D | Q6: A | R6: D | S6: A | T6: D | U6: A | V6: D | W6: A | X6: D | Y6: A
C7: ABIGEATO | F7: 2 | H7: 4 | I7: 1 | L7: 2 | N7: 1 | R7: 3 | T7: 3 | V7: 3 | W7: 1 | X7: =(D7+F7+H7+J7+L7+N7+P7+R7+T7+V7) -> 18 | Y7: =(E7+G7+I7+K7+M7+O7+Q7+S7+U7+W7) -> 2
C8: COACCION SEXUAL | D8: 5 | E8: 3 | F8: 7 | G8: 4 | J8: 2 | K8: 1 | R8: 2 | T8: 4 | U8: 3 | V8: 1 | X8: =(D8+F8+H8+J8+L8+N8+P8+R8+T8+V8) -> 21 | Y8: 11
C9: HOMICIDIO CULPOSO EN ACC DE TTO. | D9: 4 | E9: 4 | F9: 16 | G9: 13 | H9: 3 | I9: 3 | J9: 4 | K9: 4 | L9: 2 | M9: 2 | P9: 8 | Q9: 7 | R9: 6 | S9: 6 | T9: 2 | U9: 2 | X9: 45 | Y9: 41
C10: HOMICIDIO DOLOSO | D10: 2 | E10: 1 | F10: 3 | G10: 2 | J10: 5 | K10: 1 | L10: 2 | M10: 1 | P10: 2 | Q10: 1 | R10: 1 | T10: 1 | V10: 1 | X10: 17 | Y10: 6
C11: HURTO | D11: 18 | E11: 13 | F11: 49 | G11: 26 | H11: 7 | I11: 1 | J11: 3 | K11: 2 | L11: 2 | M11: 1 | N11: 1 | P11: 3 | Q11: 3 | R11: 6 | S11: 2 | T11: 3 | U11: 1 | V11: 4 | W11: 3 | X11: =(D11+F11+H11+J11+L11+N11+P11+R11+T11+V11) -> 96 | Y11: =(E11+G11+I11+K11+M11+O11+Q11+S11+U11+W11) -> 52
C12: HURTO AGRAVADO | D12: 17 | E12: 7 | F12: 28 | G12: 13 | H12: 7 | I12: 3 | J12: 2 | L12: 5 | P12: 3 | Q12: 1 | R12: 6 | T12: 1 | X12: =(D12+F12+H12+J12+L12+N12+P12+R12+T12+V12) -> 69 | Y12: =(E12+G12+I12+K12+M12+O12+Q12+S12+U12+W12) -> 24
C13: LESION CULPOSA EN ACC. DE TTO. | D13: 17 | E13: 16 | F13: 52 | G13: 46 | H13: 11 | I13: 10 | J13: 3 | K13: 2 | L13: 8 | M13: 7 | P13: 13 | Q13: 13 | R13: 28 | S13: 24 | T13: 5 | U13: 5 | V13: 4 | W13: 4 | X13: 141 | Y13: 127
C14: LESION | D14: 16 | E14: 8 | F14: 40 | G14: 17 | H14: 2 | I14: 1 | J14: 10 | K14: 3 | L14: 7 | M14: 4 | N14: 3 | O14: 1 | P14: 4 | Q14: 1 | R14: 7 | S14: 5 | T14: 1 | V14: 1 | X14: 91 | Y14: 40
C15: ROBO DE OBJETOS | D15: 11 | E15: 6 | F15: 21 | G15: 15 | H15: 1 | I15: 1 | J15: 1 | K15: 1 | L15: 4 | X15: 38 | Y15: 23
C16: ROBO AGRAVADO DE OBJETOS | D16: 7 | E16: 3 | F16: 41 | G16: 6 | H16: 4 | I16: 1 | J16: 3 | L16: 5 | P16: 4 | Q16: 1 | R16: 4 | T16: 4 | V16: 5 | X16: 77 | Y16: 11
C17: ROBO DE VEHICULOS | D17: 19 | F17: 32 | H17: 1 | T17: 1 | V17: 2 | X17: 55 | Y17: 0
C18: ROBO AGRAVADO DE VEHICULOS | F18: 1 | R18: 3 | X18: 4 | Y18: 0
C19: ROBO DE MOTOCICLETAS | D19: 38 | E19: 4 | F19: 107 | G19: 6 | H19: 18 | I19: 4 | J19: 1 | K19: 1 | L19: 6 | N19: 2 | P19: 2 | Q19: 2 | R19: 5 | T19: 2 | V19: 11 | W19: 1 | X19: 192 | Y19: 18
C20: ROBO AGRAVADO DE MOTOCICLETAS | D20: 1 | E20: 1 | F20: 17 | G20: 2 | H20: 3 | I20: 2 | J20: 3 | K20: 1 | L20: 9 | M20: 1 | P20: 1 | R20: 1 | T20: 1 | X20: 36 | Y20: 7
C21: TOTAL | D21: =SUM(D7:D20) -> 155 | E21: 66 | F21: 416 | G21: 150 | H21: 61 | I21: 27 | J21: 37 | K21: 16 | L21: 52 | M21: 16 | N21: 7 | O21: 1 | P21: 40 | Q21: 29 | R21: 72 | S21: 37 | T21: 28 | U21: 11 | V21: 32 | W21: 9 | X21: 900 | Y21: 362
C22: PORCENTAJE DE ACLARADOS | D22: =+(E21/D21) -> 0.4258064516 | F22: =+(G21/F21) -> 0.3605769231 | H22: =+(I21/H21) -> 0.4426229508 | J22: =+(K21/J21) -> 0.4324324324 | L22: =+(M21/L21) -> 0.3076923077 | N22: =+(O21/N21) -> 0.1428571429 | P22: =+(Q21/P21) -> 0.725 | R22: =+(S21/R21) -> 0.5138888889 | T22: =+(U21/T21) -> 0.3928571429 | V22: =+(W21/V21) -> 0.28125 | X22: =+(Y21/X21) -> 0.4022222222
C24: HECHOS PUNIBLES | D24: TRANSPORTE | F24: DIRECCIONES POLICIALES | V24: TOTAL
F25: Alto Paraná | H25: Itapua | J25: Canindeyú | L25: Misiones | N25: Paraguari | P25: Ñeembucu | R25: Boqueron | T25: Pte Hayes
D26: D | E26: A | F26: D | G26: A | H26: D | I26: A | J26: D | K26: A | L26: D | M26: A | N26: D | O26: A | P26: D | Q26: A | R26: D | S26: A | T26: D | U26: A | V26: D | W26: A
C27: ABIGEATO | D27: =(X7) -> 18 | E27: =(Y7) -> 2 | H27: 2 | N27: 16 | O27: 7 | P27: 4 | V27: =(D27+F27+H27+J27+L27+N27+P27+R27+T27) -> 40 | W27: =(E27+G27+I27+K27+M27+O27+Q27+S27+U27) -> 9 | AC27: =(W27/V27) -> 0.225
C28: COACCION SEXUAL | D28: 21 | E28: 11 | F28: 5 | H28: 3 | I28: 1 | J28: 1 | K28: 1 | N28: 3 | P28: 3 | Q28: 1 | V28: 36 | W28: =(E28+G28+I28+K28+M28+O28+Q28+S28+U28) -> 14 | AC28: =(W28/V28) -> 0.3888888889
C29: HOMICIDIO CULPOSO EN ACC DE TTO. | D29: 45 | E29: 41 | F29: 12 | G29: 10 | H29: 5 | I29: 5 | L29: 3 | M29: 2 | N29: 6 | O29: 5 | R29: 2 | S29: 2 | T29: 2 | U29: 2 | V29: 75 | W29: 67 | AC29: 0.8933333333
C30: HOMICIDIO DOLOSO | D30: 17 | E30: 6 | F30: 8 | G30: 1 | H30: 3 | I30: 1 | J30: 1 | L30: 1 | P30: 1 | V30: 31 | W30: 8 | AC30: 0.2580645161
C31: HURTO | D31: 96 | E31: 52 | F31: 13 | G31: 7 | H31: 16 | I31: 11 | J31: 2 | K31: 2 | L31: 2 | M31: 1 | N31: 1 | P31: 5 | Q31: 1 | V31: =(D31+F31+H31+J31+L31+N31+P31+R31+T31) -> 135 | W31: =(E31+G31+I31+K31+M31+O31+Q31+S31+U31) -> 74 | AC31: 0.5481481481
C32: HURTO AGRAVADO | D32: 69 | E32: 24 | F32: 11 | G32: 2 | H32: 8 | I32: 4 | N32: 4 | O32: 2 | P32: 2 | T32: 1 | V32: =(D32+F32+H32+J32+L32+N32+P32+R32+T32) -> 95 | W32: =(E32+G32+I32+K32+M32+O32+Q32+S32+U32) -> 32 | AC32: 0.3368421053
C33: LESION CULPOSA EN ACC. DE TTO. | D33: 141 | E33: 127 | F33: 24 | G33: 23 | H33: 25 | I33: 22 | J33: 2 | K33: 2 | L33: 3 | M33: 3 | N33: 27 | O33: 25 | P33: 5 | Q33: 5 | R33: 1 | S33: 1 | T33: 3 | U33: 3 | V33: 231 | W33: 211 | AC33: 0.9134199134
C34: LESION | D34: 91 | E34: 40 | F34: 12 | G34: 5 | H34: 11 | I34: 5 | L34: 2 | N34: 5 | O34: 1 | P34: 2 | Q34: 2 | R34: 4 | S34: 1 | T34: 1 | U34: 1 | V34: 128 | W34: 55 | AC34: 0.4296875
C35: ROBO DE OBJETOS | D35: 38 | E35: 23 | F35: 5 | G35: 1 | H35: 2 | I35: 1 | N35: 2 | O35: 1 | P35: 1 | V35: 48 | W35: 26 | AC35: 0.5416666667
C36: ROBO AGRAVADO DE OBJETOS | D36: 77 | E36: 11 | F36: 19 | G36: 4 | H36: 3 | I36: 1 | J36: 3 | N36: 3 | O36: 1 | T36: 3 | U36: 1 | V36: 108 | W36: 18 | AC36: 0.1666666667
C37: ROBO DE VEHICULOS | D37: 55 | E37: 0 | F37: 1 | H37: 1 | N37: 2 | V37: 59 | W37: 0 | AC37: 0
C38: ROBO AGRAVADO DE VEHICULOS | D38: 4 | E38: 0 | F38: 5 | G38: 1 | J38: 1 | V38: 10 | W38: 1 | AC38: 0.1
C39: ROBO DE MOTOCICLETAS | D39: 192 | E39: 18 | F39: 10 | G39: 3 | H39: 6 | J39: 1 | L39: 1 | N39: 6 | O39: 1 | P39: 4 | Q39: 1 | R39: 1 | T39: 5 | V39: 226 | W39: 23 | AC39: 0.1017699115
C40: ROBO AGRAVADO DE MOTOCICLETAS | D40: =(X20) -> 36 | E40: 7 | F40: 4 | G40: 1 | H40: 1 | I40: 1 | V40: 41 | W40: 9 | AC40: 0.2195121951
C41: TOTAL | D41: =+(D21+F21+H21+J21+L21+N21+P21+R21+T21+V21) -> 900 | E41: =+(E21+G21+I21+K21+M21+O21+Q21+S21+U21+W21) -> 362 | F41: =SUM(F27:F40) -> 129 | G41: =SUM(G27:G40) -> 58 | H41: 86 | I41: 52 | J41: 11 | K41: 5 | L41: 12 | M41: 6 | N41: 75 | O41: 43 | P41: 27 | Q41: 10 | R41: 8 | S41: 4 | T41: 15 | U41: 7 | V41: 1263 | W41: 547
C42: PORCENTAJE DE ACLARADOS | D42: =+(E41/D41) -> 0.4022222222 | F42: =+(G41/F41) -> 0.4496124031 | H42: =+(I41/H41) -> 0.6046511628 | J42: =+(K41/J41) -> 0.4545454545 | L42: =+(M41/L41) -> 0.5 | N42: =+(O41/N41) -> 0.5733333333 | P42: =+(Q41/P41) -> 0.3703703704 | R42: =+(S41/R41) -> 0.5 | T42: =+(U41/T41) -> 0.4666666667 | V42: =+(W41/V41) -> 0.4330958036
C44: FUENTE: ELABORADO EN EL DPTO. DE ESTADISTICA EN BASE A DATOS PROPORCIONADOS POR LA DIRECCION GENERAL. DE PREVENCION Y SEGURIDAD.

Sheet GRAF 2
B1: INFORME ESTADISTICO MENSUAL 3 | Q1: POLICIA NACIONAL - DPTO. DE ESTADISTICA
D5: HECHOS PUNIBLES MAS RESALTANTES, DENUNCIADOS EN TODO EL PAÍS. FEBRERO 2020
T7: DENUNCIADOS
S8: ABIGEATO | T8: 40
S9: COACCION SEXUAL | T9: 36
S10: HOMICIDIO CULPOSO EN ACC DE TTO. | T10: 75
S11: HOMICIDIO DOLOSO | T11: 31
S12: HURTO | T12: 135
S13: HURTO AGRAVADO | T13: 95
S14: LESION CULPOSA EN ACC. DE TTO. | T14: 231
S15: LESION | T15: 128
S16: ROBO DE OBJETOS | T16: 48
S17: ROBO AGRAVADO DE OBJETOS | T17: 108
S18: ROBO DE VEHICULOS | T18: 59
S19: ROBO AGRAVADO DE VEHICULOS | T19: 10
S20: ROBO DE MOTOCICLETAS | T20: 226
S21: ROBO AGRAVADO DE MOTOCICLETAS | T21: 41
T22: =SUM(T8:T21) -> 1263
D41: FUENTE: ELABORADO EN EL DPTO. DE ESTADISTICA EN BASE A DATOS PROPORCIONADOS POR LA DIRECCION GENERAL. DE ORDEN Y SEGURIDAD.

Sheet MARZO
A1: INFORME ESTADISTICO MENSUAL 4 | AA1: POLICIA NACIONAL - DPTO. DE ESTADISTICA
C2: HECHOS PUNIBLES MAS RESALTANTES,DENUNCIADOS Y ACLARADOS EN TODO EL PAÍS POR ZONAS POLICIALES. MARZO 2020
F3: OK
C4: HECHOS PUNIBLES | D4: DIRECCIONES POLICIALES | X4: SUB TOTAL
D5: Asuncion | F5: Central | H5: Cordillera | J5: Amambay | L5: Concepcion | N5: Alto Py. | P5: San Pedro | R5: Caaguazu | T5: Caazapa | V5: Guaira
D6: D | E6: A | F6: D | G6: A | H6: D | I6: A | J6: D | K6: A | L6: D | M6: A | N6: D | O6: A | P6: D | Q6: A | R6: D | S6: A | T6: D | U6: A | V6: D | W6: A | X6: D | Y6: A
C7: ABIGEATO | F7: 1 | H7: 12 | I7: 1 | L7: 2 | M7: 1 | P7: 5 | Q7: 1 | R7: 5 | T7: 2 | V7: 6 | W7: 1 | X7: =(D7+F7+H7+J7+L7+N7+P7+R7+T7+V7) -> 33 | Y7: =(E7+G7+I7+K7+M7+O7+Q7+S7+U7+W7) -> 4
C8: COACCION SEXUAL | F8: 13 | G8: 10 | H8: 4 | I8: 2 | J8: 1 | L8: 2 | M8: 1 | P8: 3 | Q8: 1 | R8: 1 | S8: 1 | T8: 3 | U8: 1 | V8: 1 | X8: =(D8+F8+H8+J8+L8+N8+P8+R8+T8+V8) -> 28 | Y8: 16
C9: HOMICIDIO CULPOSO EN ACC DE TTO. | F9: 16 | G9: 14 | H9: 1 | I9: 1 | J9: 1 | K9: 1 | L9: 1 | M9: 1 | N9: 1 | O9: 1 | P9: 4 | Q9: 4 | R9: 10 | S9: 10 | V9: 3 | W9: 3 | X9: 37 | Y9: 35
C10: HOMICIDIO DOLOSO | D10: 2 | F10: 5 | G10: 3 | H10: 1 | J10: 8 | K10: 2 | L10: 2 | M10: 1 | N10: 2 | P10: 1 | R10: 1 | T10: 2 | V10: 1 | W10: 1 | X10: 25 | Y10: 7
C11: HURTO | D11: 12 | E11: 10 | F11: 30 | G11: 22 | H11: 6 | I11: 3 | J11: 1 | K11: 1 | L11: 1 | P11: 2 | Q11: 2 | R11: 6 | S11: 2 | T11: 1 | V11: 3 | W11: 2 | X11: =(D11+F11+H11+J11+L11+N11+P11+R11+T11+V11) -> 62 | Y11: =(E11+G11+I11+K11+M11+O11+Q11+S11+U11+W11) -> 42
C12: HURTO AGRAVADO | D12: 15 | E12: 1 | F12: 47 | G12: 21 | H12: 7 | I12: 2 | J12: 4 | K12: 3 | L12: 1 | P12: 2 | Q12: 1 | R12: 6 | S12: 1 | T12: 5 | X12: =(D12+F12+H12+J12+L12+N12+P12+R12+T12+V12) -> 87 | Y12: =(E12+G12+I12+K12+M12+O12+Q12+S12+U12+W12) -> 29
C13: LESION CULPOSA EN ACC. DE TTO. | D13: 7 | E13: 7 | F13: 34 | G13: 32 | H13: 15 | I13: 14 | J13: 5 | K13: 5 | L13: 14 | M13: 14 | P13: 17 | Q13: 16 | R13: 24 | S13: 24 | T13: 3 | U13: 3 | V13: 4 | W13: 4 | X13: 123 | Y13: 119
C14: LESION | D14: 21 | E14: 15 | F14: 39 | G14: 16 | H14: 3 | I14: 3 | J14: 6 | K14: 3 | L14: 8 | M14: 6 | P14: 6 | Q14: 2 | R14: 4 | S14: 2 | T14: 2 | U14: 1 | X14: 89 | Y14: 48
C15: ROBO DE OBJETOS | D15: 8 | E15: 6 | F15: 11 | G15: 8 | H15: 1 | L15: 3 | X15: 23 | Y15: 14
C16: ROBO AGRAVADO DE OBJETOS | D16: 13 | E16: 4 | F16: 46 | G16: 11 | H16: 2 | J16: 2 | L16: 5 | P16: 5 | R16: 5 | T16: 1 | V16: 2 | X16: 81 | Y16: 15
C17: ROBO DE VEHICULOS | D17: 11 | E17: 1 | F17: 20 | H17: 1 | R17: 1 | X17: 33 | Y17: 1
C18: ROBO AGRAVADO DE VEHICULOS | F18: 1 | J18: 1 | P18: 1 | T18: 1 | V18: 1 | X18: 5 | Y18: 0
C19: ROBO DE MOTOCICLETAS | D19: 25 | E19: 2 | F19: 74 | G19: 8 | H19: 4 | I19: 1 | J19: 2 | L19: 12 | P19: 3 | R19: 1 | T19: 3 | V19: 3 | W19: 1 | X19: 127 | Y19: 12
C20: ROBO AGRAVADO DE MOTOCICLETAS | F20: 13 | G20: 1 | H20: 1 | I20: 1 | L20: 8 | P20: 1 | T20: 1 | X20: 24 | Y20: 2
C21: TOTAL | D21: =SUM(D7:D20) -> 114 | E21: 46 | F21: 350 | G21: 146 | H21: 58 | I21: 28 | J21: 31 | K21: 15 | L21: 59 | M21: 24 | N21: 3 | O21: 1 | P21: 50 | Q21: 27 | R21: 64 | S21: 40 | T21: 24 | U21: 5 | V21: 24 | W21: 12 | X21: 777 | Y21: 344
C22: PORCENTAJE DE ACLARADOS | D22: =+(E21/D21) -> 0.4035087719 | F22: =+(G21/F21) -> 0.4171428571 | H22: =+(I21/H21) -> 0.4827586207 | J22: =+(K21/J21) -> 0.4838709677 | L22: =+(M21/L21) -> 0.406779661 | N22: =+(O21/N21) -> 0.3333333333 | P22: =+(Q21/P21) -> 0.54 | R22: =+(S21/R21) -> 0.625 | T22: =+(U21/T21) -> 0.2083333333 | V22: =+(W21/V21) -> 0.5 | X22: =+(Y21/X21) -> 0.4427284427
C24: HECHOS PUNIBLES | D24: TRANSPORTE | F24: DIRECCIONES POLICIALES | V24: TOTAL
F25: Alto Paraná | H25: Itapua | J25: Canindeyú | L25: Misiones | N25: Paraguari | P25: Ñeembucu | R25: Boqueron | T25: Pte Hayes
D26: D | E26: A | F26: D | G26: A | H26: D | I26: A | J26: D | K26: A | L26: D | M26: A | N26: D | O26: A | P26: D | Q26: A | R26: D | S26: A | T26: D | U26: A | V26: D | W26: A
C27: ABIGEATO | D27: =(X7) -> 33 | E27: 4 | F27: 6 | G27: 1 | H27: 5 | I27: 2 | N27: 11 | O27: 3 | P27: 5 | Q27: 1 | T27: 1 | U27: 1 | V27: =(D27+F27+H27+J27+L27+N27+P27+R27+T27) -> 61 | W27: =(E27+G27+I27+K27+M27+O27+Q27+S27+U27) -> 12 | AC27: =(W27/V27) -> 0.1967213115
C28: COACCION SEXUAL | D28: 28 | E28: 16 | F28: 7 | G28: 2 | H28: 7 | I28: 5 | N28: 1 | R28: 1 | S28: 1 | T28: 1 | V28: 45 | W28: =(E28+G28+I28+K28+M28+O28+Q28+S28+U28) -> 24 | AC28: =(W28/V28) -> 0.5333333333
C29: HOMICIDIO CULPOSO EN ACC DE TTO. | D29: 37 | E29: 35 | F29: 2 | G29: 1 | H29: 7 | I29: 7 | J29: 3 | K29: 3 | L29: 2 | M29: 1 | N29: 2 | O29: 2 | R29: 1 | T29: 2 | U29: 2 | V29: 56 | W29: 51 | AC29: 0.9107142857
C30: HOMICIDIO DOLOSO | D30: 25 | E30: 7 | F30: 4 | G30: 2 | H30: 1 | I30: 1 | T30: 1 | U30: 1 | V30: 31 | W30: 11 | AC30: 0.3548387097
C31: HURTO | D31: 62 | E31: 42 | F31: 10 | G31: 3 | H31: 14 | I31: 7 | L31: 1 | M31: 1 | N31: 2 | O31: 2 | P31: 2 | Q31: 1 | T31: 1 | U31: 1 | V31: =(D31+F31+H31+J31+L31+N31+P31+R31+T31) -> 92 | W31: =(E31+G31+I31+K31+M31+O31+Q31+S31+U31) -> 57 | AC31: 0.6195652174
C32: HURTO AGRAVADO | D32: 87 | E32: 29 | F32: 11 | G32: 5 | H32: 6 | I32: 2 | N32: 3 | R32: 1 | V32: =(D32+F32+H32+J32+L32+N32+P32+R32+T32) -> 108 | W32: =(E32+G32+I32+K32+M32+O32+Q32+S32+U32) -> 36 | AC32: 0.3333333333
C33: LESION CULPOSA EN ACC. DE TTO. | D33: 123 | E33: 119 | F33: 20 | G33: 19 | H33: 14 | I33: 13 | J33: 4 | K33: 4 | L33: 10 | M33: 10 | N33: 18 | O33: 16 | P33: 3 | Q33: 3 | R33: 3 | S33: 3 | T33: 2 | U33: 2 | V33: 197 | W33: 189 | AC33: 0.9593908629
C34: LESION | D34: 89 | E34: 48 | F34: 8 | G34: 1 | H34: 6 | I34: 3 | J34: 2 | L34: 1 | N34: 4 | O34: 2 | P34: 1 | R34: 3 | S34: 2 | T34: 4 | U34: 4 | V34: 118 | W34: 60 | AC34: 0.5084745763
C35: ROBO DE OBJETOS | D35: 23 | E35: 14 | F35: 6 | G35: 1 | H35: 1 | V35: 30 | W35: 15 | AC35: 0.5
C36: ROBO AGRAVADO DE OBJETOS | D36: 81 | E36: 15 | F36: 20 | G36: 2 | H36: 9 | I36: 4 | J36: 1 | N36: 1 | T36: 1 | V36: 113 | W36: 21 | AC36: 0.185840708
C37: ROBO DE VEHICULOS | D37: 33 | E37: 1 | F37: 2 | G37: 1 | H37: 1 | R37: 1 | T37: 1 | V37: 38 | W37: 2 | AC37: 0.05263157895
C38: ROBO AGRAVADO DE VEHICULOS | D38: 5 | E38: 0 | F38: 1 | H38: 1 | I38: 1 | N38: 1 | V38: 8 | W38: 1 | AC38: 0.125
C39: ROBO DE MOTOCICLETAS | D39: 127 | E39: 12 | F39: 8 | G39: 1 | H39: 9 | I39: 1 | N39: 6 | O39: 2 | P39: 2 | Q39: 1 | T39: 1 | V39: 153 | W39: 17 | AC39: 0.1111111111
C40: ROBO AGRAVADO DE MOTOCICLETAS | D40: =(X20) -> 24 | E40: 2 | F40: 1 | H40: 2 | N40: 1 | V40: 28 | W40: 2 | AC40: 0.07142857143
C41: TOTAL | D41: =+(D21+F21+H21+J21+L21+N21+P21+R21+T21+V21) -> 777 | E41: =+(E21+G21+I21+K21+M21+O21+Q21+S21+U21+W21) -> 344 | F41: =SUM(F27:F40) -> 106 | G41: =SUM(G27:G40) -> 39 | H41: 83 | I41: 46 | J41: 10 | K41: 7 | L41: 14 | M41: 12 | N41: 50 | O41: 27 | P41: 13 | Q41: 6 | R41: 10 | S41: 6 | T41: 15 | U41: 11 | V41: 1078 | W41: 498
C42: PORCENTAJE DE ACLARADOS | D42: =+(E41/D41) -> 0.4427284427 | F42: =+(G41/F41) -> 0.3679245283 | H42: =+(I41/H41) -> 0.5542168675 | J42: =+(K41/J41) -> 0.7 | L42: =+(M41/L41) -> 0.8571428571 | N42: =+(O41/N41) -> 0.54 | P42: =+(Q41/P41) -> 0.4615384615 | R42: =+(S41/R41) -> 0.6 | T42: =+(U41/T41) -> 0.7333333333 | V42: =+(W41/V41) -> 0.4619666048
C44: FUENTE: ELABORADO EN EL DPTO. DE ESTADISTICA EN BASE A DATOS PROPORCIONADOS POR LA DIRECCION GENERAL. DE PREVENCION Y SEGURIDAD.

Sheet GRAF 3
B1: INFORME ESTADISTICO MENSUAL 3 | Q1: POLICIA NACIONAL - DPTO. DE ESTADISTICA
D5: HECHOS PUNIBLES MAS RESALTANTES, DENUNCIADOS EN TODO EL PAÍS. MARZO 2020
T7: DENUNCIADOS
S8: ABIGEATO | T8: 61
S9: COACCION SEXUAL | T9: 45
S10: HOMICIDIO CULPOSO EN ACC DE TTO. | T10: 56
S11: HOMICIDIO DOLOSO | T11: 31
S12: HURTO | T12: 92
S13: HURTO AGRAVADO | T13: 108
S14: LESION CULPOSA EN ACC. DE TTO. | T14: 197
S15: LESION | T15: 118
S16: ROBO DE OBJETOS | T16: 30
S17: ROBO AGRAVADO DE OBJETOS | T17: 113
S18: ROBO DE VEHICULOS | T18: 38
S19: ROBO AGRAVADO DE VEHICULOS | T19: 8
S20: ROBO DE MOTOCICLETAS | T20: 153
S21: ROBO AGRAVADO DE MOTOCICLETAS | T21: 28
T22: =SUM(T8:T21) -> 1078
D41: FUENTE: ELABORADO EN EL DPTO. DE ESTADISTICA EN BASE A DATOS PROPORCIONADOS POR LA DIRECCION GENERAL. DE ORDEN Y SEGURIDAD.

Sheet ABRIL
A1: INFORME ESTADISTICO MENSUAL 4 | AA1: POLICIA NACIONAL - DPTO. DE ESTADISTICA
C2: HECHOS PUNIBLES MAS RESALTANTES,DENUNCIADOS Y ACLARADOS EN TODO EL PAÍS POR ZONAS POLICIALES. ABRIL 2020
C4: HECHOS PUNIBLES | D4: DIRECCIONES POLICIALES | X4: SUB TOTAL
D5: Asuncion | F5: Central | H5: Cordillera | J5: Amambay | L5: Concepcion | N5: Alto Py. | P5: San Pedro | R5: Caaguazu | T5: Caazapa | V5: Guaira
D6: D | E6: A | F6: D | G6: A | H6: D | I6: A | J6: D | K6: A | L6: D | M6: A | N6: D | O6: A | P6: D | Q6: A | R6: D | S6: A | T6: D | U6: A | V6: D | W6: A | X6: D | Y6: A
C7: ABIGEATO | F7: 7 | G7: 1 | H7: 7 | I7: 1 | J7: 1 | K7: 0 | L7: 1 | N7: 1 | P7: 5 | Q7: 2 | R7: 6 | S7: 2 | T7: 4 | V7: 7 | W7: 2 | X7: =(D7+F7+H7+J7+L7+N7+P7+R7+T7+V7) -> 39 | Y7: =(E7+G7+I7+K7+M7+O7+Q7+S7+U7+W7) -> 8
C8: COACCION SEXUAL | D8: 2 | E8: 2 | F8: 7 | G8: 6 | H8: 2 | I8: 2 | J8: 1 | K8: 1 | L8: 1 | M8: 1 | P8: 4 | Q8: 3 | R8: 2 | S8: 1 | T8: 1 | V8: 3 | W8: 2 | X8: 23 | Y8: 18
C9: HOMICIDIO CULPOSO EN ACC DE TTO. | D9: 3 | E9: 3 | F9: 5 | G9: 5 | H9: 1 | I9: 1 | L9: 4 | M9: 4 | P9: 4 | Q9: 4 | R9: 3 | S9: 3 | T9: 1 | V9: 1 | W9: 1 | X9: 22 | Y9: 21
C10: HOMICIDIO DOLOSO | D10: 2 | E10: 2 | F10: 4 | G10: 4 | J10: 9 | K10: 1 | L10: 3 | M10: 0 | P10: 1 | Q10: 1 | R10: 1 | S10: 1 | T10: 2 | U10: 1 | X10: 22 | Y10: 10
C11: HURTO | D11: 12 | E11: 5 | F11: 22 | G11: 15 | H11: 5 | I11: 1 | L11: 1 | M11: 1 | P11: 1 | Q11: 1 | R11: 5 | S11: 2 | T11: 1 | V11: 2 | W11: 1 | X11: =(D11+F11+H11+J11+L11+N11+P11+R11+T11+V11) -> 49 | Y11: =(E11+G11+I11+K11+M11+O11+Q11+S11+U11+W11) -> 26
C12: HURTO AGRAVADO | D12: 9 | E12: 4 | F12: 21 | G12: 7 | H12: 4 | I12: 1 | J12: 4 | K12: 1 | L12: 3 | M12: 1 | P12: 3 | Q12: 1 | R12: 7 | S12: 1 | T12: 4 | U12: 1 | V12: 3 | W12: 3 | X12: =(D12+F12+H12+J12+L12+N12+P12+R12+T12+V12) -> 58 | Y12: =(E12+G12+I12+K12+M12+O12+Q12+S12+U12+W12) -> 20
C13: LESION CULPOSA EN ACC. DE TTO. | D13: 2 | E13: 2 | F13: 28 | G13: 27 | H13: 4 | I13: 4 | J13: 4 | K13: 3 | L13: 5 | M13: 4 | P13: 7 | Q13: 5 | R13: 15 | S13: 9 | T13: 3 | U13: 3 | V13: 3 | X13: 71 | Y13: 57
C14: LESION | D14: 10 | E14: 8 | F14: 21 | G14: 10 | H14: 3 | I14: 2 | J14: 8 | K14: 3 | L14: 3 | M14: 1 | P14: 7 | Q14: 3 | R14: 4 | S14: 3 | T14: 1 | X14: 57 | Y14: 30
C15: ROBO DE OBJETOS | D15: 7 | E15: 4 | F15: 6 | G15: 4 | J15: 1 | K15: 0 | R15: 1 | X15: 15 | Y15: 8
C16: ROBO AGRAVADO DE OBJETOS | D16: 7 | E16: 3 | F16: 31 | G16: 9 | H16: 1 | I16: 0 | J16: 1 | K16: 0 | L16: 2 | R16: 2 | T16: 1 | V16: 2 | X16: 47 | Y16: 12
C17: ROBO DE VEHICULOS | D17: 14 | E17: 1 | F17: 5 | G17: 0 | X17: 19 | Y17: 1
C18: ROBO AGRAVADO DE VEHICULOS | F18: 2 | G18: 0 | X18: 2 | Y18: 0
C19: ROBO DE MOTOCICLETAS | D19: 38 | E19: 6 | F19: 53 | G19: 2 | H19: 3 | I19: 0 | J19: 3 | K19: 1 | R19: 2 | X19: 99 | Y19: 9
C20: ROBO AGRAVADO DE MOTOCICLETAS | F20: 9 | G20: 3 | H20: 1 | I20: 0 | J20: 1 | K20: 1 | L20: 2 | R20: 1 | X20: 14 | Y20: 4
C21: TOTAL | D21: =SUM(D7:D20) -> 106 | E21: 40 | F21: 221 | G21: 93 | H21: 31 | I21: 12 | J21: 33 | K21: 11 | L21: 25 | M21: 12 | N21: 1 | O21: 0 | P21: 32 | Q21: 20 | R21: 49 | S21: 22 | T21: 18 | U21: 5 | V21: 21 | W21: 9 | X21: 537 | Y21: 224
C22: PORCENTAJE DE ACLARADOS | D22: =+(E21/D21) -> 0.3773584906 | F22: =+(G21/F21) -> 0.4208144796 | H22: =+(I21/H21) -> 0.3870967742 | J22: =+(K21/J21) -> 0.3333333333 | L22: =+(M21/L21) -> 0.48 | N22: =+(O21/N21) -> 0 | P22: =+(Q21/P21) -> 0.625 | R22: =+(S21/R21) -> 0.4489795918 | T22: =+(U21/T21) -> 0.2777777778 | V22: =+(W21/V21) -> 0.4285714286 | X22: =+(Y21/X21) -> 0.417132216
C24: HECHOS PUNIBLES | D24: TRANSPORTE | F24: DIRECCIONES POLICIALES | V24: TOTAL
F25: Alto Paraná | H25: Itapua | J25: Canindeyú | L25: Misiones | N25: Paraguari | P25: Ñeembucu | R25: Boqueron | T25: Pte Hayes
D26: D | E26: A | F26: D | G26: A | H26: D | I26: A | J26: D | K26: A | L26: D | M26: A | N26: D | O26: A | P26: D | Q26: A | R26: D | S26: A | T26: D | U26: A | V26: D | W26: A
C27: ABIGEATO | D27: =(X7) -> 39 | E27: =(Y7) -> 8 | H27: 5 | I27: 0 | L27: 2 | M27: 0 | N27: 8 | O27: 5 | P27: 5 | Q27: 2 | T27: 1 | U27: 1 | V27: =(D27+F27+H27+J27+L27+N27+P27+R27+T27) -> 60 | W27: =(E27+G27+I27+K27+M27+O27+Q27+S27+U27) -> 16 | AC27: =(W27/V27) -> 0.2666666667
C28: COACCION SEXUAL | D28: 23 | E28: 18 | F28: 16 | G28: 15 | H28: 1 | I28: 1 | J28: 2 | K28: 1 | N28: 1 | V28: 43 | W28: =(E28+G28+I28+K28+M28+O28+Q28+S28+U28) -> 35 | AC28: =(W28/V28) -> 0.8139534884
C29: HOMICIDIO CULPOSO EN ACC DE TTO. | D29: 22 | E29: 21 | F29: 3 | G29: 2 | H29: 0 | I29: 0 | J29: 2 | K29: 2 | N29: 1 | O29: 1 | V29: 28 | W29: 26 | AC29: 0.9285714286
C30: HOMICIDIO DOLOSO | D30: 22 | E30: 10 | F30: 1 | G30: 0 | H30: 2 | I30: 1 | J30: 1 | K30: 1 | T30: 1 | U30: 1 | V30: 27 | W30: 13 | AC30: 0.4814814815
C31: HURTO | D31: 49 | E31: 26 | F31: 13 | G31: 8 | H31: 3 | I31: 2 | J31: 1 | K31: 0 | L31: 1 | M31: 0 | N31: 2 | O31: 2 | P31: 4 | Q31: 0 | T31: 1 | U31: 0 | V31: =(D31+F31+H31+J31+L31+N31+P31+R31+T31) -> 74 | W31: =(E31+G31+I31+K31+M31+O31+Q31+S31+U31) -> 38 | AC31: 0.5135135135
C32: HURTO AGRAVADO | D32: 58 | E32: 20 | F32: 9 | G32: 3 | H32: 4 | I32: 1 | J32: 2 | K32: 1 | L32: 8 | M32: 8 | N32: 2 | P32: 1 | Q32: 1 | V32: =(D32+F32+H32+J32+L32+N32+P32+R32+T32) -> 84 | W32: =(E32+G32+I32+K32+M32+O32+Q32+S32+U32) -> 34 | AC32: 0.4047619048
C33: LESION CULPOSA EN ACC. DE TTO. | D33: 71 | E33: 57 | F33: 12 | G33: 12 | H33: 4 | I33: 4 | J33: 0 | K33: 0 | L33: 1 | M33: 1 | N33: 6 | O33: 6 | P33: 2 | Q33: 2 | R33: 1 | S33: 1 | T33: 1 | U33: 1 | V33: =(D33+F33+H33+J33+L33+N33+P33+R33+T33) -> 98 | W33: 84 | AC33: 0.8571428571
C34: LESION | D34: 57 | E34: 30 | F34: 8 | G34: 2 | H34: 5 | I34: 3 | J34: 1 | K34: 1 | N34: 3 | O34: 3 | R34: 1 | S34: 1 | T34: 1 | U34: 1 | V34: 76 | W34: 41 | AC34: 0.5394736842
C35: ROBO DE OBJETOS | D35: 15 | E35: 8 | F35: 3 | G35: 0 | H35: 2 | I35: 1 | L35: 1 | M35: 1 | V35: 21 | W35: 10 | AC35: 0.4761904762
C36: ROBO AGRAVADO DE OBJETOS | D36: 47 | E36: 12 | F36: 13 | G36: 1 | H36: 2 | I36: 0 | J36: 1 | K36: 0 | N36: 2 | R36: 1 | S36: 1 | T36: 1 | U36: 1 | V36: 67 | W36: 15 | AC36: 0.223880597
C37: ROBO DE VEHICULOS | D37: 19 | E37: 1 | F37: 1 | G37: 0 | H37: 0 | I37: 0 | V37: 20 | W37: 1 | AC37: 0.05
C38: ROBO AGRAVADO DE VEHICULOS | D38: 2 | E38: 0 | F38: 2 | G38: 0 | H38: 1 | I38: 0 | V38: 5 | W38: 0 | AC38: 0
C39: ROBO DE MOTOCICLETAS | D39: 99 | E39: 9 | F39: 5 | G39: 2 | H39: 5 | I39: 0 | T39: 3 | U39: 1 | V39: 112 | W39: 12 | AC39: 0.1071428571
C40: ROBO AGRAVADO DE MOTOCICLETAS | D40: =(X20) -> 14 | E40: 2 | F40: 1 | G40: 0 | N40: 1 | O40: 1 | V40: 16 | W40: 3 | AC40: 0.1875
C41: TOTAL | D41: =+(D21+F21+H21+J21+L21+N21+P21+R21+T21+V21) -> 537 | E41: =+(E21+G21+I21+K21+M21+O21+Q21+S21+U21+W21) -> 224 | F41: =SUM(F27:F40) -> 87 | G41: =SUM(G27:G40) -> 45 | H41: 34 | I41: 13 | J41: 10 | K41: 6 | L41: 13 | M41: 10 | N41: 26 | O41: 18 | P41: 12 | Q41: 5 | R41: 3 | S41: 3 | T41: 9 | U41: 6 | V41: 731 | W41: 328
C42: PORCENTAJE DE ACLARADOS | D42: =+(E41/D41) -> 0.417132216 | F42: =+(G41/F41) -> 0.5172413793 | H42: =+(I41/H41) -> 0.3823529412 | J42: =+(K41/J41) -> 0.6 | L42: =+(M41/L41) -> 0.7692307692 | N42: =+(O41/N41) -> 0.6923076923 | P42: =+(Q41/P41) -> 0.4166666667 | R42: =+(S41/R41) -> 1 | T42: =+(U41/T41) -> 0.6666666667 | V42: =+(W41/V41) -> 0.4487004104
C44: FUENTE: ELABORADO EN EL DPTO. DE ESTADISTICA EN BASE A DATOS PROPORCIONADOS POR LA DIRECCION GENERAL. DE PREVENCION Y SEGURIDAD.

Sheet GRAF 4
B1: INFORME ESTADISTICO MENSUAL 3 | Q1: POLICIA NACIONAL - DPTO. DE ESTADISTICA
D5: HECHOS PUNIBLES MAS RESALTANTES, DENUNCIADOS EN TODO EL PAÍS. ABRIL 2020
T7: DENUNCIADOS
S8: ABIGEATO | T8: 60
S9: COACCION SEXUAL | T9: 43
S10: HOMICIDIO CULPOSO EN ACC DE TTO. | T10: 28
S11: HOMICIDIO DOLOSO | T11: 27
S12: HURTO | T12: 74
S13: HURTO AGRAVADO | T13: 84
S14: LESION CULPOSA EN ACC. DE TTO. | T14: 98
S15: LESION | T15: 76
S16: ROBO DE OBJETOS | T16: 21
S17: ROBO AGRAVADO DE OBJETOS | T17: 67
S18: ROBO DE VEHICULOS | T18: 20
S19: ROBO AGRAVADO DE VEHICULOS | T19: 5
S20: ROBO DE MOTOCICLETAS | T20: 112
S21: ROBO AGRAVADO DE MOTOCICLETAS | T21: 16
T22: =SUM(T8:T21) -> 731
D41: FUENTE: ELABORADO EN EL DPTO. DE ESTADISTICA EN BASE A DATOS PROPORCIONADOS POR LA DIRECCION GENERAL. DE ORDEN Y SEGURIDAD.

Sheet MAYO
A1: INFORME ESTADISTICO MENSUAL 4 | AA1: POLICIA NACIONAL - DPTO. DE ESTADISTICA
C2: HECHOS PUNIBLES MAS RESALTANTES,DENUNCIADOS Y ACLARADOS EN TODO EL PAÍS POR ZONAS POLICIALES. MAYO 2020
C4: HECHOS PUNIBLES | D4: DIRECCIONES POLICIALES | X4: SUB TOTAL
D5: Asuncion | F5: Central | H5: Cordillera | J5: Amambay | L5: Concepcion | N5: Alto Py. | P5: San Pedro | R5: Caaguazu | T5: Caazapa | V5: Guaira
D6: D | E6: A | F6: D | G6: A | H6: D | I6: A | J6: D | K6: A | L6: D | M6: A | N6: D | O6: A | P6: D | Q6: A | R6: D | S6: A | T6: D | U6: A | V6: D | W6: A | X6: D | Y6: A
C7: ABIGEATO | F7: 3 | H7: 13 | I7: 2 | J7: 1 | L7: 1 | M7: 1 | N7: 1 | P7: 6 | R7: 5 | S7: 2 | T7: 11 | U7: 3 | V7: 3 | X7: =(D7+F7+H7+J7+L7+N7+P7+R7+T7+V7) -> 44 | Y7: 8
C8: COACCION SEXUAL | D8: 4 | E8: 2 | F8: 17 | G8: 16 | H8: 4 | I8: 1 | J8: 3 | K8: 1 | L8: 1 | P8: 4 | Q8: 2 | R8: 3 | S8: 2 | V8: 1 | W8: 1 | X8: 37 | Y8: 25
C9: HOMICIDIO CULPOSO EN ACC DE TTO. | D9: 2 | E9: 2 | F9: 22 | G9: 21 | H9: 2 | I9: 1 | J9: 4 | K9: 3 | L9: 3 | M9: 3 | P9: 11 | Q9: 10 | R9: 3 | S9: 3 | T9: 1 | U9: 1 | V9: 2 | W9: 2 | X9: 50 | Y9: 46
C10: HOMICIDIO DOLOSO | D10: 1 | E10: 1 | F10: 2 | G10: 1 | J10: 7 | L10: 3 | M10: 1 | N10: 1 | O10: 1 | P10: 1 | Q10: 1 | T10: 1 | U10: 1 | V10: 2 | X10: 18 | Y10: 6
C11: HURTO | D11: 13 | E11: 4 | F11: 40 | G11: 19 | H11: 5 | I11: 2 | J11: 3 | K11: 1 | L11: 1 | P11: 1 | Q11: 1 | R11: 4 | S11: 2 | V11: 1 | X11: =(D11+F11+H11+J11+L11+N11+P11+R11+T11+V11) -> 68 | Y11: =(E11+G11+I11+K11+M11+O11+Q11+S11+U11+W11) -> 29
C12: HURTO AGRAVADO | D12: 9 | E12: 3 | F12: 21 | G12: 6 | H12: 5 | J12: 3 | L12: 2 | M12: 1 | P12: 3 | Q12: 1 | R12: 2 | S12: 1 | T12: 2 | V12: 4 | W12: 1 | X12: =(D12+F12+H12+J12+L12+N12+P12+R12+T12+V12) -> 51 | Y12: =(E12+G12+I12+K12+M12+O12+Q12+S12+U12+W12) -> 13
C13: LESION CULPOSA EN ACC. DE TTO. | D13: 17 | E13: 17 | F13: 54 | G13: 53 | H13: 13 | I13: 10 | J13: 13 | K13: 13 | L13: 5 | M13: 5 | P13: 3 | Q13: 2 | R13: 29 | S13: 28 | T13: 5 | U13: 5 | V13: 6 | W13: 5 | X13: 145 | Y13: =(E13+G13+I13+K13+M13+O13+Q13+S13+U13+W13) -> 138
C14: LESION | D14: 7 | E14: 6 | F14: 33 | G14: 13 | H14: 6 | I14: 4 | J14: 6 | K14: 1 | L14: 7 | M14: 2 | N14: 1 | P14: 2 | R14: 9 | S14: 3 | T14: 6 | U14: 3 | V14: 3 | W14: 1 | X14: 80 | Y14: 33
C15: ROBO DE OBJETOS | D15: 8 | E15: 6 | F15: 14 | G15: 5 | J15: 1 | L15: 2 | M15: 1 | X15: 25 | Y15: 12
C16: ROBO AGRAVADO DE OBJETOS | D16: 7 | E16: 2 | F16: 38 | G16: 6 | H16: 1 | J16: 2 | L16: 2 | P16: 7 | R16: 6 | T16: 4 | X16: 67 | Y16: 8
C17: ROBO DE VEHICULOS | D17: 24 | F17: 18 | L17: 1 | P17: 2 | V17: 1 | X17: 46 | Y17: 0
C18: ROBO AGRAVADO DE VEHICULOS | F18: 1 | P18: 1 | T18: 1 | X18: 3 | Y18: 0
C19: ROBO DE MOTOCICLETAS | D19: 66 | E19: 2 | F19: 74 | H19: 4 | I19: 1 | J19: 3 | K19: 2 | L19: 2 | P19: 1 | R19: 5 | S19: 1 | T19: 4 | U19: 1 | V19: 4 | W19: 2 | X19: 163 | Y19: 9
C20: ROBO AGRAVADO DE MOTOCICLETAS | F20: 6 | J20: 3 | K20: 1 | L20: 5 | P20: 3 | Q20: 1 | R20: 2 | X20: 19 | Y20: 2
C21: TOTAL | D21: =SUM(D7:D20) -> 158 | E21: 45 | F21: 343 | G21: 140 | H21: 53 | I21: 21 | J21: 49 | K21: 22 | L21: 35 | M21: 14 | N21: 3 | O21: 1 | P21: 45 | Q21: 18 | R21: 68 | S21: 42 | T21: 35 | U21: 14 | V21: 27 | W21: 12 | X21: 816 | Y21: 329
C22: PORCENTAJE DE ACLARADOS | D22: =+(E21/D21) -> 0.2848101266 | F22: =+(G21/F21) -> 0.4081632653 | H22: =+(I21/H21) -> 0.3962264151 | J22: =+(K21/J21) -> 0.4489795918 | L22: =+(M21/L21) -> 0.4 | N22: =+(O21/N21) -> 0.3333333333 | P22: =+(Q21/P21) -> 0.4 | R22: =+(S21/R21) -> 0.6176470588 | T22: =+(U21/T21) -> 0.4 | V22: =+(W21/V21) -> 0.4444444444 | X22: =+(Y21/X21) -> 0.4031862745
C24: HECHOS PUNIBLES | D24: TRANSPORTE | F24: DIRECCIONES POLICIALES | V24: TOTAL
F25: Alto Paraná | H25: Itapua | J25: Canindeyú | L25: Misiones | N25: Paraguari | P25: Ñeembucu | R25: Boqueron | T25: Pte Hayes
D26: D | E26: A | F26: D | G26: A | H26: D | I26: A | J26: D | K26: A | L26: D | M26: A | N26: D | O26: A | P26: D | Q26: A | R26: D | S26: A | T26: D | U26: A | V26: D | W26: A
C27: ABIGEATO | D27: =(X7) -> 44 | E27: =(Y7) -> 8 | F27: 2 | G27: 1 | H27: 9 | I27: 2 | L27: 3 | M27: 1 | N27: 13 | O27: 3 | P27: 5 | Q27: 2 | V27: =(D27+F27+H27+J27+L27+N27+P27+R27+T27) -> 76 | W27: =(E27+G27+I27+K27+M27+O27+Q27+S27+U27) -> 17 | AC27: =(W27/V27) -> 0.2236842105
C28: COACCION SEXUAL | D28: 37 | E28: 25 | F28: 3 | G28: 2 | H28: 5 | I28: 1 | N28: 1 | P28: 2 | Q28: 2 | R28: 1 | S28: 1 | T28: 1 | U28: 1 | V28: 50 | W28: =(E28+G28+I28+K28+M28+O28+Q28+S28+U28) -> 32 | AC28: =(W28/V28) -> 0.64
C29: HOMICIDIO CULPOSO EN ACC DE TTO. | D29: 50 | E29: 46 | F29: 1 | G29: 1 | H29: 3 | I29: 3 | J29: 1 | L29: 1 | M29: 1 | N29: 3 | O29: 3 | P29: 1 | Q29: 1 | T29: 1 | U29: 1 | V29: 61 | W29: 56 | AC29: 0.9180327869
C30: HOMICIDIO DOLOSO | D30: 18 | E30: 6 | F30: 7 | G30: 4 | H30: 3 | I30: 2 | J30: 1 | T30: 1 | U30: 1 | V30: 30 | W30: 13 | AC30: 0.4333333333
C31: HURTO | D31: 68 | E31: 29 | F31: 8 | G31: 3 | H31: 16 | I31: 6 | J31: 1 | K31: 1 | L31: 1 | N31: 2 | O31: 1 | P31: 2 | Q31: 1 | R31: 1 | S31: 1 | T31: 3 | U31: 2 | V31: =(D31+F31+H31+J31+L31+N31+P31+R31+T31) -> 102 | W31: =(E31+G31+I31+K31+M31+O31+Q31+S31+U31) -> 44 | AC31: 0.431372549
C32: HURTO AGRAVADO | D32: 51 | E32: 13 | F32: 5 | G32: 2 | H32: 7 | I32: 3 | L32: 2 | N32: 8 | R32: 2 | S32: 2 | V32: =(D32+F32+H32+J32+L32+N32+P32+R32+T32) -> 75 | W32: =(E32+G32+I32+K32+M32+O32+Q32+S32+U32) -> 20 | AC32: 0.2666666667
C33: LESION CULPOSA EN ACC. DE TTO. | D33: 145 | E33: 138 | F33: 14 | G33: 13 | H33: 15 | I33: 13 | J33: 2 | K33: 2 | L33: 5 | M33: 5 | N33: 15 | O33: 15 | P33: 6 | Q33: 6 | V33: 202 | W33: 192 | AC33: 0.9504950495
C34: LESION | D34: 80 | E34: 33 | F34: 19 | G34: 8 | H34: 6 | I34: 3 | J34: 3 | K34: 1 | L34: 1 | M34: 1 | R34: 1 | S34: 1 | T34: 3 | U34: 2 | V34: 113 | W34: 49 | AC34: 0.4336283186
C35: ROBO DE OBJETOS | D35: 25 | E35: 12 | F35: 8 | G35: 1 | H35: 2 | N35: 1 | T35: 1 | V35: 37 | W35: 13 | AC35: 0.3513513514
C36: ROBO AGRAVADO DE OBJETOS | D36: 67 | E36: 8 | F36: 12 | G36: 1 | H36: 7 | J36: 7 | K36: 1 | N36: 4 | O36: 1 | V36: 97 | W36: 11 | AC36: 0.1134020619
C37: ROBO DE VEHICULOS | D37: 46 | E37: 0 | F37: 2 | V37: 48 | W37: 0 | AC37: =(W37/V37) -> 0
C38: ROBO AGRAVADO DE VEHICULOS | D38: 3 | E38: 0 | F38: 2 | G38: 1 | J38: 1 | K38: 1 | N38: 1 | O38: 1 | V38: 7 | W38: 3 | AC38: 0.4285714286
C39: ROBO DE MOTOCICLETAS | D39: 163 | E39: 9 | F39: 6 | G39: 1 | H39: 5 | J39: 2 | L39: 1 | N39: 2 | O39: 1 | P39: 4 | Q39: 1 | T39: 1 | V39: 184 | W39: 12 | AC39: 0.0652173913
C40: ROBO AGRAVADO DE MOTOCICLETAS | D40: =(X20) -> 19 | E40: =(Y20) -> 2 | F40: 3 | H40: 4 | I40: 2 | V40: =(D40+F40+H40+J40+L40+N40+P40+R40+T40) -> 26 | W40: =(E40+G40+I40+K40+M40+O40+Q40+S40+U40) -> 4 | AC40: 0.1538461538
C41: TOTAL | D41: =+(D21+F21+H21+J21+L21+N21+P21+R21+T21+V21) -> 816 | E41: =+(E21+G21+I21+K21+M21+O21+Q21+S21+U21+W21) -> 329 | F41: =SUM(F27:F40) -> 92 | G41: =SUM(G27:G40) -> 38 | H41: 82 | I41: 35 | J41: 18 | K41: 6 | L41: 14 | M41: 8 | N41: 50 | O41: 25 | P41: 20 | Q41: 13 | R41: 5 | S41: 5 | T41: 11 | U41: 7 | V41: 1108 | W41: 466
C42: PORCENTAJE DE ACLARADOS | D42: =+(E41/D41) -> 0.4031862745 | F42: =+(G41/F41) -> 0.4130434783 | H42: =+(I41/H41) -> 0.4268292683 | J42: =+(K41/J41) -> 0.3333333333 | L42: =+(M41/L41) -> 0.5714285714 | N42: =+(O41/N41) -> 0.5 | P42: =+(Q41/P41) -> 0.65 | R42: =+(S41/R41) -> 1 | T42: =+(U41/T41) -> 0.6363636364 | V42: =+(W41/V41) -> 0.4205776173
C44: FUENTE: ELABORADO EN EL DPTO. DE ESTADISTICA EN BASE A DATOS PROPORCIONADOS POR LA DIRECCION GENERAL. DE PREVENCION Y SEGURIDAD.

Sheet GRAF 5
B1: INFORME ESTADISTICO MENSUAL 3 | Q1: POLICIA NACIONAL - DPTO. DE ESTADISTICA
D5: HECHOS PUNIBLES MAS RESALTANTES, DENUNCIADOS EN TODO EL PAÍS. MAYO 2020
T7: DENUNCIADOS
S8: ABIGEATO | T8: 77
S9: COACCION SEXUAL | T9: 50
S10: HOMICIDIO CULPOSO EN ACC DE TTO. | T10: 60
S11: HOMICIDIO DOLOSO | T11: 31
S12: HURTO | T12: 102
S13: HURTO AGRAVADO | T13: 75
S14: LESION CULPOSA EN ACC. DE TTO. | T14: 203
S15: LESION | T15: 112
S16: ROBO DE OBJETOS | T16: 38
S17: ROBO AGRAVADO DE OBJETOS | T17: 97
S18: ROBO DE VEHICULOS | T18: 48
S19: ROBO AGRAVADO DE VEHICULOS | T19: 11
S20: ROBO DE MOTOCICLETAS | T20: 180
S21: ROBO AGRAVADO DE MOTOCICLETAS | T21: 26
T22: =SUM(T8:T21) -> 1110
D41: FUENTE: ELABORADO EN EL DPTO. DE ESTADISTICA EN BASE A DATOS PROPORCIONADOS POR LA DIRECCION GENERAL PREVENCION Y SEGURIDAD.

Sheet JUNIO
A1: INFORME ESTADISTICO MENSUAL 4 | AA1: POLICIA NACIONAL - DPTO. DE ESTADISTICA
C2: HECHOS PUNIBLES MAS RESALTANTES,DENUNCIADOS Y ACLARADOS EN TODO EL PAÍS POR ZONAS POLICIALES. JUNIO 2020
C4: HECHOS PUNIBLES | D4: DIRECCIONES POLICIALES | X4: SUB TOTAL
D5: Asuncion | F5: Central | H5: Cordillera | J5: Amambay | L5: Concepcion | N5: Alto Py. | P5: San Pedro | R5: Caaguazu | T5: Caazapa | V5: Guaira
D6: D | E6: A | F6: D | G6: A | H6: D | I6: A | J6: D | K6: A | L6: D | M6: A | N6: D | O6: A | P6: D | Q6: A | R6: D | S6: A | T6: D | U6: A | V6: D | W6: A | X6: D | Y6: A
C7: ABIGEATO | F7: 1 | H7: 4 | J7: 2 | K7: 2 | L7: 1 | M7: 1 | P7: 13 | Q7: 3 | R7: 3 | T7: 5 | V7: 6 | W7: 1 | X7: =(D7+F7+H7+J7+L7+N7+P7+R7+T7+V7) -> 35 | Y7: 7
C8: COACCION SEXUAL | D8: 3 | E8: 2 | F8: 20 | G8: 16 | H8: 5 | I8: 2 | J8: 4 | K8: 4 | L8: 1 | M8: 1 | P8: 1 | X8: 34 | Y8: 25
C9: HOMICIDIO CULPOSO EN ACC DE TTO. | F9: 8 | G9: 7 | H9: 3 | I9: 3 | J9: 4 | K9: 4 | L9: 4 | M9: 4 | P9: 7 | Q9: 5 | R9: 3 | S9: 3 | T9: 2 | U9: 2 | V9: 3 | W9: 3 | X9: 34 | Y9: 31
C10: HOMICIDIO DOLOSO | D10: 7 | E10: 2 | F10: 4 | G10: 4 | J10: 8 | K10: 3 | L10: 5 | M10: 2 | N10: 1 | V10: 3 | X10: 28 | Y10: 11
C11: HURTO | D11: 20 | E11: 7 | F11: 40 | G11: 17 | H11: 8 | I11: 2 | J11: 2 | P11: 2 | R11: 2 | S11: 2 | T11: 1 | V11: 5 | W11: 3 | X11: =(D11+F11+H11+J11+L11+N11+P11+R11+T11+V11) -> 80 | Y11: =(E11+G11+I11+K11+M11+O11+Q11+S11+U11+W11) -> 31
C12: HURTO AGRAVADO | D12: 16 | E12: 6 | F12: 36 | G12: 10 | H12: 7 | I12: 1 | J12: 2 | K12: 1 | L12: 3 | P12: 3 | Q12: 1 | R12: 3 | T12: 1 | V12: 3 | W12: 2 | X12: =(D12+F12+H12+J12+L12+N12+P12+R12+T12+V12) -> 74 | Y12: =(E12+G12+I12+K12+M12+O12+Q12+S12+U12+W12) -> 21
C13: LESION CULPOSA EN ACC. DE TTO. | D13: 21 | E13: 21 | F13: 61 | G13: 59 | H13: 15 | I13: 14 | J13: 15 | K13: 12 | L13: 6 | M13: 4 | P13: 12 | Q13: 12 | R13: 29 | S13: 28 | T13: 5 | U13: 5 | V13: 11 | W13: 11 | X13: 175 | Y13: 166
C14: LESION | D14: 10 | E14: 8 | F14: 33 | G14: 14 | H14: 2 | J14: 13 | K14: 6 | L14: 4 | M14: 4 | N14: 1 | P14: 7 | Q14: 3 | R14: 15 | S14: 9 | T14: 1 | V14: 5 | W14: 5 | X14: 91 | Y14: 49
C15: ROBO DE OBJETOS | D15: 5 | E15: 4 | F15: 15 | G15: 5 | H15: 2 | I15: 1 | J15: 1 | L15: 4 | X15: 27 | Y15: 10
C16: ROBO AGRAVADO DE OBJETOS | D16: 7 | E16: 1 | F16: 58 | G16: 8 | H16: 3 | J16: 6 | K16: 1 | L16: 3 | M16: 1 | P16: 9 | R16: 8 | S16: 1 | T16: 2 | V16: 1 | X16: 97 | Y16: 12
C17: ROBO DE VEHICULOS | D17: 23 | F17: 20 | G17: 2 | P17: 1 | Q17: 1 | R17: 2 | X17: 46 | Y17: 3
C18: ROBO AGRAVADO DE VEHICULOS | F18: 4 | H18: 2 | R18: 2 | S18: 1 | X18: 8 | Y18: 1
C19: ROBO DE MOTOCICLETAS | D19: 78 | E19: 2 | F19: 80 | G19: 3 | H19: 4 | J19: 2 | L19: 2 | N19: 1 | P19: 3 | Q19: 1 | R19: 9 | T19: 4 | U19: 1 | V19: 1 | W19: 1 | X19: 184 | Y19: 8
C20: ROBO AGRAVADO DE MOTOCICLETAS | F20: 18 | J20: 2 | L20: 2 | P20: 4 | Q20: 2 | T20: 2 | V20: 2 | W20: 2 | X20: 30 | Y20: 4
C21: TOTAL | D21: =D7+D8+D9+D10+D11+D12+D13+D14+D15+D16+D17+D18+D19+D20 -> 190 | E21: =E7+E8+E9+E10+E11+E12+E13+E14+E15+E16+E17+E18+E19+E20 -> 53 | F21: 398 | G21: 145 | H21: 55 | I21: 23 | J21: 61 | K21: 33 | L21: 35 | M21: 17 | N21: 3 | O21: 0 | P21: 62 | Q21: 28 | R21: 76 | S21: 44 | T21: 23 | U21: 8 | V21: 40 | W21: 28 | X21: =SUM(X7:X20) -> 943 | Y21: =SUM(Y7:Y20) -> 379
C22: PORCENTAJE DE ACLARADOS | D22: =+(E21/D21) -> 0.2789473684 | F22: =+(G21/F21) -> 0.364321608 | H22: =+(I21/H21) -> 0.4181818182 | J22: =+(K21/J21) -> 0.5409836066 | L22: =+(M21/L21) -> 0.4857142857 | N22: =+(O21/N21) -> 0 | P22: =+(Q21/P21) -> 0.4516129032 | R22: =+(S21/R21) -> 0.5789473684 | T22: =+(U21/T21) -> 0.347826087 | V22: =+(W21/V21) -> 0.7 | X22: =+(Y21/X21) -> 0.4019088017
C24: HECHOS PUNIBLES | D24: TRANSPORTE | F24: DIRECCIONES POLICIALES | V24: TOTAL
F25: Alto Paraná | H25: Itapua | J25: Canindeyú | L25: Misiones | N25: Paraguari | P25: Ñeembucu | R25: Boqueron | T25: Pte Hayes
D26: D | E26: A | F26: D | G26: A | H26: D | I26: A | J26: D | K26: A | L26: D | M26: A | N26: D | O26: A | P26: D | Q26: A | R26: D | S26: A | T26: D | U26: A | V26: D | W26: A
C27: ABIGEATO | D27: =(X7) -> 35 | E27: 7 | F27: 2 | H27: 3 | L27: 1 | N27: 10 | O27: 6 | P27: 9 | Q27: 3 | V27: =(D27+F27+H27+J27+L27+N27+P27+R27+T27) -> 60 | W27: =(E27+G27+I27+K27+M27+O27+Q27+S27+U27) -> 16 | AC27: =(W27/V27) -> 0.2666666667
C28: COACCION SEXUAL | D28: 34 | E28: 25 | F28: 7 | G28: 2 | H28: 4 | J28: 2 | K28: 1 | L28: 1 | N28: 2 | O28: 1 | P28: 1 | V28: 51 | W28: =(E28+G28+I28+K28+M28+O28+Q28+S28+U28) -> 29 | AC28: =(W28/V28) -> 0.568627451
C29: HOMICIDIO CULPOSO EN ACC DE TTO. | D29: 34 | E29: 31 | F29: 6 | G29: 5 | H29: 3 | I29: 3 | J29: 2 | K29: 2 | N29: 1 | O29: 1 | T29: 2 | U29: 2 | V29: 48 | W29: 44 | AC29: 0.9166666667
C30: HOMICIDIO DOLOSO | D30: 28 | E30: 11 | F30: 3 | G30: 1 | H30: 1 | I30: 1 | J30: 2 | N30: 1 | O30: 1 | T30: 1 | U30: 1 | V30: 36 | W30: 15 | AC30: 0.4166666667
C31: HURTO | D31: 80 | E31: 31 | F31: 11 | G31: 7 | H31: 8 | J31: 4 | K31: 1 | L31: 2 | M31: 2 | N31: 7 | O31: 1 | P31: 2 | R31: 1 | T31: 4 | U31: 1 | V31: =(D31+F31+H31+J31+L31+N31+P31+R31+T31) -> 119 | W31: =(E31+G31+I31+K31+M31+O31+Q31+S31+U31) -> 43 | AC31: 0.3613445378
C32: HURTO AGRAVADO | D32: 74 | E32: 21 | F32: 10 | G32: 1 | H32: 5 | J32: 4 | K32: 1 | N32: 4 | P32: 3 | T32: 1 | V32: =(D32+F32+H32+J32+L32+N32+P32+R32+T32) -> 101 | W32: =(E32+G32+I32+K32+M32+O32+Q32+S32+U32) -> 23 | AC32: 0.2277227723
C33: LESION CULPOSA EN ACC. DE TTO. | D33: 175 | E33: 166 | F33: 13 | G33: 10 | H33: 11 | I33: 11 | L33: 4 | M33: 4 | N33: 11 | O33: 11 | P33: 12 | Q33: 12 | R33: 1 | S33: 1 | T33: 4 | U33: 4 | V33: 231 | W33: 219 | AC33: 0.9480519481
C34: LESION | D34: 91 | E34: 49 | F34: 12 | G34: 2 | H34: 7 | I34: 2 | J34: 6 | K34: 1 | N34: 4 | P34: 1 | V34: 121 | W34: 54 | AC34: 0.4462809917
C35: ROBO DE OBJETOS | D35: 27 | E35: 10 | F35: 3 | H35: 1 | J35: 1 | N35: 2 | O35: 2 | V35: 34 | W35: 12 | AC35: 0.3529411765
C36: ROBO AGRAVADO DE OBJETOS | D36: 97 | E36: 12 | F36: 19 | G36: 3 | H36: 5 | J36: 1 | V36: 122 | W36: 15 | AC36: 0.1229508197
C37: ROBO DE VEHICULOS | D37: 46 | E37: 3 | H37: 3 | I37: 2 | J37: 1 | V37: 50 | W37: 5 | AC37: 0.1
C38: ROBO AGRAVADO DE VEHICULOS | D38: 8 | E38: 1 | F38: 2 | G38: 1 | V38: 10 | W38: 2 | AC38: 0.2
C39: ROBO DE MOTOCICLETAS | D39: 184 | E39: 8 | F39: 8 | G39: 1 | H39: 13 | J39: 1 | N39: 2 | P39: 1 | R39: 1 | S39: 1 | T39: 4 | U39: 2 | V39: 214 | W39: 12 | AC39: 0.05607476636
C40: ROBO AGRAVADO DE MOTOCICLETAS | D40: =(X20) -> 30 | E40: 2 | F40: 4 | J40: 1 | N40: 1 | V40: 36 | W40: 2 | AC40: 0.05555555556
C41: TOTAL | D41: =+(D21+F21+H21+J21+L21+N21+P21+R21+T21+V21) -> 943 | E41: =+(E21+G21+I21+K21+M21+O21+Q21+S21+U21+W21) -> 379 | F41: =SUM(F27:F40) -> 100 | G41: =SUM(G27:G40) -> 33 | H41: 64 | I41: 19 | J41: 25 | K41: 6 | L41: 8 | M41: 6 | N41: 45 | O41: 23 | P41: 29 | Q41: 15 | R41: 3 | S41: 2 | T41: 16 | U41: 10 | V41: =SUM(V27:V40) -> 1233 | W41: =SUM(W27:W40) -> 491
C42: PORCENTAJE DE ACLARADOS | D42: =+(E41/D41) -> 0.4019088017 | F42: =+(G41/F41) -> 0.33 | H42: =+(I41/H41) -> 0.296875 | J42: =+(K41/J41) -> 0.24 | L42: =+(M41/L41) -> 0.75 | N42: =+(O41/N41) -> 0.5111111111 | P42: =+(Q41/P41) -> 0.5172413793 | R42: =+(S41/R41) -> 0.6666666667 | T42: =+(U41/T41) -> 0.625 | V42: =+(W41/V41) -> 0.398215734
C44: FUENTE: ELABORADO EN EL DPTO. DE ESTADISTICA EN BASE A DATOS PROPORCIONADOS POR LA DIRECCION GENERAL. DE PREVENCION Y SEGURIDAD.

Sheet GRAF 6
B1: INFORME ESTADISTICO MENSUAL 3 | Q1: POLICIA NACIONAL - DPTO. DE ESTADISTICA
D5: HECHOS PUNIBLES MAS RESALTANTES, DENUNCIADOS EN TODO EL PAÍS. JUNIO 2020
T7: DENUNCIADOS
S8: ABIGEATO | T8: 60
S9: COACCION SEXUAL | T9: 51
S10: HOMICIDIO CULPOSO EN ACC DE TTO. | T10: 48
S11: HOMICIDIO DOLOSO | T11: 36
S12: HURTO | T12: 119
S13: HURTO AGRAVADO | T13: 101
S14: LESION CULPOSA EN ACC. DE TTO. | T14: 231
S15: LESION | T15: 121
S16: ROBO DE OBJETOS | T16: 34
S17: ROBO AGRAVADO DE OBJETOS | T17: 122
S18: ROBO DE VEHICULOS | T18: 50
S19: ROBO AGRAVADO DE VEHICULOS | T19: 10
S20: ROBO DE MOTOCICLETAS | T20: 214
S21: ROBO AGRAVADO DE MOTOCICLETAS | T21: 36
T22: =SUM(T8:T21) -> 1233
D41: FUENTE: ELABORADO EN EL DPTO. DE ESTADISTICA EN BASE A DATOS PROPORCIONADOS POR LA DIRECCION GENERAL PREVENCION Y SEGURIDAD.

Sheet 1ER SEMESTRE
A1: INFORME ESTADISTICO PRIMER SEMESTRE 4 | AA1: POLICIA NACIONAL - DPTO. DE ESTADISTICA
C2: HECHOS PUNIBLES MAS RESALTANTES,DENUNCIADOS Y ACLARADOS EN TODO EL PAÍS POR ZONAS POLICIALES. PRIMER SEMESTRE 2020
C4: HECHOS PUNIBLES | D4: DIRECCIONES POLICIALES | X4: SUB TOTAL
D5: Asuncion | F5: Central | H5: Cordillera | J5: Amambay | L5: Concepcion | N5: Alto Py. | P5: San Pedro | R5: Caaguazu | T5: Caazapa | V5: Guaira
D6: D | E6: A | F6: D | G6: A | H6: D | I6: A | J6: D | K6: A | L6: D | M6: A | N6: D | O6: A | P6: D | Q6: A | R6: D | S6: A | T6: D | U6: A | V6: D | W6: A | X6: D | Y6: A
C7: ABIGEATO | D7: ='ENERO ok'!D7+' FEBRE'!D7+MARZO!D7+ABRIL!D7+MAYO!D7+JUNIO!D7 -> 0 | E7: ='ENERO ok'!E7+' FEBRE'!E7+MARZO!E7+ABRIL!E7+MAYO!E7+JUNIO!E7 -> 0 | F7: ='ENERO ok'!F7+' FEBRE'!F7+MARZO!F7+ABRIL!F7+MAYO!F7+JUNIO!F7 -> 19 | G7: ='ENERO ok'!G7+' FEBRE'!G7+MARZO!G7+ABRIL!G7+MAYO!G7+JUNIO!G7 -> 1 | H7: ='ENERO ok'!H7+' FEBRE'!H7+MARZO!H7+ABRIL!H7+MAYO!H7+JUNIO!H7 -> 44 | I7: ='ENERO ok'!I7+' FEBRE'!I7+MARZO!I7+ABRIL!I7+MAYO!I7+JUNIO!I7 -> 5 | J7: ='ENERO ok'!J7+' FEBRE'!J7+MARZO!J7+ABRIL!J7+MAYO!J7+JUNIO!J7 -> 5 | K7: ='ENERO ok'!K7+' FEBRE'!K7+MARZO!K7+ABRIL!K7+MAYO!K7+JUNIO!K7 -> 2 | L7: ='ENERO ok'!L7+' FEBRE'!L7+MARZO!L7+ABRIL!L7+MAYO!L7+JUNIO!L7 -> 8 | M7: ='ENERO ok'!M7+' FEBRE'!M7+MARZO!M7+ABRIL!M7+MAYO!M7+JUNIO!M7 -> 4 | N7: ='ENERO ok'!N7+' FEBRE'!N7+MARZO!N7+ABRIL!N7+MAYO!N7+JUNIO!N7 -> 4 | O7: ='ENERO ok'!O7+' FEBRE'!O7+MARZO!O7+ABRIL!O7+MAYO!O7+JUNIO!O7 -> 0 | P7: ='ENERO ok'!P7+' FEBRE'!P7+MARZO!P7+ABRIL!P7+MAYO!P7+JUNIO!P7 -> 33 | Q7: ='ENERO ok'!Q7+' FEBRE'!Q7+MARZO!Q7+ABRIL!Q7+MAYO!Q7+JUNIO!Q7 -> 7 | R7: ='ENERO ok'!R7+' FEBRE'!R7+MARZO!R7+ABRIL!R7+MAYO!R7+JUNIO!R7 -> 30 | S7: ='ENERO ok'!S7+' FEBRE'!S7+MARZO!S7+ABRIL!S7+MAYO!S7+JUNIO!S7 -> 5 | T7: ='ENERO ok'!T7+' FEBRE'!T7+MARZO!T7+ABRIL!T7+MAYO!T7+JUNIO!T7 -> 30 | U7: ='ENERO ok'!U7+' FEBRE'!U7+MARZO!U7+ABRIL!U7+MAYO!U7+JUNIO!U7 -> 5 | V7: ='ENERO ok'!V7+' FEBRE'!V7+MARZO!V7+ABRIL!V7+MAYO!V7+JUNIO!V7 -> 26 | W7: ='ENERO ok'!W7+' FEBRE'!W7+MARZO!W7+ABRIL!W7+MAYO!W7+JUNIO!W7 -> 6 | X7: =(D7+F7+H7+J7+L7+N7+P7+R7+T7+V7) -> 199 | Y7: 35
C8: COACCION SEXUAL | D8: ='ENERO ok'!D8+' FEBRE'!D8+MARZO!D8+ABRIL!D8+MAYO!D8+JUNIO!D8 -> 20 | E8: ='ENERO ok'!E8+' FEBRE'!E8+MARZO!E8+ABRIL!E8+MAYO!E8+JUNIO!E8 -> 13 | F8: ='ENERO ok'!F8+' FEBRE'!F8+MARZO!F8+ABRIL!F8+MAYO!F8+JUNIO!F8 -> 81 | G8: ='ENERO ok'!G8+' FEBRE'!G8+MARZO!G8+ABRIL!G8+MAYO!G8+JUNIO!G8 -> 63 | H8: ='ENERO ok'!H8+' FEBRE'!H8+MARZO!H8+ABRIL!H8+MAYO!H8+JUNIO!H8 -> 19 | I8: ='ENERO ok'!I8+' FEBRE'!I8+MARZO!I8+ABRIL!I8+MAYO!I8+JUNIO!I8 -> 8 | J8: ='ENERO ok'!J8+' FEBRE'!J8+MARZO!J8+ABRIL!J8+MAYO!J8+JUNIO!J8 -> 12 | K8: ='ENERO ok'!K8+' FEBRE'!K8+MARZO!K8+ABRIL!K8+MAYO!K8+JUNIO!K8 -> 7 | L8: ='ENERO ok'!L8+' FEBRE'!L8+MARZO!L8+ABRIL!L8+MAYO!L8+JUNIO!L8 -> 8 | M8: ='ENERO ok'!M8+' FEBRE'!M8+MARZO!M8+ABRIL!M8+MAYO!M8+JUNIO!M8 -> 6 | N8: ='ENERO ok'!N8+' FEBRE'!N8+MARZO!N8+ABRIL!N8+MAYO!N8+JUNIO!N8 -> 0 | O8: ='ENERO ok'!O8+' FEBRE'!O8+MARZO!O8+ABRIL!O8+MAYO!O8+JUNIO!O8 -> 0 | P8: ='ENERO ok'!P8+' FEBRE'!P8+MARZO!P8+ABRIL!P8+MAYO!P8+JUNIO!P8 -> 12 | Q8: ='ENERO ok'!Q8+' FEBRE'!Q8+MARZO!Q8+ABRIL!Q8+MAYO!Q8+JUNIO!Q8 -> 6 | R8: ='ENERO ok'!R8+' FEBRE'!R8+MARZO!R8+ABRIL!R8+MAYO!R8+JUNIO!R8 -> 12 | S8: ='ENERO ok'!S8+' FEBRE'!S8+MARZO!S8+ABRIL!S8+MAYO!S8+JUNIO!S8 -> 4 | T8: ='ENERO ok'!T8+' FEBRE'!T8+MARZO!T8+ABRIL!T8+MAYO!T8+JUNIO!T8 -> 8 | U8: ='ENERO ok'!U8+' FEBRE'!U8+MARZO!U8+ABRIL!U8+MAYO!U8+JUNIO!U8 -> 4 | V8: ='ENERO ok'!V8+' FEBRE'!V8+MARZO!V8+ABRIL!V8+MAYO!V8+JUNIO!V8 -> 6 | W8: ='ENERO ok'!W8+' FEBRE'!W8+MARZO!W8+ABRIL!W8+MAYO!W8+JUNIO!W8 -> 3 | X8: 178 | Y8: 114
C9: HOMICIDIO CULPOSO EN ACC DE TTO. | D9: ='ENERO ok'!D9+' FEBRE'!D9+MARZO!D9+ABRIL!D9+MAYO!D9+JUNIO!D9 -> 13 | E9: ='ENERO ok'!E9+' FEBRE'!E9+MARZO!E9+ABRIL!E9+MAYO!E9+JUNIO!E9 -> 13 | F9: ='ENERO ok'!F9+' FEBRE'!F9+MARZO!F9+ABRIL!F9+MAYO!F9+JUNIO!F9 -> 77 | G9: ='ENERO ok'!G9+' FEBRE'!G9+MARZO!G9+ABRIL!G9+MAYO!G9+JUNIO!G9 -> 69 | H9: ='ENERO ok'!H9+' FEBRE'!H9+MARZO!H9+ABRIL!H9+MAYO!H9+JUNIO!H9 -> 12 | I9: ='ENERO ok'!I9+' FEBRE'!I9+MARZO!I9+ABRIL!I9+MAYO!I9+JUNIO!I9 -> 10 | J9: ='ENERO ok'!J9+' FEBRE'!J9+MARZO!J9+ABRIL!J9+MAYO!J9+JUNIO!J9 -> 14 | K9: ='ENERO ok'!K9+' FEBRE'!K9+MARZO!K9+ABRIL!K9+MAYO!K9+JUNIO!K9 -> 12 | L9: ='ENERO ok'!L9+' FEBRE'!L9+MARZO!L9+ABRIL!L9+MAYO!L9+JUNIO!L9 -> 18 | M9: ='ENERO ok'!M9+' FEBRE'!M9+MARZO!M9+ABRIL!M9+MAYO!M9+JUNIO!M9 -> 17 | N9: ='ENERO ok'!N9+' FEBRE'!N9+MARZO!N9+ABRIL!N9+MAYO!N9+JUNIO!N9 -> 1 | O9: ='ENERO ok'!O9+' FEBRE'!O9+MARZO!O9+ABRIL!O9+MAYO!O9+JUNIO!O9 -> 1 | P9: ='ENERO ok'!P9+' FEBRE'!P9+MARZO!P9+ABRIL!P9+MAYO!P9+JUNIO!P9 -> 43 | Q9: ='ENERO ok'!Q9+' FEBRE'!Q9+MARZO!Q9+ABRIL!Q9+MAYO!Q9+JUNIO!Q9 -> 39 | R9: ='ENERO ok'!R9+' FEBRE'!R9+MARZO!R9+ABRIL!R9+MAYO!R9+JUNIO!R9 -> 36 | S9: ='ENERO ok'!S9+' FEBRE'!S9+MARZO!S9+ABRIL!S9+MAYO!S9+JUNIO!S9 -> 34 | T9: ='ENERO ok'!T9+' FEBRE'!T9+MARZO!T9+ABRIL!T9+MAYO!T9+JUNIO!T9 -> 8 | U9: ='ENERO ok'!U9+' FEBRE'!U9+MARZO!U9+ABRIL!U9+MAYO!U9+JUNIO!U9 -> 7 | V9: ='ENERO ok'!V9+' FEBRE'!V9+MARZO!V9+ABRIL!V9+MAYO!V9+JUNIO!V9 -> 12 | W9: ='ENERO ok'!W9+' FEBRE'!W9+MARZO!W9+ABRIL!W9+MAYO!W9+JUNIO!W9 -> 10 | X9: 234 | Y9: 212
C10: HOMICIDIO DOLOSO | D10: ='ENERO ok'!D10+' FEBRE'!D10+MARZO!D10+ABRIL!D10+MAYO!D10+JUNIO!D10 -> 15 | E10: ='ENERO ok'!E10+' FEBRE'!E10+MARZO!E10+ABRIL!E10+MAYO!E10+JUNIO!E10 -> 7 | F10: ='ENERO ok'!F10+' FEBRE'!F10+MARZO!F10+ABRIL!F10+MAYO!F10+JUNIO!F10 -> 26 | G10: ='ENERO ok'!G10+' FEBRE'!G10+MARZO!G10+ABRIL!G10+MAYO!G10+JUNIO!G10 -> 17 | H10: ='ENERO ok'!H10+' FEBRE'!H10+MARZO!H10+ABRIL!H10+MAYO!H10+JUNIO!H10 -> 1 | I10: ='ENERO ok'!I10+' FEBRE'!I10+MARZO!I10+ABRIL!I10+MAYO!I10+JUNIO!I10 -> 0 | J10: ='ENERO ok'!J10+' FEBRE'!J10+MARZO!J10+ABRIL!J10+MAYO!J10+JUNIO!J10 -> 47 | K10: ='ENERO ok'!K10+' FEBRE'!K10+MARZO!K10+ABRIL!K10+MAYO!K10+JUNIO!K10 -> 8 | L10: ='ENERO ok'!L10+' FEBRE'!L10+MARZO!L10+ABRIL!L10+MAYO!L10+JUNIO!L10 -> 18 | M10: ='ENERO ok'!M10+' FEBRE'!M10+MARZO!M10+ABRIL!M10+MAYO!M10+JUNIO!M10 -> 8 | N10: ='ENERO ok'!N10+' FEBRE'!N10+MARZO!N10+ABRIL!N10+MAYO!N10+JUNIO!N10 -> 5 | O10: ='ENERO ok'!O10+' FEBRE'!O10+MARZO!O10+ABRIL!O10+MAYO!O10+JUNIO!O10 -> 1 | P10: ='ENERO ok'!P10+' FEBRE'!P10+MARZO!P10+ABRIL!P10+MAYO!P10+JUNIO!P10 -> 7 | Q10: ='ENERO ok'!Q10+' FEBRE'!Q10+MARZO!Q10+ABRIL!Q10+MAYO!Q10+JUNIO!Q10 -> 3 | R10: ='ENERO ok'!R10+' FEBRE'!R10+MARZO!R10+ABRIL!R10+MAYO!R10+JUNIO!R10 -> 4 | S10: ='ENERO ok'!S10+' FEBRE'!S10+MARZO!S10+ABRIL!S10+MAYO!S10+JUNIO!S10 -> 2 | T10: ='ENERO ok'!T10+' FEBRE'!T10+MARZO!T10+ABRIL!T10+MAYO!T10+JUNIO!T10 -> 8 | U10: ='ENERO ok'!U10+' FEBRE'!U10+MARZO!U10+ABRIL!U10+MAYO!U10+JUNIO!U10 -> 2 | V10: ='ENERO ok'!V10+' FEBRE'!V10+MARZO!V10+ABRIL!V10+MAYO!V10+JUNIO!V10 -> 9 | W10: ='ENERO ok'!W10+' FEBRE'!W10+MARZO!W10+ABRIL!W10+MAYO!W10+JUNIO!W10 -> 2 | X10: 140 | Y10: 50
C11: HURTO | D11: ='ENERO ok'!D11+' FEBRE'!D11+MARZO!D11+ABRIL!D11+MAYO!D11+JUNIO!D11 -> 101 | E11: ='ENERO ok'!E11+' FEBRE'!E11+MARZO!E11+ABRIL!E11+MAYO!E11+JUNIO!E11 -> 57 | F11: ='ENERO ok'!F11+' FEBRE'!F11+MARZO!F11+ABRIL!F11+MAYO!F11+JUNIO!F11 -> 245 | G11: ='ENERO ok'!G11+' FEBRE'!G11+MARZO!G11+ABRIL!G11+MAYO!G11+JUNIO!G11 -> 135 | H11: ='ENERO ok'!H11+' FEBRE'!H11+MARZO!H11+ABRIL!H11+MAYO!H11+JUNIO!H11 -> 42 | I11: ='ENERO ok'!I11+' FEBRE'!I11+MARZO!I11+ABRIL!I11+MAYO!I11+JUNIO!I11 -> 12 | J11: ='ENERO ok'!J11+' FEBRE'!J11+MARZO!J11+ABRIL!J11+MAYO!J11+JUNIO!J11 -> 15 | K11: ='ENERO ok'!K11+' FEBRE'!K11+MARZO!K11+ABRIL!K11+MAYO!K11+JUNIO!K11 -> 7 | L11: ='ENERO ok'!L11+' FEBRE'!L11+MARZO!L11+ABRIL!L11+MAYO!L11+JUNIO!L11 -> 9 | M11: ='ENERO ok'!M11+' FEBRE'!M11+MARZO!M11+ABRIL!M11+MAYO!M11+JUNIO!M11 -> 4 | N11: ='ENERO ok'!N11+' FEBRE'!N11+MARZO!N11+ABRIL!N11+MAYO!N11+JUNIO!N11 -> 2 | O11: ='ENERO ok'!O11+' FEBRE'!O11+MARZO!O11+ABRIL!O11+MAYO!O11+JUNIO!O11 -> 0 | P11: ='ENERO ok'!P11+' FEBRE'!P11+MARZO!P11+ABRIL!P11+MAYO!P11+JUNIO!P11 -> 12 | Q11: ='ENERO ok'!Q11+' FEBRE'!Q11+MARZO!Q11+ABRIL!Q11+MAYO!Q11+JUNIO!Q11 -> 8 | R11: ='ENERO ok'!R11+' FEBRE'!R11+MARZO!R11+ABRIL!R11+MAYO!R11+JUNIO!R11 -> 34 | S11: ='ENERO ok'!S11+' FEBRE'!S11+MARZO!S11+ABRIL!S11+MAYO!S11+JUNIO!S11 -> 15 | T11: ='ENERO ok'!T11+' FEBRE'!T11+MARZO!T11+ABRIL!T11+MAYO!T11+JUNIO!T11 -> 7 | U11: ='ENERO ok'!U11+' FEBRE'!U11+MARZO!U11+ABRIL!U11+MAYO!U11+JUNIO!U11 -> 1 | V11: ='ENERO ok'!V11+' FEBRE'!V11+MARZO!V11+ABRIL!V11+MAYO!V11+JUNIO!V11 -> 20 | W11: ='ENERO ok'!W11+' FEBRE'!W11+MARZO!W11+ABRIL!W11+MAYO!W11+JUNIO!W11 -> 13 | X11: =(D11+F11+H11+J11+L11+N11+P11+R11+T11+V11) -> 487 | Y11: =(E11+G11+I11+K11+M11+O11+Q11+S11+U11+W11) -> 252
C12: HURTO AGRAVADO | D12: ='ENERO ok'!D12+' FEBRE'!D12+MARZO!D12+ABRIL!D12+MAYO!D12+JUNIO!D12 -> 78 | E12: ='ENERO ok'!E12+' FEBRE'!E12+MARZO!E12+ABRIL!E12+MAYO!E12+JUNIO!E12 -> 29 | F12: ='ENERO ok'!F12+' FEBRE'!F12+MARZO!F12+ABRIL!F12+MAYO!F12+JUNIO!F12 -> 188 | G12: ='ENERO ok'!G12+' FEBRE'!G12+MARZO!G12+ABRIL!G12+MAYO!G12+JUNIO!G12 -> 70 | H12: ='ENERO ok'!H12+' FEBRE'!H12+MARZO!H12+ABRIL!H12+MAYO!H12+JUNIO!H12 -> 34 | I12: ='ENERO ok'!I12+' FEBRE'!I12+MARZO!I12+ABRIL!I12+MAYO!I12+JUNIO!I12 -> 7 | J12: ='ENERO ok'!J12+' FEBRE'!J12+MARZO!J12+ABRIL!J12+MAYO!J12+JUNIO!J12 -> 16 | K12: ='ENERO ok'!K12+' FEBRE'!K12+MARZO!K12+ABRIL!K12+MAYO!K12+JUNIO!K12 -> 5 | L12: ='ENERO ok'!L12+' FEBRE'!L12+MARZO!L12+ABRIL!L12+MAYO!L12+JUNIO!L12 -> 18 | M12: ='ENERO ok'!M12+' FEBRE'!M12+MARZO!M12+ABRIL!M12+MAYO!M12+JUNIO!M12 -> 4 | N12: ='ENERO ok'!N12+' FEBRE'!N12+MARZO!N12+ABRIL!N12+MAYO!N12+JUNIO!N12 -> 0 | O12: ='ENERO ok'!O12+' FEBRE'!O12+MARZO!O12+ABRIL!O12+MAYO!O12+JUNIO!O12 -> 0 | P12: ='ENERO ok'!P12+' FEBRE'!P12+MARZO!P12+ABRIL!P12+MAYO!P12+JUNIO!P12 -> 17 | Q12: ='ENERO ok'!Q12+' FEBRE'!Q12+MARZO!Q12+ABRIL!Q12+MAYO!Q12+JUNIO!Q12 -> 6 | R12: ='ENERO ok'!R12+' FEBRE'!R12+MARZO!R12+ABRIL!R12+MAYO!R12+JUNIO!R12 -> 31 | S12: ='ENERO ok'!S12+' FEBRE'!S12+MARZO!S12+ABRIL!S12+MAYO!S12+JUNIO!S12 -> 5 | T12: ='ENERO ok'!T12+' FEBRE'!T12+MARZO!T12+ABRIL!T12+MAYO!T12+JUNIO!T12 -> 17 | U12: ='ENERO ok'!U12+' FEBRE'!U12+MARZO!U12+ABRIL!U12+MAYO!U12+JUNIO!U12 -> 1 | V12: ='ENERO ok'!V12+' FEBRE'!V12+MARZO!V12+ABRIL!V12+MAYO!V12+JUNIO!V12 -> 15 | W12: ='ENERO ok'!W12+' FEBRE'!W12+MARZO!W12+ABRIL!W12+MAYO!W12+JUNIO!W12 -> 8 | X12: =(D12+F12+H12+J12+L12+N12+P12+R12+T12+V12) -> 414 | Y12: =(E12+G12+I12+K12+M12+O12+Q12+S12+U12+W12) -> 135
C13: LESION CULPOSA EN ACC. DE TTO. | D13: ='ENERO ok'!D13+' FEBRE'!D13+MARZO!D13+ABRIL!D13+MAYO!D13+JUNIO!D13 -> 80 | E13: ='ENERO ok'!E13+' FEBRE'!E13+MARZO!E13+ABRIL!E13+MAYO!E13+JUNIO!E13 -> 79 | F13: ='ENERO ok'!F13+' FEBRE'!F13+MARZO!F13+ABRIL!F13+MAYO!F13+JUNIO!F13 -> 285 | G13: ='ENERO ok'!G13+' FEBRE'!G13+MARZO!G13+ABRIL!G13+MAYO!G13+JUNIO!G13 -> 273 | H13: ='ENERO ok'!H13+' FEBRE'!H13+MARZO!H13+ABRIL!H13+MAYO!H13+JUNIO!H13 -> 81 | I13: ='ENERO ok'!I13+' FEBRE'!I13+MARZO!I13+ABRIL!I13+MAYO!I13+JUNIO!I13 -> 74 | J13: ='ENERO ok'!J13+' FEBRE'!J13+MARZO!J13+ABRIL!J13+MAYO!J13+JUNIO!J13 -> 47 | K13: ='ENERO ok'!K13+' FEBRE'!K13+MARZO!K13+ABRIL!K13+MAYO!K13+JUNIO!K13 -> 40 | L13: ='ENERO ok'!L13+' FEBRE'!L13+MARZO!L13+ABRIL!L13+MAYO!L13+JUNIO!L13 -> 42 | M13: ='ENERO ok'!M13+' FEBRE'!M13+MARZO!M13+ABRIL!M13+MAYO!M13+JUNIO!M13 -> 37 | N13: ='ENERO ok'!N13+' FEBRE'!N13+MARZO!N13+ABRIL!N13+MAYO!N13+JUNIO!N13 -> 0 | O13: ='ENERO ok'!O13+' FEBRE'!O13+MARZO!O13+ABRIL!O13+MAYO!O13+JUNIO!O13 -> 0 | P13: ='ENERO ok'!P13+' FEBRE'!P13+MARZO!P13+ABRIL!P13+MAYO!P13+JUNIO!P13 -> 65 | Q13: ='ENERO ok'!Q13+' FEBRE'!Q13+MARZO!Q13+ABRIL!Q13+MAYO!Q13+JUNIO!Q13 -> 61 | R13: ='ENERO ok'!R13+' FEBRE'!R13+MARZO!R13+ABRIL!R13+MAYO!R13+JUNIO!R13 -> 148 | S13: ='ENERO ok'!S13+' FEBRE'!S13+MARZO!S13+ABRIL!S13+MAYO!S13+JUNIO!S13 -> 133 | T13: ='ENERO ok'!T13+' FEBRE'!T13+MARZO!T13+ABRIL!T13+MAYO!T13+JUNIO!T13 -> 24 | U13: ='ENERO ok'!U13+' FEBRE'!U13+MARZO!U13+ABRIL!U13+MAYO!U13+JUNIO!U13 -> 23 | V13: ='ENERO ok'!V13+' FEBRE'!V13+MARZO!V13+ABRIL!V13+MAYO!V13+JUNIO!V13 -> 36 | W13: ='ENERO ok'!W13+' FEBRE'!W13+MARZO!W13+ABRIL!W13+MAYO!W13+JUNIO!W13 -> 30 | X13: 808 | Y13: 750
C14: LESION | D14: ='ENERO ok'!D14+' FEBRE'!D14+MARZO!D14+ABRIL!D14+MAYO!D14+JUNIO!D14 -> 83 | E14: ='ENERO ok'!E14+' FEBRE'!E14+MARZO!E14+ABRIL!E14+MAYO!E14+JUNIO!E14 -> 54 | F14: ='ENERO ok'!F14+' FEBRE'!F14+MARZO!F14+ABRIL!F14+MAYO!F14+JUNIO!F14 -> 211 | G14: ='ENERO ok'!G14+' FEBRE'!G14+MARZO!G14+ABRIL!G14+MAYO!G14+JUNIO!G14 -> 94 | H14: ='ENERO ok'!H14+' FEBRE'!H14+MARZO!H14+ABRIL!H14+MAYO!H14+JUNIO!H14 -> 23 | I14: ='ENERO ok'!I14+' FEBRE'!I14+MARZO!I14+ABRIL!I14+MAYO!I14+JUNIO!I14 -> 15 | J14: ='ENERO ok'!J14+' FEBRE'!J14+MARZO!J14+ABRIL!J14+MAYO!J14+JUNIO!J14 -> 62 | K14: ='ENERO ok'!K14+' FEBRE'!K14+MARZO!K14+ABRIL!K14+MAYO!K14+JUNIO!K14 -> 19 | L14: ='ENERO ok'!L14+' FEBRE'!L14+MARZO!L14+ABRIL!L14+MAYO!L14+JUNIO!L14 -> 39 | M14: ='ENERO ok'!M14+' FEBRE'!M14+MARZO!M14+ABRIL!M14+MAYO!M14+JUNIO!M14 -> 22 | N14: ='ENERO ok'!N14+' FEBRE'!N14+MARZO!N14+ABRIL!N14+MAYO!N14+JUNIO!N14 -> 6 | O14: ='ENERO ok'!O14+' FEBRE'!O14+MARZO!O14+ABRIL!O14+MAYO!O14+JUNIO!O14 -> 2 | P14: ='ENERO ok'!P14+' FEBRE'!P14+MARZO!P14+ABRIL!P14+MAYO!P14+JUNIO!P14 -> 33 | Q14: ='ENERO ok'!Q14+' FEBRE'!Q14+MARZO!Q14+ABRIL!Q14+MAYO!Q14+JUNIO!Q14 -> 10 | R14: ='ENERO ok'!R14+' FEBRE'!R14+MARZO!R14+ABRIL!R14+MAYO!R14+JUNIO!R14 -> 47 | S14: ='ENERO ok'!S14+' FEBRE'!S14+MARZO!S14+ABRIL!S14+MAYO!S14+JUNIO!S14 -> 26 | T14: ='ENERO ok'!T14+' FEBRE'!T14+MARZO!T14+ABRIL!T14+MAYO!T14+JUNIO!T14 -> 12 | U14: ='ENERO ok'!U14+' FEBRE'!U14+MARZO!U14+ABRIL!U14+MAYO!U14+JUNIO!U14 -> 5 | V14: ='ENERO ok'!V14+' FEBRE'!V14+MARZO!V14+ABRIL!V14+MAYO!V14+JUNIO!V14 -> 10 | W14: ='ENERO ok'!W14+' FEBRE'!W14+MARZO!W14+ABRIL!W14+MAYO!W14+JUNIO!W14 -> 6 | X14: 526 | Y14: 253
C15: ROBO DE OBJETOS | D15: ='ENERO ok'!D15+' FEBRE'!D15+MARZO!D15+ABRIL!D15+MAYO!D15+JUNIO!D15 -> 49 | E15: ='ENERO ok'!E15+' FEBRE'!E15+MARZO!E15+ABRIL!E15+MAYO!E15+JUNIO!E15 -> 32 | F15: ='ENERO ok'!F15+' FEBRE'!F15+MARZO!F15+ABRIL!F15+MAYO!F15+JUNIO!F15 -> 86 | G15: ='ENERO ok'!G15+' FEBRE'!G15+MARZO!G15+ABRIL!G15+MAYO!G15+JUNIO!G15 -> 48 | H15: ='ENERO ok'!H15+' FEBRE'!H15+MARZO!H15+ABRIL!H15+MAYO!H15+JUNIO!H15 -> 8 | I15: ='ENERO ok'!I15+' FEBRE'!I15+MARZO!I15+ABRIL!I15+MAYO!I15+JUNIO!I15 -> 3 | J15: ='ENERO ok'!J15+' FEBRE'!J15+MARZO!J15+ABRIL!J15+MAYO!J15+JUNIO!J15 -> 6 | K15: ='ENERO ok'!K15+' FEBRE'!K15+MARZO!K15+ABRIL!K15+MAYO!K15+JUNIO!K15 -> 1 | L15: ='ENERO ok'!L15+' FEBRE'!L15+MARZO!L15+ABRIL!L15+MAYO!L15+JUNIO!L15 -> 13 | M15: ='ENERO ok'!M15+' FEBRE'!M15+MARZO!M15+ABRIL!M15+MAYO!M15+JUNIO!M15 -> 1 | N15: ='ENERO ok'!N15+' FEBRE'!N15+MARZO!N15+ABRIL!N15+MAYO!N15+JUNIO!N15 -> 0 | O15: ='ENERO ok'!O15+' FEBRE'!O15+MARZO!O15+ABRIL!O15+MAYO!O15+JUNIO!O15 -> 0 | P15: ='ENERO ok'!P15+' FEBRE'!P15+MARZO!P15+ABRIL!P15+MAYO!P15+JUNIO!P15 -> 2 | Q15: ='ENERO ok'!Q15+' FEBRE'!Q15+MARZO!Q15+ABRIL!Q15+MAYO!Q15+JUNIO!Q15 -> 2 | R15: ='ENERO ok'!R15+' FEBRE'!R15+MARZO!R15+ABRIL!R15+MAYO!R15+JUNIO!R15 -> 3 | S15: ='ENERO ok'!S15+' FEBRE'!S15+MARZO!S15+ABRIL!S15+MAYO!S15+JUNIO!S15 -> 2 | T15: ='ENERO ok'!T15+' FEBRE'!T15+MARZO!T15+ABRIL!T15+MAYO!T15+JUNIO!T15 -> 0 | U15: ='ENERO ok'!U15+' FEBRE'!U15+MARZO!U15+ABRIL!U15+MAYO!U15+JUNIO!U15 -> 0 | V15: ='ENERO ok'!V15+' FEBRE'!V15+MARZO!V15+ABRIL!V15+MAYO!V15+JUNIO!V15 -> 0 | W15: ='ENERO ok'!W15+' FEBRE'!W15+MARZO!W15+ABRIL!W15+MAYO!W15+JUNIO!W15 -> 0 | X15: 167 | Y15: 89
C16: ROBO AGRAVADO DE OBJETOS | D16: ='ENERO ok'!D16+' FEBRE'!D16+MARZO!D16+ABRIL!D16+MAYO!D16+JUNIO!D16 -> 50 | E16: ='ENERO ok'!E16+' FEBRE'!E16+MARZO!E16+ABRIL!E16+MAYO!E16+JUNIO!E16 -> 13 | F16: ='ENERO ok'!F16+' FEBRE'!F16+MARZO!F16+ABRIL!F16+MAYO!F16+JUNIO!F16 -> 263 | G16: ='ENERO ok'!G16+' FEBRE'!G16+MARZO!G16+ABRIL!G16+MAYO!G16+JUNIO!G16 -> 53 | H16: ='ENERO ok'!H16+' FEBRE'!H16+MARZO!H16+ABRIL!H16+MAYO!H16+JUNIO!H16 -> 15 | I16: ='ENERO ok'!I16+' FEBRE'!I16+MARZO!I16+ABRIL!I16+MAYO!I16+JUNIO!I16 -> 1 | J16: ='ENERO ok'!J16+' FEBRE'!J16+MARZO!J16+ABRIL!J16+MAYO!J16+JUNIO!J16 -> 20 | K16: ='ENERO ok'!K16+' FEBRE'!K16+MARZO!K16+ABRIL!K16+MAYO!K16+JUNIO!K16 -> 3 | L16: ='ENERO ok'!L16+' FEBRE'!L16+MARZO!L16+ABRIL!L16+MAYO!L16+JUNIO!L16 -> 25 | M16: ='ENERO ok'!M16+' FEBRE'!M16+MARZO!M16+ABRIL!M16+MAYO!M16+JUNIO!M16 -> 3 | N16: ='ENERO ok'!N16+' FEBRE'!N16+MARZO!N16+ABRIL!N16+MAYO!N16+JUNIO!N16 -> 0 | O16: ='ENERO ok'!O16+' FEBRE'!O16+MARZO!O16+ABRIL!O16+MAYO!O16+JUNIO!O16 -> 0 | P16: ='ENERO ok'!P16+' FEBRE'!P16+MARZO!P16+ABRIL!P16+MAYO!P16+JUNIO!P16 -> 30 | Q16: ='ENERO ok'!Q16+' FEBRE'!Q16+MARZO!Q16+ABRIL!Q16+MAYO!Q16+JUNIO!Q16 -> 3 | R16: ='ENERO ok'!R16+' FEBRE'!R16+MARZO!R16+ABRIL!R16+MAYO!R16+JUNIO!R16 -> 32 | S16: ='ENERO ok'!S16+' FEBRE'!S16+MARZO!S16+ABRIL!S16+MAYO!S16+JUNIO!S16 -> 1 | T16: ='ENERO ok'!T16+' FEBRE'!T16+MARZO!T16+ABRIL!T16+MAYO!T16+JUNIO!T16 -> 20 | U16: ='ENERO ok'!U16+' FEBRE'!U16+MARZO!U16+ABRIL!U16+MAYO!U16+JUNIO!U16 -> 0 | V16: ='ENERO ok'!V16+' FEBRE'!V16+MARZO!V16+ABRIL!V16+MAYO!V16+JUNIO!V16 -> 12 | W16: ='ENERO ok'!W16+' FEBRE'!W16+MARZO!W16+ABRIL!W16+MAYO!W16+JUNIO!W16 -> 0 | X16: 467 | Y16: 77
C17: ROBO DE VEHICULOS | D17: ='ENERO ok'!D17+' FEBRE'!D17+MARZO!D17+ABRIL!D17+MAYO!D17+JUNIO!D17 -> 117 | E17: ='ENERO ok'!E17+' FEBRE'!E17+MARZO!E17+ABRIL!E17+MAYO!E17+JUNIO!E17 -> 2 | F17: ='ENERO ok'!F17+' FEBRE'!F17+MARZO!F17+ABRIL!F17+MAYO!F17+JUNIO!F17 -> 125 | G17: ='ENERO ok'!G17+' FEBRE'!G17+MARZO!G17+ABRIL!G17+MAYO!G17+JUNIO!G17 -> 2 | H17: ='ENERO ok'!H17+' FEBRE'!H17+MARZO!H17+ABRIL!H17+MAYO!H17+JUNIO!H17 -> 2 | I17: ='ENERO ok'!I17+' FEBRE'!I17+MARZO!I17+ABRIL!I17+MAYO!I17+JUNIO!I17 -> 0 | J17: ='ENERO ok'!J17+' FEBRE'!J17+MARZO!J17+ABRIL!J17+MAYO!J17+JUNIO!J17 -> 1 | K17: ='ENERO ok'!K17+' FEBRE'!K17+MARZO!K17+ABRIL!K17+MAYO!K17+JUNIO!K17 -> 0 | L17: ='ENERO ok'!L17+' FEBRE'!L17+MARZO!L17+ABRIL!L17+MAYO!L17+JUNIO!L17 -> 1 | M17: ='ENERO ok'!M17+' FEBRE'!M17+MARZO!M17+ABRIL!M17+MAYO!M17+JUNIO!M17 -> 0 | N17: ='ENERO ok'!N17+' FEBRE'!N17+MARZO!N17+ABRIL!N17+MAYO!N17+JUNIO!N17 -> 0 | O17: ='ENERO ok'!O17+' FEBRE'!O17+MARZO!O17+ABRIL!O17+MAYO!O17+JUNIO!O17 -> 0 | P17: ='ENERO ok'!P17+' FEBRE'!P17+MARZO!P17+ABRIL!P17+MAYO!P17+JUNIO!P17 -> 3 | Q17: ='ENERO ok'!Q17+' FEBRE'!Q17+MARZO!Q17+ABRIL!Q17+MAYO!Q17+JUNIO!Q17 -> 1 | R17: ='ENERO ok'!R17+' FEBRE'!R17+MARZO!R17+ABRIL!R17+MAYO!R17+JUNIO!R17 -> 3 | S17: ='ENERO ok'!S17+' FEBRE'!S17+MARZO!S17+ABRIL!S17+MAYO!S17+JUNIO!S17 -> 0 | T17: ='ENERO ok'!T17+' FEBRE'!T17+MARZO!T17+ABRIL!T17+MAYO!T17+JUNIO!T17 -> 1 | U17: ='ENERO ok'!U17+' FEBRE'!U17+MARZO!U17+ABRIL!U17+MAYO!U17+JUNIO!U17 -> 0 | V17: ='ENERO ok'!V17+' FEBRE'!V17+MARZO!V17+ABRIL!V17+MAYO!V17+JUNIO!V17 -> 3 | W17: ='ENERO ok'!W17+' FEBRE'!W17+MARZO!W17+ABRIL!W17+MAYO!W17+JUNIO!W17 -> 0 | X17: 256 | Y17: 5
C18: ROBO AGRAVADO DE VEHICULOS | D18: ='ENERO ok'!D18+' FEBRE'!D18+MARZO!D18+ABRIL!D18+MAYO!D18+JUNIO!D18 -> 0 | E18: ='ENERO ok'!E18+' FEBRE'!E18+MARZO!E18+ABRIL!E18+MAYO!E18+JUNIO!E18 -> 0 | F18: ='ENERO ok'!F18+' FEBRE'!F18+MARZO!F18+ABRIL!F18+MAYO!F18+JUNIO!F18 -> 10 | G18: ='ENERO ok'!G18+' FEBRE'!G18+MARZO!G18+ABRIL!G18+MAYO!G18+JUNIO!G18 -> 0 | H18: ='ENERO ok'!H18+' FEBRE'!H18+MARZO!H18+ABRIL!H18+MAYO!H18+JUNIO!H18 -> 2 | I18: ='ENERO ok'!I18+' FEBRE'!I18+MARZO!I18+ABRIL!I18+MAYO!I18+JUNIO!I18 -> 0 | J18: ='ENERO ok'!J18+' FEBRE'!J18+MARZO!J18+ABRIL!J18+MAYO!J18+JUNIO!J18 -> 1 | K18: ='ENERO ok'!K18+' FEBRE'!K18+MARZO!K18+ABRIL!K18+MAYO!K18+JUNIO!K18 -> 0 | L18: ='ENERO ok'!L18+' FEBRE'!L18+MARZO!L18+ABRIL!L18+MAYO!L18+JUNIO!L18 -> 0 | M18: ='ENERO ok'!M18+' FEBRE'!M18+MARZO!M18+ABRIL!M18+MAYO!M18+JUNIO!M18 -> 0 | N18: ='ENERO ok'!N18+' FEBRE'!N18+MARZO!N18+ABRIL!N18+MAYO!N18+JUNIO!N18 -> 0 | O18: ='ENERO ok'!O18+' FEBRE'!O18+MARZO!O18+ABRIL!O18+MAYO!O18+JUNIO!O18 -> 0 | P18: ='ENERO ok'!P18+' FEBRE'!P18+MARZO!P18+ABRIL!P18+MAYO!P18+JUNIO!P18 -> 2 | Q18: ='ENERO ok'!Q18+' FEBRE'!Q18+MARZO!Q18+ABRIL!Q18+MAYO!Q18+JUNIO!Q18 -> 0 | R18: ='ENERO ok'!R18+' FEBRE'!R18+MARZO!R18+ABRIL!R18+MAYO!R18+JUNIO!R18 -> 5 | S18: ='ENERO ok'!S18+' FEBRE'!S18+MARZO!S18+ABRIL!S18+MAYO!S18+JUNIO!S18 -> 1 | T18: ='ENERO ok'!T18+' FEBRE'!T18+MARZO!T18+ABRIL!T18+MAYO!T18+JUNIO!T18 -> 2 | U18: ='ENERO ok'!U18+' FEBRE'!U18+MARZO!U18+ABRIL!U18+MAYO!U18+JUNIO!U18 -> 0 | V18: ='ENERO ok'!V18+' FEBRE'!V18+MARZO!V18+ABRIL!V18+MAYO!V18+JUNIO!V18 -> 1 | W18: ='ENERO ok'!W18+' FEBRE'!W18+MARZO!W18+ABRIL!W18+MAYO!W18+JUNIO!W18 -> 0 | X18: 23 | Y18: 1
C19: ROBO DE MOTOCICLETAS | D19: ='ENERO ok'!D19+' FEBRE'!D19+MARZO!D19+ABRIL!D19+MAYO!D19+JUNIO!D19 -> 290 | E19: ='ENERO ok'!E19+' FEBRE'!E19+MARZO!E19+ABRIL!E19+MAYO!E19+JUNIO!E19 -> 18 | F19: ='ENERO ok'!F19+' FEBRE'!F19+MARZO!F19+ABRIL!F19+MAYO!F19+JUNIO!F19 -> 474 | G19: ='ENERO ok'!G19+' FEBRE'!G19+MARZO!G19+ABRIL!G19+MAYO!G19+JUNIO!G19 -> 23 | H19: ='ENERO ok'!H19+' FEBRE'!H19+MARZO!H19+ABRIL!H19+MAYO!H19+JUNIO!H19 -> 44 | I19: ='ENERO ok'!I19+' FEBRE'!I19+MARZO!I19+ABRIL!I19+MAYO!I19+JUNIO!I19 -> 7 | J19: ='ENERO ok'!J19+' FEBRE'!J19+MARZO!J19+ABRIL!J19+MAYO!J19+JUNIO!J19 -> 11 | K19: ='ENERO ok'!K19+' FEBRE'!K19+MARZO!K19+ABRIL!K19+MAYO!K19+JUNIO!K19 -> 4 | L19: ='ENERO ok'!L19+' FEBRE'!L19+MARZO!L19+ABRIL!L19+MAYO!L19+JUNIO!L19 -> 34 | M19: ='ENERO ok'!M19+' FEBRE'!M19+MARZO!M19+ABRIL!M19+MAYO!M19+JUNIO!M19 -> 1 | N19: ='ENERO ok'!N19+' FEBRE'!N19+MARZO!N19+ABRIL!N19+MAYO!N19+JUNIO!N19 -> 4 | O19: ='ENERO ok'!O19+' FEBRE'!O19+MARZO!O19+ABRIL!O19+MAYO!O19+JUNIO!O19 -> 1 | P19: ='ENERO ok'!P19+' FEBRE'!P19+MARZO!P19+ABRIL!P19+MAYO!P19+JUNIO!P19 -> 9 | Q19: ='ENERO ok'!Q19+' FEBRE'!Q19+MARZO!Q19+ABRIL!Q19+MAYO!Q19+JUNIO!Q19 -> 3 | R19: ='ENERO ok'!R19+' FEBRE'!R19+MARZO!R19+ABRIL!R19+MAYO!R19+JUNIO!R19 -> 30 | S19: ='ENERO ok'!S19+' FEBRE'!S19+MARZO!S19+ABRIL!S19+MAYO!S19+JUNIO!S19 -> 1 | T19: ='ENERO ok'!T19+' FEBRE'!T19+MARZO!T19+ABRIL!T19+MAYO!T19+JUNIO!T19 -> 14 | U19: ='ENERO ok'!U19+' FEBRE'!U19+MARZO!U19+ABRIL!U19+MAYO!U19+JUNIO!U19 -> 2 | V19: ='ENERO ok'!V19+' FEBRE'!V19+MARZO!V19+ABRIL!V19+MAYO!V19+JUNIO!V19 -> 34 | W19: ='ENERO ok'!W19+' FEBRE'!W19+MARZO!W19+ABRIL!W19+MAYO!W19+JUNIO!W19 -> 10 | X19: 944 | Y19: 70
C20: ROBO AGRAVADO DE MOTOCICLETAS | D20: ='ENERO ok'!D20+' FEBRE'!D20+MARZO!D20+ABRIL!D20+MAYO!D20+JUNIO!D20 -> 2 | E20: ='ENERO ok'!E20+' FEBRE'!E20+MARZO!E20+ABRIL!E20+MAYO!E20+JUNIO!E20 -> 1 | F20: ='ENERO ok'!F20+' FEBRE'!F20+MARZO!F20+ABRIL!F20+MAYO!F20+JUNIO!F20 -> 77 | G20: ='ENERO ok'!G20+' FEBRE'!G20+MARZO!G20+ABRIL!G20+MAYO!G20+JUNIO!G20 -> 8 | H20: ='ENERO ok'!H20+' FEBRE'!H20+MARZO!H20+ABRIL!H20+MAYO!H20+JUNIO!H20 -> 5 | I20: ='ENERO ok'!I20+' FEBRE'!I20+MARZO!I20+ABRIL!I20+MAYO!I20+JUNIO!I20 -> 3 | J20: ='ENERO ok'!J20+' FEBRE'!J20+MARZO!J20+ABRIL!J20+MAYO!J20+JUNIO!J20 -> 9 | K20: ='ENERO ok'!K20+' FEBRE'!K20+MARZO!K20+ABRIL!K20+MAYO!K20+JUNIO!K20 -> 3 | L20: ='ENERO ok'!L20+' FEBRE'!L20+MARZO!L20+ABRIL!L20+MAYO!L20+JUNIO!L20 -> 36 | M20: ='ENERO ok'!M20+' FEBRE'!M20+MARZO!M20+ABRIL!M20+MAYO!M20+JUNIO!M20 -> 2 | N20: ='ENERO ok'!N20+' FEBRE'!N20+MARZO!N20+ABRIL!N20+MAYO!N20+JUNIO!N20 -> 0 | O20: ='ENERO ok'!O20+' FEBRE'!O20+MARZO!O20+ABRIL!O20+MAYO!O20+JUNIO!O20 -> 0 | P20: ='ENERO ok'!P20+' FEBRE'!P20+MARZO!P20+ABRIL!P20+MAYO!P20+JUNIO!P20 -> 9 | Q20: ='ENERO ok'!Q20+' FEBRE'!Q20+MARZO!Q20+ABRIL!Q20+MAYO!Q20+JUNIO!Q20 -> 3 | R20: ='ENERO ok'!R20+' FEBRE'!R20+MARZO!R20+ABRIL!R20+MAYO!R20+JUNIO!R20 -> 5 | S20: ='ENERO ok'!S20+' FEBRE'!S20+MARZO!S20+ABRIL!S20+MAYO!S20+JUNIO!S20 -> 1 | T20: ='ENERO ok'!T20+' FEBRE'!T20+MARZO!T20+ABRIL!T20+MAYO!T20+JUNIO!T20 -> 6 | U20: ='ENERO ok'!U20+' FEBRE'!U20+MARZO!U20+ABRIL!U20+MAYO!U20+JUNIO!U20 -> 1 | V20: ='ENERO ok'!V20+' FEBRE'!V20+MARZO!V20+ABRIL!V20+MAYO!V20+JUNIO!V20 -> 3 | W20: ='ENERO ok'!W20+' FEBRE'!W20+MARZO!W20+ABRIL!W20+MAYO!W20+JUNIO!W20 -> 2 | X20: 152 | Y20: 24
C21: TOTAL | D21: =SUM(D7:D20) -> 898 | E21: 318 | F21: 2167 | G21: 856 | H21: 332 | I21: 145 | J21: 266 | K21: 111 | L21: 269 | M21: 109 | N21: 22 | O21: 5 | P21: 277 | Q21: 152 | R21: 420 | S21: 230 | T21: 157 | U21: 51 | V21: 187 | W21: 90 | X21: 4995 | Y21: 2067
C22: PORCENTAJE DE ACLARADOS | D22: =+(E21/D21) -> 0.3541202673 | F22: =+(G21/F21) -> 0.3950161514 | H22: =+(I21/H21) -> 0.436746988 | J22: =+(K21/J21) -> 0.4172932331 | L22: =+(M21/L21) -> 0.405204461 | N22: =+(O21/N21) -> 0.2272727273 | P22: =+(Q21/P21) -> 0.5487364621 | R22: =+(S21/R21) -> 0.5476190476 | T22: =+(U21/T21) -> 0.3248407643 | V22: =+(W21/V21) -> 0.4812834225 | X22: =+(Y21/X21) -> 0.4138138138
C24: HECHOS PUNIBLES | D24: TRANSPORTE | F24: DIRECCIONES POLICIALES | V24: TOTAL
F25: Alto Paraná | H25: Itapua | J25: Canindeyú | L25: Misiones | N25: Paraguari | P25: Ñeembucu | R25: Boqueron | T25: Pte Hayes
D26: D | E26: A | F26: D | G26: A | H26: D | I26: A | J26: D | K26: A | L26: D | M26: A | N26: D | O26: A | P26: D | Q26: A | R26: D | S26: A | T26: D | U26: A | V26: D | W26: A
C27: ABIGEATO | D27: =(X7) -> 199 | E27: 35 | F27: ='ENERO ok'!F27+' FEBRE'!F27+MARZO!F27+ABRIL!F27+MAYO!F27+JUNIO!F27 -> 12 | G27: ='ENERO ok'!G27+' FEBRE'!G27+MARZO!G27+ABRIL!G27+MAYO!G27+JUNIO!G27 -> 3 | H27: ='ENERO ok'!H27+' FEBRE'!H27+MARZO!H27+ABRIL!H27+MAYO!H27+JUNIO!H27 -> 31 | I27: ='ENERO ok'!I27+' FEBRE'!I27+MARZO!I27+ABRIL!I27+MAYO!I27+JUNIO!I27 -> 5 | J27: ='ENERO ok'!J27+' FEBRE'!J27+MARZO!J27+ABRIL!J27+MAYO!J27+JUNIO!J27 -> 1 | K27: ='ENERO ok'!K27+' FEBRE'!K27+MARZO!K27+ABRIL!K27+MAYO!K27+JUNIO!K27 -> 0 | L27: ='ENERO ok'!L27+' FEBRE'!L27+MARZO!L27+ABRIL!L27+MAYO!L27+JUNIO!L27 -> 6 | M27: ='ENERO ok'!M27+' FEBRE'!M27+MARZO!M27+ABRIL!M27+MAYO!M27+JUNIO!M27 -> 1 | N27: ='ENERO ok'!N27+' FEBRE'!N27+MARZO!N27+ABRIL!N27+MAYO!N27+JUNIO!N27 -> 61 | O27: ='ENERO ok'!O27+' FEBRE'!O27+MARZO!O27+ABRIL!O27+MAYO!O27+JUNIO!O27 -> 26 | P27: ='ENERO ok'!P27+' FEBRE'!P27+MARZO!P27+ABRIL!P27+MAYO!P27+JUNIO!P27 -> 35 | Q27: ='ENERO ok'!Q27+' FEBRE'!Q27+MARZO!Q27+ABRIL!Q27+MAYO!Q27+JUNIO!Q27 -> 10 | R27: ='ENERO ok'!R27+' FEBRE'!R27+MARZO!R27+ABRIL!R27+MAYO!R27+JUNIO!R27 -> 0 | S27: ='ENERO ok'!S27+' FEBRE'!S27+MARZO!S27+ABRIL!S27+MAYO!S27+JUNIO!S27 -> 0 | T27: ='ENERO ok'!T27+' FEBRE'!T27+MARZO!T27+ABRIL!T27+MAYO!T27+JUNIO!T27 -> 3 | U27: ='ENERO ok'!U27+' FEBRE'!U27+MARZO!U27+ABRIL!U27+MAYO!U27+JUNIO!U27 -> 2 | V27: =(D27+F27+H27+J27+L27+N27+P27+R27+T27) -> 348 | W27: =(E27+G27+I27+K27+M27+O27+Q27+S27+U27) -> 82 | AC27: =(W27/V27) -> 0.2356321839
C28: COACCION SEXUAL | D28: 178 | E28: 114 | F28: ='ENERO ok'!F28+' FEBRE'!F28+MARZO!F28+ABRIL!F28+MAYO!F28+JUNIO!F28 -> 45 | G28: ='ENERO ok'!G28+' FEBRE'!G28+MARZO!G28+ABRIL!G28+MAYO!G28+JUNIO!G28 -> 24 | H28: ='ENERO ok'!H28+' FEBRE'!H28+MARZO!H28+ABRIL!H28+MAYO!H28+JUNIO!H28 -> 26 | I28: ='ENERO ok'!I28+' FEBRE'!I28+MARZO!I28+ABRIL!I28+MAYO!I28+JUNIO!I28 -> 10 | J28: ='ENERO ok'!J28+' FEBRE'!J28+MARZO!J28+ABRIL!J28+MAYO!J28+JUNIO!J28 -> 5 | K28: ='ENERO ok'!K28+' FEBRE'!K28+MARZO!K28+ABRIL!K28+MAYO!K28+JUNIO!K28 -> 3 | L28: ='ENERO ok'!L28+' FEBRE'!L28+MARZO!L28+ABRIL!L28+MAYO!L28+JUNIO!L28 -> 2 | M28: ='ENERO ok'!M28+' FEBRE'!M28+MARZO!M28+ABRIL!M28+MAYO!M28+JUNIO!M28 -> 1 | N28: ='ENERO ok'!N28+' FEBRE'!N28+MARZO!N28+ABRIL!N28+MAYO!N28+JUNIO!N28 -> 11 | O28: ='ENERO ok'!O28+' FEBRE'!O28+MARZO!O28+ABRIL!O28+MAYO!O28+JUNIO!O28 -> 2 | P28: ='ENERO ok'!P28+' FEBRE'!P28+MARZO!P28+ABRIL!P28+MAYO!P28+JUNIO!P28 -> 7 | Q28: ='ENERO ok'!Q28+' FEBRE'!Q28+MARZO!Q28+ABRIL!Q28+MAYO!Q28+JUNIO!Q28 -> 4 | R28: ='ENERO ok'!R28+' FEBRE'!R28+MARZO!R28+ABRIL!R28+MAYO!R28+JUNIO!R28 -> 3 | S28: ='ENERO ok'!S28+' FEBRE'!S28+MARZO!S28+ABRIL!S28+MAYO!S28+JUNIO!S28 -> 3 | T28: ='ENERO ok'!T28+' FEBRE'!T28+MARZO!T28+ABRIL!T28+MAYO!T28+JUNIO!T28 -> 3 | U28: ='ENERO ok'!U28+' FEBRE'!U28+MARZO!U28+ABRIL!U28+MAYO!U28+JUNIO!U28 -> 2 | V28: 280 | W28: =(E28+G28+I28+K28+M28+O28+Q28+S28+U28) -> 163 | AC28: =(W28/V28) -> 0.5821428571
C29: HOMICIDIO CULPOSO EN ACC DE TTO. | D29: 234 | E29: 212 | F29: ='ENERO ok'!F29+' FEBRE'!F29+MARZO!F29+ABRIL!F29+MAYO!F29+JUNIO!F29 -> 28 | G29: ='ENERO ok'!G29+' FEBRE'!G29+MARZO!G29+ABRIL!G29+MAYO!G29+JUNIO!G29 -> 23 | H29: ='ENERO ok'!H29+' FEBRE'!H29+MARZO!H29+ABRIL!H29+MAYO!H29+JUNIO!H29 -> 20 | I29: ='ENERO ok'!I29+' FEBRE'!I29+MARZO!I29+ABRIL!I29+MAYO!I29+JUNIO!I29 -> 20 | J29: ='ENERO ok'!J29+' FEBRE'!J29+MARZO!J29+ABRIL!J29+MAYO!J29+JUNIO!J29 -> 8 | K29: ='ENERO ok'!K29+' FEBRE'!K29+MARZO!K29+ABRIL!K29+MAYO!K29+JUNIO!K29 -> 7 | L29: ='ENERO ok'!L29+' FEBRE'!L29+MARZO!L29+ABRIL!L29+MAYO!L29+JUNIO!L29 -> 10 | M29: ='ENERO ok'!M29+' FEBRE'!M29+MARZO!M29+ABRIL!M29+MAYO!M29+JUNIO!M29 -> 8 | N29: ='ENERO ok'!N29+' FEBRE'!N29+MARZO!N29+ABRIL!N29+MAYO!N29+JUNIO!N29 -> 19 | O29: ='ENERO ok'!O29+' FEBRE'!O29+MARZO!O29+ABRIL!O29+MAYO!O29+JUNIO!O29 -> 18 | P29: ='ENERO ok'!P29+' FEBRE'!P29+MARZO!P29+ABRIL!P29+MAYO!P29+JUNIO!P29 -> 2 | Q29: ='ENERO ok'!Q29+' FEBRE'!Q29+MARZO!Q29+ABRIL!Q29+MAYO!Q29+JUNIO!Q29 -> 2 | R29: ='ENERO ok'!R29+' FEBRE'!R29+MARZO!R29+ABRIL!R29+MAYO!R29+JUNIO!R29 -> 4 | S29: ='ENERO ok'!S29+' FEBRE'!S29+MARZO!S29+ABRIL!S29+MAYO!S29+JUNIO!S29 -> 3 | T29: ='ENERO ok'!T29+' FEBRE'!T29+MARZO!T29+ABRIL!T29+MAYO!T29+JUNIO!T29 -> 9 | U29: ='ENERO ok'!U29+' FEBRE'!U29+MARZO!U29+ABRIL!U29+MAYO!U29+JUNIO!U29 -> 9 | V29: 334 | W29: 302 | AC29: 0.9041916168
C30: HOMICIDIO DOLOSO | D30: 140 | E30: 50 | F30: ='ENERO ok'!F30+' FEBRE'!F30+MARZO!F30+ABRIL!F30+MAYO!F30+JUNIO!F30 -> 31 | G30: ='ENERO ok'!G30+' FEBRE'!G30+MARZO!G30+ABRIL!G30+MAYO!G30+JUNIO!G30 -> 11 | H30: ='ENERO ok'!H30+' FEBRE'!H30+MARZO!H30+ABRIL!H30+MAYO!H30+JUNIO!H30 -> 14 | I30: ='ENERO ok'!I30+' FEBRE'!I30+MARZO!I30+ABRIL!I30+MAYO!I30+JUNIO!I30 -> 8 | J30: ='ENERO ok'!J30+' FEBRE'!J30+MARZO!J30+ABRIL!J30+MAYO!J30+JUNIO!J30 -> 5 | K30: ='ENERO ok'!K30+' FEBRE'!K30+MARZO!K30+ABRIL!K30+MAYO!K30+JUNIO!K30 -> 1 | L30: ='ENERO ok'!L30+' FEBRE'!L30+MARZO!L30+ABRIL!L30+MAYO!L30+JUNIO!L30 -> 2 | M30: ='ENERO ok'!M30+' FEBRE'!M30+MARZO!M30+ABRIL!M30+MAYO!M30+JUNIO!M30 -> 0 | N30: ='ENERO ok'!N30+' FEBRE'!N30+MARZO!N30+ABRIL!N30+MAYO!N30+JUNIO!N30 -> 1 | O30: ='ENERO ok'!O30+' FEBRE'!O30+MARZO!O30+ABRIL!O30+MAYO!O30+JUNIO!O30 -> 1 | P30: ='ENERO ok'!P30+' FEBRE'!P30+MARZO!P30+ABRIL!P30+MAYO!P30+JUNIO!P30 -> 1 | Q30: ='ENERO ok'!Q30+' FEBRE'!Q30+MARZO!Q30+ABRIL!Q30+MAYO!Q30+JUNIO!Q30 -> 0 | R30: ='ENERO ok'!R30+' FEBRE'!R30+MARZO!R30+ABRIL!R30+MAYO!R30+JUNIO!R30 -> 0 | S30: ='ENERO ok'!S30+' FEBRE'!S30+MARZO!S30+ABRIL!S30+MAYO!S30+JUNIO!S30 -> 0 | T30: ='ENERO ok'!T30+' FEBRE'!T30+MARZO!T30+ABRIL!T30+MAYO!T30+JUNIO!T30 -> 4 | U30: ='ENERO ok'!U30+' FEBRE'!U30+MARZO!U30+ABRIL!U30+MAYO!U30+JUNIO!U30 -> 4 | V30: 198 | W30: 75 | AC30: 0.3787878788
C31: HURTO | D31: 487 | E31: 252 | F31: ='ENERO ok'!F31+' FEBRE'!F31+MARZO!F31+ABRIL!F31+MAYO!F31+JUNIO!F31 -> 77 | G31: ='ENERO ok'!G31+' FEBRE'!G31+MARZO!G31+ABRIL!G31+MAYO!G31+JUNIO!G31 -> 37 | H31: ='ENERO ok'!H31+' FEBRE'!H31+MARZO!H31+ABRIL!H31+MAYO!H31+JUNIO!H31 -> 76 | I31: ='ENERO ok'!I31+' FEBRE'!I31+MARZO!I31+ABRIL!I31+MAYO!I31+JUNIO!I31 -> 32 | J31: ='ENERO ok'!J31+' FEBRE'!J31+MARZO!J31+ABRIL!J31+MAYO!J31+JUNIO!J31 -> 8 | K31: ='ENERO ok'!K31+' FEBRE'!K31+MARZO!K31+ABRIL!K31+MAYO!K31+JUNIO!K31 -> 4 | L31: ='ENERO ok'!L31+' FEBRE'!L31+MARZO!L31+ABRIL!L31+MAYO!L31+JUNIO!L31 -> 9 | M31: ='ENERO ok'!M31+' FEBRE'!M31+MARZO!M31+ABRIL!M31+MAYO!M31+JUNIO!M31 -> 4 | N31: ='ENERO ok'!N31+' FEBRE'!N31+MARZO!N31+ABRIL!N31+MAYO!N31+JUNIO!N31 -> 18 | O31: ='ENERO ok'!O31+' FEBRE'!O31+MARZO!O31+ABRIL!O31+MAYO!O31+JUNIO!O31 -> 6 | P31: ='ENERO ok'!P31+' FEBRE'!P31+MARZO!P31+ABRIL!P31+MAYO!P31+JUNIO!P31 -> 17 | Q31: ='ENERO ok'!Q31+' FEBRE'!Q31+MARZO!Q31+ABRIL!Q31+MAYO!Q31+JUNIO!Q31 -> 3 | R31: ='ENERO ok'!R31+' FEBRE'!R31+MARZO!R31+ABRIL!R31+MAYO!R31+JUNIO!R31 -> 2 | S31: ='ENERO ok'!S31+' FEBRE'!S31+MARZO!S31+ABRIL!S31+MAYO!S31+JUNIO!S31 -> 1 | T31: ='ENERO ok'!T31+' FEBRE'!T31+MARZO!T31+ABRIL!T31+MAYO!T31+JUNIO!T31 -> 11 | U31: ='ENERO ok'!U31+' FEBRE'!U31+MARZO!U31+ABRIL!U31+MAYO!U31+JUNIO!U31 -> 5 | V31: =(D31+F31+H31+J31+L31+N31+P31+R31+T31) -> 705 | W31: =(E31+G31+I31+K31+M31+O31+Q31+S31+U31) -> 344 | AC31: 0.4879432624
C32: HURTO AGRAVADO | D32: 414 | E32: 135 | F32: ='ENERO ok'!F32+' FEBRE'!F32+MARZO!F32+ABRIL!F32+MAYO!F32+JUNIO!F32 -> 53 | G32: ='ENERO ok'!G32+' FEBRE'!G32+MARZO!G32+ABRIL!G32+MAYO!G32+JUNIO!G32 -> 15 | H32: ='ENERO ok'!H32+' FEBRE'!H32+MARZO!H32+ABRIL!H32+MAYO!H32+JUNIO!H32 -> 33 | I32: ='ENERO ok'!I32+' FEBRE'!I32+MARZO!I32+ABRIL!I32+MAYO!I32+JUNIO!I32 -> 10 | J32: ='ENERO ok'!J32+' FEBRE'!J32+MARZO!J32+ABRIL!J32+MAYO!J32+JUNIO!J32 -> 6 | K32: ='ENERO ok'!K32+' FEBRE'!K32+MARZO!K32+ABRIL!K32+MAYO!K32+JUNIO!K32 -> 2 | L32: ='ENERO ok'!L32+' FEBRE'!L32+MARZO!L32+ABRIL!L32+MAYO!L32+JUNIO!L32 -> 10 | M32: ='ENERO ok'!M32+' FEBRE'!M32+MARZO!M32+ABRIL!M32+MAYO!M32+JUNIO!M32 -> 8 | N32: ='ENERO ok'!N32+' FEBRE'!N32+MARZO!N32+ABRIL!N32+MAYO!N32+JUNIO!N32 -> 29 | O32: ='ENERO ok'!O32+' FEBRE'!O32+MARZO!O32+ABRIL!O32+MAYO!O32+JUNIO!O32 -> 3 | P32: ='ENERO ok'!P32+' FEBRE'!P32+MARZO!P32+ABRIL!P32+MAYO!P32+JUNIO!P32 -> 9 | Q32: ='ENERO ok'!Q32+' FEBRE'!Q32+MARZO!Q32+ABRIL!Q32+MAYO!Q32+JUNIO!Q32 -> 1 | R32: ='ENERO ok'!R32+' FEBRE'!R32+MARZO!R32+ABRIL!R32+MAYO!R32+JUNIO!R32 -> 3 | S32: ='ENERO ok'!S32+' FEBRE'!S32+MARZO!S32+ABRIL!S32+MAYO!S32+JUNIO!S32 -> 2 | T32: ='ENERO ok'!T32+' FEBRE'!T32+MARZO!T32+ABRIL!T32+MAYO!T32+JUNIO!T32 -> 2 | U32: ='ENERO ok'!U32+' FEBRE'!U32+MARZO!U32+ABRIL!U32+MAYO!U32+JUNIO!U32 -> 0 | V32: =(D32+F32+H32+J32+L32+N32+P32+R32+T32) -> 559 | W32: =(E32+G32+I32+K32+M32+O32+Q32+S32+U32) -> 176 | AC32: 0.3148479428
C33: LESION CULPOSA EN ACC. DE TTO. | D33: 808 | E33: 750 | F33: ='ENERO ok'!F33+' FEBRE'!F33+MARZO!F33+ABRIL!F33+MAYO!F33+JUNIO!F33 -> 112 | G33: ='ENERO ok'!G33+' FEBRE'!G33+MARZO!G33+ABRIL!G33+MAYO!G33+JUNIO!G33 -> 101 | H33: ='ENERO ok'!H33+' FEBRE'!H33+MARZO!H33+ABRIL!H33+MAYO!H33+JUNIO!H33 -> 78 | I33: ='ENERO ok'!I33+' FEBRE'!I33+MARZO!I33+ABRIL!I33+MAYO!I33+JUNIO!I33 -> 71 | J33: ='ENERO ok'!J33+' FEBRE'!J33+MARZO!J33+ABRIL!J33+MAYO!J33+JUNIO!J33 -> 8 | K33: ='ENERO ok'!K33+' FEBRE'!K33+MARZO!K33+ABRIL!K33+MAYO!K33+JUNIO!K33 -> 8 | L33: ='ENERO ok'!L33+' FEBRE'!L33+MARZO!L33+ABRIL!L33+MAYO!L33+JUNIO!L33 -> 29 | M33: ='ENERO ok'!M33+' FEBRE'!M33+MARZO!M33+ABRIL!M33+MAYO!M33+JUNIO!M33 -> 29 | N33: ='ENERO ok'!N33+' FEBRE'!N33+MARZO!N33+ABRIL!N33+MAYO!N33+JUNIO!N33 -> 98 | O33: ='ENERO ok'!O33+' FEBRE'!O33+MARZO!O33+ABRIL!O33+MAYO!O33+JUNIO!O33 -> 93 | P33: ='ENERO ok'!P33+' FEBRE'!P33+MARZO!P33+ABRIL!P33+MAYO!P33+JUNIO!P33 -> 35 | Q33: ='ENERO ok'!Q33+' FEBRE'!Q33+MARZO!Q33+ABRIL!Q33+MAYO!Q33+JUNIO!Q33 -> 34 | R33: ='ENERO ok'!R33+' FEBRE'!R33+MARZO!R33+ABRIL!R33+MAYO!R33+JUNIO!R33 -> 6 | S33: ='ENERO ok'!S33+' FEBRE'!S33+MARZO!S33+ABRIL!S33+MAYO!S33+JUNIO!S33 -> 6 | T33: ='ENERO ok'!T33+' FEBRE'!T33+MARZO!T33+ABRIL!T33+MAYO!T33+JUNIO!T33 -> 13 | U33: ='ENERO ok'!U33+' FEBRE'!U33+MARZO!U33+ABRIL!U33+MAYO!U33+JUNIO!U33 -> 13 | V33: 1187 | W33: 1105 | AC33: 0.9309182814
C34: LESION | D34: 526 | E34: 253 | F34: ='ENERO ok'!F34+' FEBRE'!F34+MARZO!F34+ABRIL!F34+MAYO!F34+JUNIO!F34 -> 70 | G34: ='ENERO ok'!G34+' FEBRE'!G34+MARZO!G34+ABRIL!G34+MAYO!G34+JUNIO!G34 -> 25 | H34: ='ENERO ok'!H34+' FEBRE'!H34+MARZO!H34+ABRIL!H34+MAYO!H34+JUNIO!H34 -> 42 | I34: ='ENERO ok'!I34+' FEBRE'!I34+MARZO!I34+ABRIL!I34+MAYO!I34+JUNIO!I34 -> 21 | J34: ='ENERO ok'!J34+' FEBRE'!J34+MARZO!J34+ABRIL!J34+MAYO!J34+JUNIO!J34 -> 13 | K34: ='ENERO ok'!K34+' FEBRE'!K34+MARZO!K34+ABRIL!K34+MAYO!K34+JUNIO!K34 -> 3 | L34: ='ENERO ok'!L34+' FEBRE'!L34+MARZO!L34+ABRIL!L34+MAYO!L34+JUNIO!L34 -> 9 | M34: ='ENERO ok'!M34+' FEBRE'!M34+MARZO!M34+ABRIL!M34+MAYO!M34+JUNIO!M34 -> 5 | N34: ='ENERO ok'!N34+' FEBRE'!N34+MARZO!N34+ABRIL!N34+MAYO!N34+JUNIO!N34 -> 18 | O34: ='ENERO ok'!O34+' FEBRE'!O34+MARZO!O34+ABRIL!O34+MAYO!O34+JUNIO!O34 -> 6 | P34: ='ENERO ok'!P34+' FEBRE'!P34+MARZO!P34+ABRIL!P34+MAYO!P34+JUNIO!P34 -> 9 | Q34: ='ENERO ok'!Q34+' FEBRE'!Q34+MARZO!Q34+ABRIL!Q34+MAYO!Q34+JUNIO!Q34 -> 5 | R34: ='ENERO ok'!R34+' FEBRE'!R34+MARZO!R34+ABRIL!R34+MAYO!R34+JUNIO!R34 -> 11 | S34: ='ENERO ok'!S34+' FEBRE'!S34+MARZO!S34+ABRIL!S34+MAYO!S34+JUNIO!S34 -> 7 | T34: ='ENERO ok'!T34+' FEBRE'!T34+MARZO!T34+ABRIL!T34+MAYO!T34+JUNIO!T34 -> 11 | U34: ='ENERO ok'!U34+' FEBRE'!U34+MARZO!U34+ABRIL!U34+MAYO!U34+JUNIO!U34 -> 9 | V34: 709 | W34: 334 | AC34: 0.4710860367
C35: ROBO DE OBJETOS | D35: 167 | E35: 89 | F35: ='ENERO ok'!F35+' FEBRE'!F35+MARZO!F35+ABRIL!F35+MAYO!F35+JUNIO!F35 -> 36 | G35: ='ENERO ok'!G35+' FEBRE'!G35+MARZO!G35+ABRIL!G35+MAYO!G35+JUNIO!G35 -> 6 | H35: ='ENERO ok'!H35+' FEBRE'!H35+MARZO!H35+ABRIL!H35+MAYO!H35+JUNIO!H35 -> 10 | I35: ='ENERO ok'!I35+' FEBRE'!I35+MARZO!I35+ABRIL!I35+MAYO!I35+JUNIO!I35 -> 3 | J35: ='ENERO ok'!J35+' FEBRE'!J35+MARZO!J35+ABRIL!J35+MAYO!J35+JUNIO!J35 -> 1 | K35: ='ENERO ok'!K35+' FEBRE'!K35+MARZO!K35+ABRIL!K35+MAYO!K35+JUNIO!K35 -> 0 | L35: ='ENERO ok'!L35+' FEBRE'!L35+MARZO!L35+ABRIL!L35+MAYO!L35+JUNIO!L35 -> 1 | M35: ='ENERO ok'!M35+' FEBRE'!M35+MARZO!M35+ABRIL!M35+MAYO!M35+JUNIO!M35 -> 1 | N35: ='ENERO ok'!N35+' FEBRE'!N35+MARZO!N35+ABRIL!N35+MAYO!N35+JUNIO!N35 -> 5 | O35: ='ENERO ok'!O35+' FEBRE'!O35+MARZO!O35+ABRIL!O35+MAYO!O35+JUNIO!O35 -> 3 | P35: ='ENERO ok'!P35+' FEBRE'!P35+MARZO!P35+ABRIL!P35+MAYO!P35+JUNIO!P35 -> 1 | Q35: ='ENERO ok'!Q35+' FEBRE'!Q35+MARZO!Q35+ABRIL!Q35+MAYO!Q35+JUNIO!Q35 -> 0 | R35: ='ENERO ok'!R35+' FEBRE'!R35+MARZO!R35+ABRIL!R35+MAYO!R35+JUNIO!R35 -> 0 | S35: ='ENERO ok'!S35+' FEBRE'!S35+MARZO!S35+ABRIL!S35+MAYO!S35+JUNIO!S35 -> 0 | T35: ='ENERO ok'!T35+' FEBRE'!T35+MARZO!T35+ABRIL!T35+MAYO!T35+JUNIO!T35 -> 2 | U35: ='ENERO ok'!U35+' FEBRE'!U35+MARZO!U35+ABRIL!U35+MAYO!U35+JUNIO!U35 -> 1 | V35: 223 | W35: 103 | AC35: 0.4618834081
C36: ROBO AGRAVADO DE OBJETOS | D36: 467 | E36: 77 | F36: ='ENERO ok'!F36+' FEBRE'!F36+MARZO!F36+ABRIL!F36+MAYO!F36+JUNIO!F36 -> 99 | G36: ='ENERO ok'!G36+' FEBRE'!G36+MARZO!G36+ABRIL!G36+MAYO!G36+JUNIO!G36 -> 16 | H36: ='ENERO ok'!H36+' FEBRE'!H36+MARZO!H36+ABRIL!H36+MAYO!H36+JUNIO!H36 -> 37 | I36: ='ENERO ok'!I36+' FEBRE'!I36+MARZO!I36+ABRIL!I36+MAYO!I36+JUNIO!I36 -> 8 | J36: ='ENERO ok'!J36+' FEBRE'!J36+MARZO!J36+ABRIL!J36+MAYO!J36+JUNIO!J36 -> 15 | K36: ='ENERO ok'!K36+' FEBRE'!K36+MARZO!K36+ABRIL!K36+MAYO!K36+JUNIO!K36 -> 1 | L36: ='ENERO ok'!L36+' FEBRE'!L36+MARZO!L36+ABRIL!L36+MAYO!L36+JUNIO!L36 -> 0 | M36: ='ENERO ok'!M36+' FEBRE'!M36+MARZO!M36+ABRIL!M36+MAYO!M36+JUNIO!M36 -> 0 | N36: ='ENERO ok'!N36+' FEBRE'!N36+MARZO!N36+ABRIL!N36+MAYO!N36+JUNIO!N36 -> 13 | O36: ='ENERO ok'!O36+' FEBRE'!O36+MARZO!O36+ABRIL!O36+MAYO!O36+JUNIO!O36 -> 3 | P36: ='ENERO ok'!P36+' FEBRE'!P36+MARZO!P36+ABRIL!P36+MAYO!P36+JUNIO!P36 -> 0 | Q36: ='ENERO ok'!Q36+' FEBRE'!Q36+MARZO!Q36+ABRIL!Q36+MAYO!Q36+JUNIO!Q36 -> 0 | R36: ='ENERO ok'!R36+' FEBRE'!R36+MARZO!R36+ABRIL!R36+MAYO!R36+JUNIO!R36 -> 1 | S36: ='ENERO ok'!S36+' FEBRE'!S36+MARZO!S36+ABRIL!S36+MAYO!S36+JUNIO!S36 -> 1 | T36: ='ENERO ok'!T36+' FEBRE'!T36+MARZO!T36+ABRIL!T36+MAYO!T36+JUNIO!T36 -> 7 | U36: ='ENERO ok'!U36+' FEBRE'!U36+MARZO!U36+ABRIL!U36+MAYO!U36+JUNIO!U36 -> 4 | V36: 639 | W36: 110 | AC36: 0.172143975
C37: ROBO DE VEHICULOS | D37: 256 | E37: 5 | F37: ='ENERO ok'!F37+' FEBRE'!F37+MARZO!F37+ABRIL!F37+MAYO!F37+JUNIO!F37 -> 10 | G37: ='ENERO ok'!G37+' FEBRE'!G37+MARZO!G37+ABRIL!G37+MAYO!G37+JUNIO!G37 -> 1 | H37: ='ENERO ok'!H37+' FEBRE'!H37+MARZO!H37+ABRIL!H37+MAYO!H37+JUNIO!H37 -> 6 | I37: ='ENERO ok'!I37+' FEBRE'!I37+MARZO!I37+ABRIL!I37+MAYO!I37+JUNIO!I37 -> 3 | J37: ='ENERO ok'!J37+' FEBRE'!J37+MARZO!J37+ABRIL!J37+MAYO!J37+JUNIO!J37 -> 1 | K37: ='ENERO ok'!K37+' FEBRE'!K37+MARZO!K37+ABRIL!K37+MAYO!K37+JUNIO!K37 -> 0 | L37: ='ENERO ok'!L37+' FEBRE'!L37+MARZO!L37+ABRIL!L37+MAYO!L37+JUNIO!L37 -> 0 | M37: ='ENERO ok'!M37+' FEBRE'!M37+MARZO!M37+ABRIL!M37+MAYO!M37+JUNIO!M37 -> 0 | N37: ='ENERO ok'!N37+' FEBRE'!N37+MARZO!N37+ABRIL!N37+MAYO!N37+JUNIO!N37 -> 3 | O37: ='ENERO ok'!O37+' FEBRE'!O37+MARZO!O37+ABRIL!O37+MAYO!O37+JUNIO!O37 -> 0 | P37: ='ENERO ok'!P37+' FEBRE'!P37+MARZO!P37+ABRIL!P37+MAYO!P37+JUNIO!P37 -> 0 | Q37: ='ENERO ok'!Q37+' FEBRE'!Q37+MARZO!Q37+ABRIL!Q37+MAYO!Q37+JUNIO!Q37 -> 0 | R37: ='ENERO ok'!R37+' FEBRE'!R37+MARZO!R37+ABRIL!R37+MAYO!R37+JUNIO!R37 -> 1 | S37: ='ENERO ok'!S37+' FEBRE'!S37+MARZO!S37+ABRIL!S37+MAYO!S37+JUNIO!S37 -> 0 | T37: ='ENERO ok'!T37+' FEBRE'!T37+MARZO!T37+ABRIL!T37+MAYO!T37+JUNIO!T37 -> 1 | U37: ='ENERO ok'!U37+' FEBRE'!U37+MARZO!U37+ABRIL!U37+MAYO!U37+JUNIO!U37 -> 0 | V37: 278 | W37: 9 | AC37: 0.03237410072
C38: ROBO AGRAVADO DE VEHICULOS | D38: 23 | E38: 1 | F38: ='ENERO ok'!F38+' FEBRE'!F38+MARZO!F38+ABRIL!F38+MAYO!F38+JUNIO!F38 -> 12 | G38: ='ENERO ok'!G38+' FEBRE'!G38+MARZO!G38+ABRIL!G38+MAYO!G38+JUNIO!G38 -> 3 | H38: ='ENERO ok'!H38+' FEBRE'!H38+MARZO!H38+ABRIL!H38+MAYO!H38+JUNIO!H38 -> 3 | I38: ='ENERO ok'!I38+' FEBRE'!I38+MARZO!I38+ABRIL!I38+MAYO!I38+JUNIO!I38 -> 1 | J38: ='ENERO ok'!J38+' FEBRE'!J38+MARZO!J38+ABRIL!J38+MAYO!J38+JUNIO!J38 -> 2 | K38: ='ENERO ok'!K38+' FEBRE'!K38+MARZO!K38+ABRIL!K38+MAYO!K38+JUNIO!K38 -> 1 | L38: ='ENERO ok'!L38+' FEBRE'!L38+MARZO!L38+ABRIL!L38+MAYO!L38+JUNIO!L38 -> 0 | M38: ='ENERO ok'!M38+' FEBRE'!M38+MARZO!M38+ABRIL!M38+MAYO!M38+JUNIO!M38 -> 0 | N38: ='ENERO ok'!N38+' FEBRE'!N38+MARZO!N38+ABRIL!N38+MAYO!N38+JUNIO!N38 -> 2 | O38: ='ENERO ok'!O38+' FEBRE'!O38+MARZO!O38+ABRIL!O38+MAYO!O38+JUNIO!O38 -> 1 | P38: ='ENERO ok'!P38+' FEBRE'!P38+MARZO!P38+ABRIL!P38+MAYO!P38+JUNIO!P38 -> 0 | Q38: ='ENERO ok'!Q38+' FEBRE'!Q38+MARZO!Q38+ABRIL!Q38+MAYO!Q38+JUNIO!Q38 -> 0 | R38: ='ENERO ok'!R38+' FEBRE'!R38+MARZO!R38+ABRIL!R38+MAYO!R38+JUNIO!R38 -> 0 | S38: ='ENERO ok'!S38+' FEBRE'!S38+MARZO!S38+ABRIL!S38+MAYO!S38+JUNIO!S38 -> 0 | T38: ='ENERO ok'!T38+' FEBRE'!T38+MARZO!T38+ABRIL!T38+MAYO!T38+JUNIO!T38 -> 0 | U38: ='ENERO ok'!U38+' FEBRE'!U38+MARZO!U38+ABRIL!U38+MAYO!U38+JUNIO!U38 -> 0 | V38: 42 | W38: 7 | AC38: 0.1666666667
C39: ROBO DE MOTOCICLETAS | D39: 944 | E39: 70 | F39: ='ENERO ok'!F39+' FEBRE'!F39+MARZO!F39+ABRIL!F39+MAYO!F39+JUNIO!F39 -> 46 | G39: ='ENERO ok'!G39+' FEBRE'!G39+MARZO!G39+ABRIL!G39+MAYO!G39+JUNIO!G39 -> 8 | H39: ='ENERO ok'!H39+' FEBRE'!H39+MARZO!H39+ABRIL!H39+MAYO!H39+JUNIO!H39 -> 62 | I39: ='ENERO ok'!I39+' FEBRE'!I39+MARZO!I39+ABRIL!I39+MAYO!I39+JUNIO!I39 -> 1 | J39: ='ENERO ok'!J39+' FEBRE'!J39+MARZO!J39+ABRIL!J39+MAYO!J39+JUNIO!J39 -> 4 | K39: ='ENERO ok'!K39+' FEBRE'!K39+MARZO!K39+ABRIL!K39+MAYO!K39+JUNIO!K39 -> 0 | L39: ='ENERO ok'!L39+' FEBRE'!L39+MARZO!L39+ABRIL!L39+MAYO!L39+JUNIO!L39 -> 2 | M39: ='ENERO ok'!M39+' FEBRE'!M39+MARZO!M39+ABRIL!M39+MAYO!M39+JUNIO!M39 -> 0 | N39: ='ENERO ok'!N39+' FEBRE'!N39+MARZO!N39+ABRIL!N39+MAYO!N39+JUNIO!N39 -> 27 | O39: ='ENERO ok'!O39+' FEBRE'!O39+MARZO!O39+ABRIL!O39+MAYO!O39+JUNIO!O39 -> 5 | P39: ='ENERO ok'!P39+' FEBRE'!P39+MARZO!P39+ABRIL!P39+MAYO!P39+JUNIO!P39 -> 13 | Q39: ='ENERO ok'!Q39+' FEBRE'!Q39+MARZO!Q39+ABRIL!Q39+MAYO!Q39+JUNIO!Q39 -> 3 | R39: ='ENERO ok'!R39+' FEBRE'!R39+MARZO!R39+ABRIL!R39+MAYO!R39+JUNIO!R39 -> 3 | S39: ='ENERO ok'!S39+' FEBRE'!S39+MARZO!S39+ABRIL!S39+MAYO!S39+JUNIO!S39 -> 1 | T39: ='ENERO ok'!T39+' FEBRE'!T39+MARZO!T39+ABRIL!T39+MAYO!T39+JUNIO!T39 -> 22 | U39: ='ENERO ok'!U39+' FEBRE'!U39+MARZO!U39+ABRIL!U39+MAYO!U39+JUNIO!U39 -> 7 | V39: 1123 | W39: 95 | AC39: 0.08459483526
C40: ROBO AGRAVADO DE MOTOCICLETAS | D40: =(X20) -> 152 | E40: =(Y20) -> 24 | F40: ='ENERO ok'!F40+' FEBRE'!F40+MARZO!F40+ABRIL!F40+MAYO!F40+JUNIO!F40 -> 15 | G40: ='ENERO ok'!G40+' FEBRE'!G40+MARZO!G40+ABRIL!G40+MAYO!G40+JUNIO!G40 -> 2 | H40: ='ENERO ok'!H40+' FEBRE'!H40+MARZO!H40+ABRIL!H40+MAYO!H40+JUNIO!H40 -> 7 | I40: ='ENERO ok'!I40+' FEBRE'!I40+MARZO!I40+ABRIL!I40+MAYO!I40+JUNIO!I40 -> 3 | J40: ='ENERO ok'!J40+' FEBRE'!J40+MARZO!J40+ABRIL!J40+MAYO!J40+JUNIO!J40 -> 2 | K40: ='ENERO ok'!K40+' FEBRE'!K40+MARZO!K40+ABRIL!K40+MAYO!K40+JUNIO!K40 -> 0 | L40: ='ENERO ok'!L40+' FEBRE'!L40+MARZO!L40+ABRIL!L40+MAYO!L40+JUNIO!L40 -> 0 | M40: ='ENERO ok'!M40+' FEBRE'!M40+MARZO!M40+ABRIL!M40+MAYO!M40+JUNIO!M40 -> 0 | N40: ='ENERO ok'!N40+' FEBRE'!N40+MARZO!N40+ABRIL!N40+MAYO!N40+JUNIO!N40 -> 3 | O40: ='ENERO ok'!O40+' FEBRE'!O40+MARZO!O40+ABRIL!O40+MAYO!O40+JUNIO!O40 -> 1 | P40: ='ENERO ok'!P40+' FEBRE'!P40+MARZO!P40+ABRIL!P40+MAYO!P40+JUNIO!P40 -> 0 | Q40: ='ENERO ok'!Q40+' FEBRE'!Q40+MARZO!Q40+ABRIL!Q40+MAYO!Q40+JUNIO!Q40 -> 0 | R40: ='ENERO ok'!R40+' FEBRE'!R40+MARZO!R40+ABRIL!R40+MAYO!R40+JUNIO!R40 -> 0 | S40: ='ENERO ok'!S40+' FEBRE'!S40+MARZO!S40+ABRIL!S40+MAYO!S40+JUNIO!S40 -> 0 | T40: ='ENERO ok'!T40+' FEBRE'!T40+MARZO!T40+ABRIL!T40+MAYO!T40+JUNIO!T40 -> 1 | U40: ='ENERO ok'!U40+' FEBRE'!U40+MARZO!U40+ABRIL!U40+MAYO!U40+JUNIO!U40 -> 0 | V40: 180 | W40: 30 | AC40: 0.1666666667
C41: TOTAL | D41: =+(D21+F21+H21+J21+L21+N21+P21+R21+T21+V21) -> 4995 | E41: =+(E21+G21+I21+K21+M21+O21+Q21+S21+U21+W21) -> 2067 | F41: =SUM(F27:F40) -> 646 | G41: =SUM(G27:G40) -> 275 | H41: 445 | I41: 196 | J41: 79 | K41: 30 | L41: 80 | M41: 57 | N41: 308 | O41: 168 | P41: 129 | Q41: 62 | R41: 34 | S41: 24 | T41: 89 | U41: 56 | V41: 6805 | W41: 2935
C42: PORCENTAJE DE ACLARADOS | D42: =+(E41/D41) -> 0.4138138138 | F42: =+(G41/F41) -> 0.4256965944 | H42: =+(I41/H41) -> 0.4404494382 | J42: =+(K41/J41) -> 0.3797468354 | L42: =+(M41/L41) -> 0.7125 | N42: =+(O41/N41) -> 0.5454545455 | P42: =+(Q41/P41) -> 0.480620155 | R42: =+(S41/R41) -> 0.7058823529 | T42: =+(U41/T41) -> 0.6292134831 | V42: =+(W41/V41) -> 0.4313005143
C44: FUENTE: ELABORADO EN EL DPTO. DE ESTADISTICA EN BASE A DATOS PROPORCIONADOS POR LA DIRECCION GENERAL. DE PREVENCION Y SEGURIDAD.

Sheet GRAF 1° SEMESTRE
B1: INFORME ESTADISTICO MENSUAL 3 | Q1: POLICIA NACIONAL - DPTO. DE ESTADISTICA
D5: HECHOS PUNIBLES MAS RESALTANTES, DENUNCIADOS EN TODO EL PAÍS. PRIMER SEMESTRE 2020
T7: DENUNCIADOS
S8: ABIGEATO | T8: 348
S9: COACCION SEXUAL | T9: 280
S10: HOMICIDIO CULPOSO EN ACC DE TTO. | T10: 334
S11: HOMICIDIO DOLOSO | T11: 198
S12: HURTO | T12: 705
S13: HURTO AGRAVADO | T13: 559
S14: LESION CULPOSA EN ACC. DE TTO. | T14: 1187
S15: LESION | T15: 709
S16: ROBO DE OBJETOS | T16: 223
S17: ROBO AGRAVADO DE OBJETOS | T17: 639
S18: ROBO DE VEHICULOS | T18: 278
S19: ROBO AGRAVADO DE VEHICULOS | T19: 42
S20: ROBO DE MOTOCICLETAS | T20: 1123
S21: ROBO AGRAVADO DE MOTOCICLETAS | T21: 180
T22: =SUM(T8:T21) -> 6805
D41: FUENTE: ELABORADO EN EL DPTO. DE ESTADISTICA EN BASE A DATOS PROPORCIONADOS POR LA DIRECCION GENERAL PREVENCION Y SEGURIDAD.

Sheet JULIO
B1: INFORME ESTADISTICO MENSUAL 4 | AB1: POLICIA NACIONAL - DPTO. DE ESTADISTICA
D2: HECHOS PUNIBLES MAS RESALTANTES,DENUNCIADOS Y ACLARADOS EN TODO EL PAÍS POR ZONAS POLICIALES. JULIO 2020
D4: HECHOS PUNIBLES | E4: DIRECCIONES POLICIALES | Y4: SUB TOTAL
E5: Asuncion | G5: Central | I5: Cordillera | K5: Amambay | M5: Concepcion | O5: Alto Py. | Q5: San Pedro | S5: Caaguazu | U5: Caazapa | W5: Guaira
E6: D | F6: A | G6: D | H6: A | I6: D | J6: A | K6: D | L6: A | M6: D | N6: A | O6: D | P6: A | Q6: D | R6: A | S6: D | T6: A | U6: D | V6: A | W6: D | X6: A | Y6: D | Z6: A
D7: ABIGEATO | Y7: =(E7+G7+I7+K7+M7+O7+Q7+S7+U7+W7) -> 0 | Z7: 0
D8: COACCION SEXUAL | Y8: 0 | Z8: 0
D9: HOMICIDIO CULPOSO EN ACC DE TTO. | Y9: 0 | Z9: 0
D10: HOMICIDIO DOLOSO | Y10: 0 | Z10: 0
D11: HURTO | Y11: =(E11+G11+I11+K11+M11+O11+Q11+S11+U11+W11) -> 0 | Z11: =(F11+H11+J11+L11+N11+P11+R11+T11+V11+X11) -> 0
D12: HURTO AGRAVADO | Y12: =(E12+G12+I12+K12+M12+O12+Q12+S12+U12+W12) -> 0 | Z12: =(F12+H12+J12+L12+N12+P12+R12+T12+V12+X12) -> 0
D13: LESION CULPOSA EN ACC. DE TTO. | Y13: 0 | Z13: 0
D14: LESION | Y14: 0 | Z14: 0
D15: ROBO DE OBJETOS | Y15: 0 | Z15: 0
D16: ROBO AGRAVADO DE OBJETOS | Y16: 0 | Z16: 0
D17: ROBO DE VEHICULOS | Y17: 0 | Z17: 0
D18: ROBO AGRAVADO DE VEHICULOS | Y18: 0 | Z18: 0
D19: ROBO DE MOTOCICLETAS | Y19: 0 | Z19: 0
D20: ROBO AGRAVADO DE MOTOCICLETAS | Y20: 0 | Z20: 0
D21: TOTAL | E21: =E7+E8+E9+E10+E11+E12+E13+E14+E15+E16+E17+E18+E19+E20 -> 0 | F21: =F7+F8+F9+F10+F11+F12+F13+F14+F15+F16+F17+F18+F19+F20 -> 0 | G21: 0 | H21: 0 | I21: 0 | J21: 0 | K21: 0 | L21: 0 | M21: 0 | N21: 0 | O21: 0 | P21: 0 | Q21: 0 | R21: 0 | S21: 0 | T21: 0 | U21: 0 | V21: 0 | W21: 0 | X21: 0 | Y21: =SUM(Y7:Y20) -> 0 | Z21: =SUM(Z7:Z20) -> 0
D22: PORCENTAJE DE ACLARADOS | E22: =SUM(E21:F21) -> 0 | G22: =+(H21/G21) ->  | I22: =+(J21/I21) ->  | K22: =+(L21/K21) ->  | M22: =+(N21/M21) ->  | O22: =+(P21/O21) ->  | Q22: =+(R21/Q21) ->  | S22: =+(T21/S21) ->  | U22: =+(V21/U21) ->  | W22: =+(X21/W21) ->  | Y22: =+(Z21/Y21) -> 
D24: HECHOS PUNIBLES | E24: TRANSPORTE | G24: DIRECCIONES POLICIALES | W24: TOTAL
G25: Alto Paraná | I25: Itapua | K25: Canindeyú | M25: Misiones | O25: Paraguari | Q25: Ñeembucu | S25: Boqueron | U25: Pte Hayes
E26: D | F26: A | G26: D | H26: A | I26: D | J26: A | K26: D | L26: A | M26: D | N26: A | O26: D | P26: A | Q26: D | R26: A | S26: D | T26: A | U26: D | V26: A | W26: D | X26: A
D27: ABIGEATO | E27: =(Y7) -> 0 | F27: 0 | W27: =(E27+G27+I27+K27+M27+O27+Q27+S27+U27) -> 0 | X27: =(F27+H27+J27+L27+N27+P27+R27+T27+V27) -> 0 | AD27: =(X27/W27) -> 
D28: COACCION SEXUAL | E28: 0 | F28: 0 | W28: 0 | X28: =(F28+H28+J28+L28+N28+P28+R28+T28+V28) -> 0 | AD28: =(X28/W28) -> 
D29: HOMICIDIO CULPOSO EN ACC DE TTO. | E29: 0 | F29: 0 | W29: 0 | X29: 0
D30: HOMICIDIO DOLOSO | E30: 0 | F30: 0 | W30: 0 | X30: 0
D31: HURTO | E31: 0 | F31: 0 | W31: =(E31+G31+I31+K31+M31+O31+Q31+S31+U31) -> 0 | X31: =(F31+H31+J31+L31+N31+P31+R31+T31+V31) -> 0
D32: HURTO AGRAVADO | E32: 0 | F32: 0 | W32: =(E32+G32+I32+K32+M32+O32+Q32+S32+U32) -> 0 | X32: =(F32+H32+J32+L32+N32+P32+R32+T32+V32) -> 0
D33: LESION CULPOSA EN ACC. DE TTO. | E33: 0 | F33: 0 | W33: 0 | X33: 0
D34: LESION | E34: 0 | F34: 0 | W34: 0 | X34: 0
D35: ROBO DE OBJETOS | E35: 0 | F35: 0 | W35: 0 | X35: 0
D36: ROBO AGRAVADO DE OBJETOS | E36: 0 | F36: 0 | W36: 0 | X36: 0
D37: ROBO DE VEHICULOS | E37: 0 | F37: 0 | W37: 0 | X37: 0
D38: ROBO AGRAVADO DE VEHICULOS | E38: 0 | F38: 0 | W38: 0 | X38: 0
D39: ROBO DE MOTOCICLETAS | E39: 0 | F39: 0 | W39: 0 | X39: 0
D40: ROBO AGRAVADO DE MOTOCICLETAS | E40: =(Y20) -> 0 | F40: =(Z20) -> 0 | W40: 0 | X40: 0
D41: TOTAL | E41: =+(E21+G21+I21+K21+M21+O21+Q21+S21+U21+W21) -> 0 | F41: =+(F21+H21+J21+L21+N21+P21+R21+T21+V21+X21) -> 0 | G41: =SUM(G27:G40) -> 0 | H41: =SUM(H27:H40) -> 0 | I41: 0 | J41: 0 | K41: 0 | L41: 0 | M41: 0 | N41: 0 | O41: 0 | P41: 0 | Q41: 0 | R41: 0 | S41: 0 | T41: 0 | U41: 0 | V41: 0 | W41: =SUM(W27:W40) -> 0 | X41: =SUM(X27:X40) -> 0
D42: PORCENTAJE DE ACLARADOS | E42: =+(F41/E41) ->  | G42: =+(H41/G41) ->  | I42: =+(J41/I41) ->  | K42: =+(L41/K41) ->  | M42: =+(N41/M41) ->  | O42: =+(P41/O41) ->  | Q42: =+(R41/Q41) ->  | S42: =+(T41/S41) ->  | U42: =+(V41/U41) ->  | W42: =+(X41/W41) -> 
D44: FUENTE: ELABORADO EN EL DPTO. DE ESTADISTICA EN BASE A DATOS PROPORCIONADOS POR LA DIRECCION GENERAL. DE PREVENCION Y SEGURIDAD.

Sheet GRAF 7
B1: INFORME ESTADISTICO MENSUAL 3 | Q1: POLICIA NACIONAL - DPTO. DE ESTADISTICA
D5: HECHOS PUNIBLES MAS RESALTANTES, DENUNCIADOS EN TODO EL PAÍS. JULIO 2020
T7: DENUNCIADOS
S8: ABIGEATO
S9: COACCION SEXUAL
S10: HOMICIDIO CULPOSO EN ACC DE TTO.
S11: HOMICIDIO DOLOSO
S12: HURTO
S13: HURTO AGRAVADO
S14: LESION CULPOSA EN ACC. DE TTO.
S15: LESION
S16: ROBO DE OBJETOS
S17: ROBO AGRAVADO DE OBJETOS
S18: ROBO DE VEHICULOS
S19: ROBO AGRAVADO DE VEHICULOS
S20: ROBO DE MOTOCICLETAS
S21: ROBO AGRAVADO DE MOTOCICLETAS
T22: =SUM(T8:T21) -> 0
D41: FUENTE: ELABORADO EN EL DPTO. DE ESTADISTICA EN BASE A DATOS PROPORCIONADOS POR LA DIRECCION GENERAL PREVENCION Y SEGURIDAD.

Sheet AGOSTO
B1: INFORME ESTADISTICO MENSUAL 4 | AB1: POLICIA NACIONAL - DPTO. DE ESTADISTICA
D2: HECHOS PUNIBLES MAS RESALTANTES,DENUNCIADOS Y ACLARADOS EN TODO EL PAÍS POR ZONAS POLICIALES. AGOSTO 2020
D4: HECHOS PUNIBLES | E4: DIRECCIONES POLICIALES | Y4: SUB TOTAL
E5: Asuncion | G5: Central | I5: Cordillera | K5: Amambay | M5: Concepcion | O5: Alto Py. | Q5: San Pedro | S5: Caaguazu | U5: Caazapa | W5: Guaira
E6: D | F6: A | G6: D | H6: A | I6: D | J6: A | K6: D | L6: A | M6: D | N6: A | O6: D | P6: A | Q6: D | R6: A | S6: D | T6: A | U6: D | V6: A | W6: D | X6: A | Y6: D | Z6: A
D7: ABIGEATO | Y7: =(E7+G7+I7+K7+M7+O7+Q7+S7+U7+W7) -> 0 | Z7: 0
D8: COACCION SEXUAL | Y8: 0 | Z8: 0
D9: HOMICIDIO CULPOSO EN ACC DE TTO. | Y9: 0 | Z9: 0
D10: HOMICIDIO DOLOSO | Y10: 0 | Z10: 0
D11: HURTO | Y11: =(E11+G11+I11+K11+M11+O11+Q11+S11+U11+W11) -> 0 | Z11: =(F11+H11+J11+L11+N11+P11+R11+T11+V11+X11) -> 0
D12: HURTO AGRAVADO | Y12: =(E12+G12+I12+K12+M12+O12+Q12+S12+U12+W12) -> 0 | Z12: =(F12+H12+J12+L12+N12+P12+R12+T12+V12+X12) -> 0
D13: LESION CULPOSA EN ACC. DE TTO. | Y13: 0 | Z13: 0
D14: LESION | Y14: 0 | Z14: 0
D15: ROBO DE OBJETOS | Y15: =(E15+G15+I15+K15+M15+O15+Q15+S15+U15+W15) -> 0 | Z15: 0
D16: ROBO AGRAVADO DE OBJETOS | Y16: 0 | Z16: 0
D17: ROBO DE VEHICULOS | Y17: 0 | Z17: 0
D18: ROBO AGRAVADO DE VEHICULOS | Y18: 0 | Z18: 0
D19: ROBO DE MOTOCICLETAS | Y19: 0 | Z19: 0
D20: ROBO AGRAVADO DE MOTOCICLETAS | Y20: 0 | Z20: 0
D21: TOTAL | E21: =E7+E8+E9+E10+E11+E12+E13+E14+E15+E16+E17+E18+E19+E20 -> 0 | F21: =F7+F8+F9+F10+F11+F12+F13+F14+F15+F16+F17+F18+F19+F20 -> 0 | G21: 0 | H21: 0 | I21: 0 | J21: 0 | K21: 0 | L21: 0 | M21: 0 | N21: 0 | O21: 0 | P21: 0 | Q21: 0 | R21: 0 | S21: 0 | T21: 0 | U21: 0 | V21: 0 | W21: 0 | X21: 0 | Y21: =SUM(Y7:Y20) -> 0 | Z21: =SUM(Z7:Z20) -> 0
D22: PORCENTAJE DE ACLARADOS | E22: =+(F21/E21) ->  | G22: =+(H21/G21) ->  | I22: =+(J21/I21) ->  | K22: =+(L21/K21) ->  | M22: =+(N21/M21) ->  | O22: =+(P21/O21) ->  | Q22: =+(R21/Q21) ->  | S22: =+(T21/S21) ->  | U22: =+(V21/U21) ->  | W22: =+(X21/W21) ->  | Y22: =+(Z21/Y21) -> 
D24: HECHOS PUNIBLES | E24: TRANSPORTE | G24: DIRECCIONES POLICIALES | W24: TOTAL
G25: Alto Paraná | I25: Itapua | K25: Canindeyú | M25: Misiones | O25: Paraguari | Q25: Ñeembucu | S25: Boqueron | U25: Pte Hayes
E26: D | F26: A | G26: D | H26: A | I26: D | J26: A | K26: D | L26: A | M26: D | N26: A | O26: D | P26: A | Q26: D | R26: A | S26: D | T26: A | U26: D | V26: A | W26: D | X26: A
D27: ABIGEATO | E27: =(Y7) -> 0 | F27: 0 | W27: =(E27+G27+I27+K27+M27+O27+Q27+S27+U27) -> 0 | X27: =(F27+H27+J27+L27+N27+P27+R27+T27+V27) -> 0 | AD27: =(X27/W27) -> 
D28: COACCION SEXUAL | E28: 0 | F28: 0 | W28: 0 | X28: =(F28+H28+J28+L28+N28+P28+R28+T28+V28) -> 0 | AD28: =(X28/W28) -> 
D29: HOMICIDIO CULPOSO EN ACC DE TTO. | E29: 0 | F29: 0 | W29: 0 | X29: 0
D30: HOMICIDIO DOLOSO | E30: 0 | F30: 0 | W30: 0 | X30: 0
D31: HURTO | E31: 0 | F31: 0 | W31: =(E31+G31+I31+K31+M31+O31+Q31+S31+U31) -> 0 | X31: =(F31+H31+J31+L31+N31+P31+R31+T31+V31) -> 0
D32: HURTO AGRAVADO | E32: 0 | F32: 0 | W32: =(E32+G32+I32+K32+M32+O32+Q32+S32+U32) -> 0 | X32: =(F32+H32+J32+L32+N32+P32+R32+T32+V32) -> 0
D33: LESION CULPOSA EN ACC. DE TTO. | E33: 0 | F33: 0 | W33: 0 | X33: 0
D34: LESION | E34: 0 | F34: 0 | W34: 0 | X34: 0
D35: ROBO DE OBJETOS | E35: 0 | F35: 0 | W35: 0 | X35: 0
D36: ROBO AGRAVADO DE OBJETOS | E36: 0 | F36: 0 | W36: =(E36+G36+I36+K36+M36+O36+Q36+S36+U36) -> 0 | X36: 0
D37: ROBO DE VEHICULOS | E37: 0 | F37: 0 | W37: 0 | X37: 0
D38: ROBO AGRAVADO DE VEHICULOS | E38: 0 | F38: 0 | W38: 0 | X38: 0
D39: ROBO DE MOTOCICLETAS | E39: 0 | F39: 0 | W39: 0 | X39: 0
D40: ROBO AGRAVADO DE MOTOCICLETAS | E40: =(Y20) -> 0 | F40: =(Z20) -> 0 | W40: 0 | X40: 0
D41: TOTAL | E41: =+(E21+G21+I21+K21+M21+O21+Q21+S21+U21+W21) -> 0 | F41: =+(F21+H21+J21+L21+N21+P21+R21+T21+V21+X21) -> 0 | G41: =SUM(G27:G40) -> 0 | H41: =SUM(H27:H40) -> 0 | I41: 0 | J41: 0 | K41: 0 | L41: 0 | M41: 0 | N41: 0 | O41: 0 | P41: 0 | Q41: 0 | R41: 0 | S41: 0 | T41: 0 | U41: 0 | V41: 0 | W41: =SUM(W27:W40) -> 0 | X41: =SUM(X27:X40) -> 0
D42: PORCENTAJE DE ACLARADOS | E42: =+(F41/E41) ->  | G42: =+(H41/G41) ->  | I42: =+(J41/I41) ->  | K42: =+(L41/K41) ->  | M42: =+(N41/M41) ->  | O42: =+(P41/O41) ->  | Q42: =+(R41/Q41) ->  | S42: =+(T41/S41) ->  | U42: =+(V41/U41) ->  | W42: =+(X41/W41) -> 
D44: FUENTE: ELABORADO EN EL DPTO. DE ESTADISTICA EN BASE A DATOS PROPORCIONADOS POR LA DIRECCION GENERAL. DE PREVENCION Y SEGURIDAD.

Sheet GRAF 8
B1: INFORME ESTADISTICO MENSUAL 3 | Q1: POLICIA NACIONAL - DPTO. DE ESTADISTICA
D5: HECHOS PUNIBLES MAS RESALTANTES, DENUNCIADOS EN TODO EL PAÍS. AGOSTO 2020
T7: DENUNCIADOS
S8: ABIGEATO
S9: COACCION SEXUAL
S10: HOMICIDIO CULPOSO EN ACC DE TTO.
S11: HOMICIDIO DOLOSO
S12: HURTO
S13: HURTO AGRAVADO
S14: LESION CULPOSA EN ACC. DE TTO.
S15: LESION
S16: ROBO DE OBJETOS
S17: ROBO AGRAVADO DE OBJETOS
S18: ROBO DE VEHICULOS
S19: ROBO AGRAVADO DE VEHICULOS
S20: ROBO DE MOTOCICLETAS
S21: ROBO AGRAVADO DE MOTOCICLETAS
T22: =SUM(T8:T21) -> 0
D41: FUENTE: ELABORADO EN EL DPTO. DE ESTADISTICA EN BASE A DATOS PROPORCIONADOS POR LA DIRECCION GENERAL PREVENCION Y SEGURIDAD.

Sheet SETIEMBRE
B1: INFORME ESTADISTICO MENSUAL 4 | AB1: POLICIA NACIONAL - DPTO. DE ESTADISTICA
D2: HECHOS PUNIBLES MAS RESALTANTES,DENUNCIADOS Y ACLARADOS EN TODO EL PAÍS POR ZONAS POLICIALES. SETIEMBRE 2020
D4: HECHOS PUNIBLES | E4: DIRECCIONES POLICIALES | Y4: SUB TOTAL
E5: Asuncion | G5: Central | I5: Cordillera | K5: Amambay | M5: Concepcion | O5: Alto Py. | Q5: San Pedro | S5: Caaguazu | U5: Caazapa | W5: Guaira
E6: D | F6: A | G6: D | H6: A | I6: D | J6: A | K6: D | L6: A | M6: D | N6: A | O6: D | P6: A | Q6: D | R6: A | S6: D | T6: A | U6: D | V6: A | W6: D | X6: A | Y6: D | Z6: A
D7: ABIGEATO | Y7: =(E7+G7+I7+K7+M7+O7+Q7+S7+U7+W7) -> 0 | Z7: 0
D8: COACCION SEXUAL | Y8: 0 | Z8: 0
D9: HOMICIDIO CULPOSO EN ACC DE TTO. | Y9: 0 | Z9: 0
D10: HOMICIDIO DOLOSO | Y10: 0 | Z10: 0
D11: HURTO | Y11: =(E11+G11+I11+K11+M11+O11+Q11+S11+U11+W11) -> 0 | Z11: =(F11+H11+J11+L11+N11+P11+R11+T11+V11+X11) -> 0
D12: HURTO AGRAVADO | Y12: =(E12+G12+I12+K12+M12+O12+Q12+S12+U12+W12) -> 0 | Z12: =(F12+H12+J12+L12+N12+P12+R12+T12+V12+X12) -> 0
D13: LESION CULPOSA EN ACC. DE TTO. | Y13: 0 | Z13: 0
D14: LESION | Y14: 0 | Z14: 0
D15: ROBO DE OBJETOS | Y15: 0 | Z15: 0
D16: ROBO AGRAVADO DE OBJETOS | Y16: 0 | Z16: 0
D17: ROBO DE VEHICULOS | Y17: 0 | Z17: 0
D18: ROBO AGRAVADO DE VEHICULOS | Y18: 0 | Z18: 0
D19: ROBO DE MOTOCICLETAS | Y19: 0 | Z19: 0
D20: ROBO AGRAVADO DE MOTOCICLETAS | Y20: 0 | Z20: 0
D21: TOTAL | E21: =E7+E8+E9+E10+E11+E12+E13+E14+E15+E16+E17+E18+E19+E20 -> 0 | F21: =F7+F8+F9+F10+F11+F12+F13+F14+F15+F16+F17+F18+F19+F20 -> 0 | G21: 0 | H21: 0 | I21: 0 | J21: 0 | K21: 0 | L21: 0 | M21: 0 | N21: 0 | O21: 0 | P21: 0 | Q21: 0 | R21: 0 | S21: 0 | T21: 0 | U21: 0 | V21: 0 | W21: 0 | X21: 0 | Y21: =SUM(Y7:Y20) -> 0 | Z21: =SUM(Z7:Z20) -> 0
D22: PORCENTAJE DE ACLARADOS | E22: =+(F21/E21) ->  | G22: =+(H21/G21) ->  | I22: =+(J21/I21) ->  | K22: =+(L21/K21) ->  | M22: =+(N21/M21) ->  | O22: =+(P21/O21) ->  | Q22: =+(R21/Q21) ->  | S22: =+(T21/S21) ->  | U22: =+(V21/U21) ->  | W22: =+(X21/W21) ->  | Y22: =+(Z21/Y21) -> 
D24: HECHOS PUNIBLES | E24: TRANSPORTE | G24: DIRECCIONES POLICIALES | W24: TOTAL
G25: Alto Paraná | I25: Itapua | K25: Canindeyú | M25: Misiones | O25: Paraguari | Q25: Ñeembucu | S25: Boqueron | U25: Pte Hayes
E26: D | F26: A | G26: D | H26: A | I26: D | J26: A | K26: D | L26: A | M26: D | N26: A | O26: D | P26: A | Q26: D | R26: A | S26: D | T26: A | U26: D | V26: A | W26: D | X26: A
D27: ABIGEATO | E27: =(Y7) -> 0 | F27: 0 | W27: =(E27+G27+I27+K27+M27+O27+Q27+S27+U27) -> 0 | X27: =(F27+H27+J27+L27+N27+P27+R27+T27+V27) -> 0 | AD27: =(X27/W27) -> 
D28: COACCION SEXUAL | E28: 0 | F28: 0 | W28: 0 | X28: =(F28+H28+J28+L28+N28+P28+R28+T28+V28) -> 0 | AD28: =(X28/W28) -> 
D29: HOMICIDIO CULPOSO EN ACC DE TTO. | E29: 0 | F29: 0 | W29: 0 | X29: 0
D30: HOMICIDIO DOLOSO | E30: 0 | F30: 0 | W30: =(E30+G30+I30+K30+M30+O30+Q30+S30+U30) -> 0 | X30: 0
D31: HURTO | E31: 0 | F31: 0 | W31: =(E31+G31+I31+K31+M31+O31+Q31+S31+U31) -> 0 | X31: =(F31+H31+J31+L31+N31+P31+R31+T31+V31) -> 0
D32: HURTO AGRAVADO | E32: 0 | F32: 0 | W32: =(E32+G32+I32+K32+M32+O32+Q32+S32+U32) -> 0 | X32: =(F32+H32+J32+L32+N32+P32+R32+T32+V32) -> 0
D33: LESION CULPOSA EN ACC. DE TTO. | E33: 0 | F33: 0 | W33: 0 | X33: 0
D34: LESION | E34: 0 | F34: 0 | W34: 0 | X34: 0
D35: ROBO DE OBJETOS | E35: 0 | F35: 0 | W35: 0 | X35: 0
D36: ROBO AGRAVADO DE OBJETOS | E36: 0 | F36: 0 | W36: 0 | X36: 0
D37: ROBO DE VEHICULOS | E37: 0 | F37: 0 | W37: 0 | X37: 0
D38: ROBO AGRAVADO DE VEHICULOS | E38: 0 | F38: 0 | W38: 0 | X38: 0
D39: ROBO DE MOTOCICLETAS | E39: 0 | F39: 0 | W39: 0 | X39: 0
D40: ROBO AGRAVADO DE MOTOCICLETAS | E40: =(Y20) -> 0 | F40: =(Z20) -> 0 | W40: 0 | X40: 0
D41: TOTAL | E41: =+(E21+G21+I21+K21+M21+O21+Q21+S21+U21+W21) -> 0 | F41: =+(F21+H21+J21+L21+N21+P21+R21+T21+V21+X21) -> 0 | G41: =SUM(G27:G40) -> 0 | H41: =SUM(H27:H40) -> 0 | I41: 0 | J41: 0 | K41: 0 | L41: 0 | M41: 0 | N41: 0 | O41: 0 | P41: 0 | Q41: 0 | R41: 0 | S41: 0 | T41: 0 | U41: 0 | V41: 0 | W41: =SUM(W27:W40) -> 0 | X41: =SUM(X27:X40) -> 0
D42: PORCENTAJE DE ACLARADOS | E42: =+(F41/E41) ->  | G42: =+(H41/G41) ->  | I42: =+(J41/I41) ->  | K42: =+(L41/K41) ->  | M42: =+(N41/M41) ->  | O42: =+(P41/O41) ->  | Q42: =+(R41/Q41) ->  | S42: =+(T41/S41) ->  | U42: =+(V41/U41) ->  | W42: =+(X41/W41) -> 
D44: FUENTE: ELABORADO EN EL DPTO. DE ESTADISTICA EN BASE A DATOS PROPORCIONADOS POR LA DIRECCION GENERAL. DE PREVENCION Y SEGURIDAD.

Sheet GRAF 9
B1: INFORME ESTADISTICO MENSUAL 3 | Q1: POLICIA NACIONAL - DPTO. DE ESTADISTICA
D5: HECHOS PUNIBLES MAS RESALTANTES, DENUNCIADOS EN TODO EL PAÍS. SETIEMBRE 2020
T7: DENUNCIADOS
S8: ABIGEATO
S9: COACCION SEXUAL
S10: HOMICIDIO CULPOSO EN ACC DE TTO.
S11: HOMICIDIO DOLOSO
S12: HURTO
S13: HURTO AGRAVADO
S14: LESION CULPOSA EN ACC. DE TTO.
S15: LESION
S16: ROBO DE OBJETOS
S17: ROBO AGRAVADO DE OBJETOS
S18: ROBO DE VEHICULOS
S19: ROBO AGRAVADO DE VEHICULOS
S20: ROBO DE MOTOCICLETAS
S21: ROBO AGRAVADO DE MOTOCICLETAS
T22: =SUM(T8:T21) -> 0
D41: FUENTE: ELABORADO EN EL DPTO. DE ESTADISTICA EN BASE A DATOS PROPORCIONADOS POR LA DIRECCION GENERAL PREVENCION Y SEGURIDAD.

Sheet OCTUBRE
B1: INFORME ESTADISTICO MENSUAL 4 | AB1: POLICIA NACIONAL - DPTO. DE ESTADISTICA
D2: HECHOS PUNIBLES MAS RESALTANTES,DENUNCIADOS Y ACLARADOS EN TODO EL PAÍS POR ZONAS POLICIALES. OCTUBRE 2020
D4: HECHOS PUNIBLES | E4: DIRECCIONES POLICIALES | Y4: SUB TOTAL
E5: Asuncion | G5: Central | I5: Cordillera | K5: Amambay | M5: Concepcion | O5: Alto Py. | Q5: San Pedro | S5: Caaguazu | U5: Caazapa | W5: Guaira
E6: D | F6: A | G6: D | H6: A | I6: D | J6: A | K6: D | L6: A | M6: D | N6: A | O6: D | P6: A | Q6: D | R6: A | S6: D | T6: A | U6: D | V6: A | W6: D | X6: A | Y6: D | Z6: A
D7: ABIGEATO | Y7: =(E7+G7+I7+K7+M7+O7+Q7+S7+U7+W7) -> 0 | Z7: 0
D8: COACCION SEXUAL | Y8: 0 | Z8: 0
D9: HOMICIDIO CULPOSO EN ACC DE TTO. | Y9: 0 | Z9: 0
D10: HOMICIDIO DOLOSO | Y10: 0 | Z10: 0
D11: HURTO | Y11: =(E11+G11+I11+K11+M11+O11+Q11+S11+U11+W11) -> 0 | Z11: =(F11+H11+J11+L11+N11+P11+R11+T11+V11+X11) -> 0
D12: HURTO AGRAVADO | Y12: =(E12+G12+I12+K12+M12+O12+Q12+S12+U12+W12) -> 0 | Z12: =(F12+H12+J12+L12+N12+P12+R12+T12+V12+X12) -> 0
D13: LESION CULPOSA EN ACC. DE TTO. | Y13: 0 | Z13: 0
D14: LESION | Y14: 0 | Z14: 0
D15: ROBO DE OBJETOS | Y15: 0 | Z15: 0
D16: ROBO AGRAVADO DE OBJETOS | Y16: 0 | Z16: 0
D17: ROBO DE VEHICULOS | Y17: 0 | Z17: 0
D18: ROBO AGRAVADO DE VEHICULOS | Y18: 0 | Z18: 0
D19: ROBO DE MOTOCICLETAS | Y19: 0 | Z19: 0
D20: ROBO AGRAVADO DE MOTOCICLETAS | Y20: 0 | Z20: 0
D21: TOTAL | E21: =E7+E8+E9+E10+E11+E12+E13+E14+E15+E16+E17+E18+E19+E20 -> 0 | F21: =F7+F8+F9+F10+F11+F12+F13+F14+F15+F16+F17+F18+F19+F20 -> 0 | G21: 0 | H21: 0 | I21: 0 | J21: 0 | K21: 0 | L21: 0 | M21: 0 | N21: 0 | O21: 0 | P21: 0 | Q21: 0 | R21: 0 | S21: 0 | T21: 0 | U21: 0 | V21: 0 | W21: 0 | X21: 0 | Y21: =SUM(Y7:Y20) -> 0 | Z21: =SUM(Z7:Z20) -> 0
D22: PORCENTAJE DE ACLARADOS | E22: =+(F21/E21) ->  | G22: =+(H21/G21) ->  | I22: =+(J21/I21) ->  | K22: =+(L21/K21) ->  | M22: =+(N21/M21) ->  | O22: =+(P21/O21) ->  | Q22: =+(R21/Q21) ->  | S22: =+(T21/S21) ->  | U22: =+(V21/U21) ->  | W22: =+(X21/W21) ->  | Y22: =+(Z21/Y21) -> 
D24: HECHOS PUNIBLES | E24: TRANSPORTE | G24: DIRECCIONES POLICIALES | W24: TOTAL
G25: Alto Paraná | I25: Itapua | K25: Canindeyú | M25: Misiones | O25: Paraguari | Q25: Ñeembucu | S25: Boqueron | U25: Pte Hayes
E26: D | F26: A | G26: D | H26: A | I26: D | J26: A | K26: D | L26: A | M26: D | N26: A | O26: D | P26: A | Q26: D | R26: A | S26: D | T26: A | U26: D | V26: A | W26: D | X26: A
D27: ABIGEATO | E27: =(Y7) -> 0 | F27: 0 | W27: =(E27+G27+I27+K27+M27+O27+Q27+S27+U27) -> 0 | X27: =(F27+H27+J27+L27+N27+P27+R27+T27+V27) -> 0 | AD27: =(X27/W27) -> 
D28: COACCION SEXUAL | E28: 0 | F28: 0 | W28: 0 | X28: =(F28+H28+J28+L28+N28+P28+R28+T28+V28) -> 0 | AD28: =(X28/W28) -> 
D29: HOMICIDIO CULPOSO EN ACC DE TTO. | E29: 0 | F29: 0 | W29: 0 | X29: 0
D30: HOMICIDIO DOLOSO | E30: 0 | F30: 0 | W30: =(E30+G30+I30+K30+M30+O30+Q30+S30+U30) -> 0 | X30: 0
D31: HURTO | E31: 0 | F31: 0 | W31: =(E31+G31+I31+K31+M31+O31+Q31+S31+U31) -> 0 | X31: =(F31+H31+J31+L31+N31+P31+R31+T31+V31) -> 0
D32: HURTO AGRAVADO | E32: 0 | F32: 0 | W32: =(E32+G32+I32+K32+M32+O32+Q32+S32+U32) -> 0 | X32: =(F32+H32+J32+L32+N32+P32+R32+T32+V32) -> 0
D33: LESION CULPOSA EN ACC. DE TTO. | E33: 0 | F33: 0 | W33: 0 | X33: 0
D34: LESION | E34: 0 | F34: 0 | W34: 0 | X34: 0
D35: ROBO DE OBJETOS | E35: 0 | F35: 0 | W35: 0 | X35: 0
D36: ROBO AGRAVADO DE OBJETOS | E36: 0 | F36: 0 | W36: 0 | X36: 0
D37: ROBO DE VEHICULOS | E37: 0 | F37: 0 | W37: 0 | X37: 0
D38: ROBO AGRAVADO DE VEHICULOS | E38: 0 | F38: 0 | W38: 0 | X38: 0
D39: ROBO DE MOTOCICLETAS | E39: 0 | F39: 0 | W39: 0 | X39: 0
D40: ROBO AGRAVADO DE MOTOCICLETAS | E40: =(Y20) -> 0 | F40: =(Z20) -> 0 | W40: 0 | X40: 0
D41: TOTAL | E41: =+(E21+G21+I21+K21+M21+O21+Q21+S21+U21+W21) -> 0 | F41: =+(F21+H21+J21+L21+N21+P21+R21+T21+V21+X21) -> 0 | G41: =SUM(G27:G40) -> 0 | H41: =SUM(H27:H40) -> 0 | I41: 0 | J41: 0 | K41: 0 | L41: 0 | M41: 0 | N41: 0 | O41: 0 | P41: 0 | Q41: 0 | R41: 0 | S41: 0 | T41: 0 | U41: 0 | V41: 0 | W41: =SUM(W27:W40) -> 0 | X41: =SUM(X27:X40) -> 0
D42: PORCENTAJE DE ACLARADOS | E42: =+(F41/E41) ->  | G42: =+(H41/G41) ->  | I42: =+(J41/I41) ->  | K42: =+(L41/K41) ->  | M42: =+(N41/M41) ->  | O42: =+(P41/O41) ->  | Q42: =+(R41/Q41) ->  | S42: =+(T41/S41) ->  | U42: =+(V41/U41) ->  | W42: =+(X41/W41) -> 
D44: FUENTE: ELABORADO EN EL DPTO. DE ESTADISTICA EN BASE A DATOS PROPORCIONADOS POR LA DIRECCION GENERAL. DE PREVENCION Y SEGURIDAD.

Sheet GRAF 10
B1: INFORME ESTADISTICO MENSUAL 3 | Q1: POLICIA NACIONAL - DPTO. DE ESTADISTICA
D5: HECHOS PUNIBLES MAS RESALTANTES, DENUNCIADOS EN TODO EL PAÍS. OCTUBRE 2020
T7: DENUNCIADOS
S8: ABIGEATO
S9: COACCION SEXUAL
S10: HOMICIDIO CULPOSO EN ACC DE TTO.
S11: HOMICIDIO DOLOSO
S12: HURTO
S13: HURTO AGRAVADO
S14: LESION CULPOSA EN ACC. DE TTO.
S15: LESION
S16: ROBO DE OBJETOS
S17: ROBO AGRAVADO DE OBJETOS
S18: ROBO DE VEHICULOS
S19: ROBO AGRAVADO DE VEHICULOS
S20: ROBO DE MOTOCICLETAS
S21: ROBO AGRAVADO DE MOTOCICLETAS
T22: =SUM(T8:T21) -> 0
D41: FUENTE: ELABORADO EN EL DPTO. DE ESTADISTICA EN BASE A DATOS PROPORCIONADOS POR LA DIRECCION GENERAL PREVENCION Y SEGURIDAD.

Sheet NOVIEMBRE
B1: INFORME ESTADISTICO MENSUAL 4 | AB1: POLICIA NACIONAL - DPTO. DE ESTADISTICA
D2: HECHOS PUNIBLES MAS RESALTANTES,DENUNCIADOS Y ACLARADOS EN TODO EL PAÍS POR ZONAS POLICIALES. NOVIEMBRE 2020
D4: HECHOS PUNIBLES | E4: DIRECCIONES POLICIALES | Y4: SUB TOTAL
E5: Asuncion | G5: Central | I5: Cordillera | K5: Amambay | M5: Concepcion | O5: Alto Py. | Q5: San Pedro | S5: Caaguazu | U5: Caazapa | W5: Guaira
E6: D | F6: A | G6: D | H6: A | I6: D | J6: A | K6: D | L6: A | M6: D | N6: A | O6: D | P6: A | Q6: D | R6: A | S6: D | T6: A | U6: D | V6: A | W6: D | X6: A | Y6: D | Z6: A
D7: ABIGEATO | Y7: =(E7+G7+I7+K7+M7+O7+Q7+S7+U7+W7) -> 0 | Z7: 0
D8: COACCION SEXUAL | Y8: 0 | Z8: 0
D9: HOMICIDIO CULPOSO EN ACC DE TTO. | Y9: 0 | Z9: 0
D10: HOMICIDIO DOLOSO | Y10: 0 | Z10: 0
D11: HURTO | Y11: =(E11+G11+I11+K11+M11+O11+Q11+S11+U11+W11) -> 0 | Z11: =(F11+H11+J11+L11+N11+P11+R11+T11+V11+X11) -> 0
D12: HURTO AGRAVADO | Y12: =(E12+G12+I12+K12+M12+O12+Q12+S12+U12+W12) -> 0 | Z12: =(F12+H12+J12+L12+N12+P12+R12+T12+V12+X12) -> 0
D13: LESION CULPOSA EN ACC. DE TTO. | Y13: 0 | Z13: 0
D14: LESION | Y14: 0 | Z14: 0
D15: ROBO DE OBJETOS | Y15: 0 | Z15: 0
D16: ROBO AGRAVADO DE OBJETOS | Y16: 0 | Z16: 0
D17: ROBO DE VEHICULOS | Y17: 0 | Z17: 0
D18: ROBO AGRAVADO DE VEHICULOS | Y18: 0 | Z18: 0
D19: ROBO DE MOTOCICLETAS | Y19: 0 | Z19: 0
D20: ROBO AGRAVADO DE MOTOCICLETAS | Y20: 0 | Z20: 0
D21: TOTAL | E21: =E7+E8+E9+E10+E11+E12+E13+E14+E15+E16+E17+E18+E19+E20 -> 0 | F21: =F7+F8+F9+F10+F11+F12+F13+F14+F15+F16+F17+F18+F19+F20 -> 0 | G21: 0 | H21: 0 | I21: 0 | J21: 0 | K21: 0 | L21: 0 | M21: 0 | N21: 0 | O21: 0 | P21: 0 | Q21: 0 | R21: 0 | S21: 0 | T21: 0 | U21: 0 | V21: 0 | W21: 0 | X21: 0 | Y21: =SUM(Y7:Y20) -> 0 | Z21: =SUM(Z7:Z20) -> 0
D22: PORCENTAJE DE ACLARADOS | E22: =+(F21/E21) ->  | G22: =+(H21/G21) ->  | I22: =+(J21/I21) ->  | K22: =+(L21/K21) ->  | M22: =+(N21/M21) ->  | O22: =+(P21/O21) ->  | Q22: =+(R21/Q21) ->  | S22: =+(T21/S21) ->  | U22: =+(V21/U21) ->  | W22: =+(X21/W21) ->  | Y22: =+(Z21/Y21) -> 
D24: HECHOS PUNIBLES | E24: TRANSPORTE | G24: DIRECCIONES POLICIALES | W24: TOTAL
G25: Alto Paraná | I25: Itapua | K25: Canindeyú | M25: Misiones | O25: Paraguari | Q25: Ñeembucu | S25: Boqueron | U25: Pte Hayes
E26: D | F26: A | G26: D | H26: A | I26: D | J26: A | K26: D | L26: A | M26: D | N26: A | O26: D | P26: A | Q26: D | R26: A | S26: D | T26: A | U26: D | V26: A | W26: D | X26: A
D27: ABIGEATO | E27: =(Y7) -> 0 | F27: 0 | W27: =(E27+G27+I27+K27+M27+O27+Q27+S27+U27) -> 0 | X27: =(F27+H27+J27+L27+N27+P27+R27+T27+V27) -> 0 | AD27: =(X27/W27) -> 
D28: COACCION SEXUAL | E28: 0 | F28: 0 | W28: =(E28+G28+I28+K28+M28+O28+Q28+S28+U28) -> 0 | X28: =(F28+H28+J28+L28+N28+P28+R28+T28+V28) -> 0 | AD28: =(X28/W28) -> 
D29: HOMICIDIO CULPOSO EN ACC DE TTO. | E29: 0 | F29: 0 | W29: 0 | X29: 0
D30: HOMICIDIO DOLOSO | E30: 0 | F30: 0 | W30: =(E30+G30+I30+K30+M30+O30+Q30+S30+U30) -> 0 | X30: 0
D31: HURTO | E31: 0 | F31: 0 | W31: =(E31+G31+I31+K31+M31+O31+Q31+S31+U31) -> 0 | X31: =(F31+H31+J31+L31+N31+P31+R31+T31+V31) -> 0
D32: HURTO AGRAVADO | E32: 0 | F32: 0 | W32: =(E32+G32+I32+K32+M32+O32+Q32+S32+U32) -> 0 | X32: =(F32+H32+J32+L32+N32+P32+R32+T32+V32) -> 0
D33: LESION CULPOSA EN ACC. DE TTO. | E33: 0 | F33: 0 | W33: 0 | X33: 0
D34: LESION | E34: 0 | F34: 0 | W34: 0 | X34: 0
D35: ROBO DE OBJETOS | E35: 0 | F35: 0 | W35: 0 | X35: 0
D36: ROBO AGRAVADO DE OBJETOS | E36: 0 | F36: 0 | W36: 0 | X36: 0
D37: ROBO DE VEHICULOS | E37: 0 | F37: 0 | W37: 0 | X37: 0
D38: ROBO AGRAVADO DE VEHICULOS | E38: 0 | F38: 0 | W38: 0 | X38: 0
D39: ROBO DE MOTOCICLETAS | E39: 0 | F39: 0 | W39: 0 | X39: 0
D40: ROBO AGRAVADO DE MOTOCICLETAS | E40: =(Y20) -> 0 | F40: =(Z20) -> 0 | W40: 0 | X40: 0
D41: TOTAL | E41: =+(E21+G21+I21+K21+M21+O21+Q21+S21+U21+W21) -> 0 | F41: =+(F21+H21+J21+L21+N21+P21+R21+T21+V21+X21) -> 0 | G41: =SUM(G27:G40) -> 0 | H41: =SUM(H27:H40) -> 0 | I41: 0 | J41: 0 | K41: 0 | L41: 0 | M41: 0 | N41: 0 | O41: 0 | P41: 0 | Q41: 0 | R41: 0 | S41: 0 | T41: 0 | U41: 0 | V41: 0 | W41: =SUM(W27:W40) -> 0 | X41: =SUM(X27:X40) -> 0
D42: PORCENTAJE DE ACLARADOS | E42: =+(F41/E41) ->  | G42: =+(H41/G41) ->  | I42: =+(J41/I41) ->  | K42: =+(L41/K41) ->  | M42: =+(N41/M41) ->  | O42: =+(P41/O41) ->  | Q42: =+(R41/Q41) ->  | S42: =+(T41/S41) ->  | U42: =+(V41/U41) ->  | W42: =+(X41/W41) -> 
D44: FUENTE: ELABORADO EN EL DPTO. DE ESTADISTICA EN BASE A DATOS PROPORCIONADOS POR LA DIRECCION GENERAL. DE PREVENCION Y SEGURIDAD.

Sheet GRAF 11
B1: INFORME ESTADISTICO MENSUAL 3 | Q1: POLICIA NACIONAL - DPTO. DE ESTADISTICA
D5: HECHOS PUNIBLES MAS RESALTANTES, DENUNCIADOS EN TODO EL PAÍS. NOVIEMBRE 2020
T7: DENUNCIADOS
S8: ABIGEATO
S9: COACCION SEXUAL
S10: HOMICIDIO CULPOSO EN ACC DE TTO.
S11: HOMICIDIO DOLOSO
S12: HURTO
S13: HURTO AGRAVADO
S14: LESION CULPOSA EN ACC. DE TTO.
S15: LESION
S16: ROBO DE OBJETOS
S17: ROBO AGRAVADO DE OBJETOS
S18: ROBO DE VEHICULOS
S19: ROBO AGRAVADO DE VEHICULOS
S20: ROBO DE MOTOCICLETAS
S21: ROBO AGRAVADO DE MOTOCICLETAS
D41: FUENTE: ELABORADO EN EL DPTO. DE ESTADISTICA EN BASE A DATOS PROPORCIONADOS POR LA DIRECCION GENERAL PREVENCION Y SEGURIDAD.

Sheet DICIEMBRE
B1: INFORME ESTADISTICO MENSUAL 4 | AB1: POLICIA NACIONAL - DPTO. DE ESTADISTICA
D2: HECHOS PUNIBLES MAS RESALTANTES,DENUNCIADOS Y ACLARADOS EN TODO EL PAÍS POR ZONAS POLICIALES. DICIEMBRE 2020
D4: HECHOS PUNIBLES | E4: DIRECCIONES POLICIALES | Y4: SUB TOTAL
E5: Asuncion | G5: Central | I5: Cordillera | K5: Amambay | M5: Concepcion | O5: Alto Py. | Q5: San Pedro | S5: Caaguazu | U5: Caazapa | W5: Guaira
E6: D | F6: A | G6: D | H6: A | I6: D | J6: A | K6: D | L6: A | M6: D | N6: A | O6: D | P6: A | Q6: D | R6: A | S6: D | T6: A | U6: D | V6: A | W6: D | X6: A | Y6: D | Z6: A
D7: ABIGEATO | Y7: =(E7+G7+I7+K7+M7+O7+Q7+S7+U7+W7) -> 0 | Z7: 0
D8: COACCION SEXUAL | Y8: 0 | Z8: 0
D9: HOMICIDIO CULPOSO EN ACC DE TTO. | Y9: 0 | Z9: 0
D10: HOMICIDIO DOLOSO | Y10: 0 | Z10: 0
D11: HURTO | Y11: =(E11+G11+I11+K11+M11+O11+Q11+S11+U11+W11) -> 0 | Z11: =(F11+H11+J11+L11+N11+P11+R11+T11+V11+X11) -> 0
D12: HURTO AGRAVADO | Y12: =(E12+G12+I12+K12+M12+O12+Q12+S12+U12+W12) -> 0 | Z12: =(F12+H12+J12+L12+N12+P12+R12+T12+V12+X12) -> 0
D13: LESION CULPOSA EN ACC. DE TTO. | Y13: 0 | Z13: 0
D14: LESION | Y14: 0 | Z14: 0
D15: ROBO DE OBJETOS | Y15: 0 | Z15: 0
D16: ROBO AGRAVADO DE OBJETOS | Y16: 0 | Z16: 0
D17: ROBO DE VEHICULOS | Y17: 0 | Z17: 0
D18: ROBO AGRAVADO DE VEHICULOS | Y18: 0 | Z18: 0
D19: ROBO DE MOTOCICLETAS | Y19: 0 | Z19: 0
D20: ROBO AGRAVADO DE MOTOCICLETAS | Y20: 0 | Z20: 0
D21: TOTAL | E21: =E7+E8+E9+E10+E11+E12+E13+E14+E15+E16+E17+E18+E19+E20 -> 0 | F21: =F7+F8+F9+F10+F11+F12+F13+F14+F15+F16+F17+F18+F19+F20 -> 0 | G21: 0 | H21: 0 | I21: 0 | J21: 0 | K21: 0 | L21: 0 | M21: 0 | N21: 0 | O21: 0 | P21: 0 | Q21: 0 | R21: 0 | S21: 0 | T21: 0 | U21: 0 | V21: 0 | W21: 0 | X21: 0 | Y21: =SUM(Y7:Y20) -> 0 | Z21: =SUM(Z7:Z20) -> 0
D22: PORCENTAJE DE ACLARADOS | E22: =+(F21/E21) ->  | G22: =+(H21/G21) ->  | I22: =+(J21/I21) ->  | K22: =+(L21/K21) ->  | M22: =+(N21/M21) ->  | O22: =+(P21/O21) ->  | Q22: =+(R21/Q21) ->  | S22: =+(T21/S21) ->  | U22: =+(V21/U21) ->  | W22: =+(X21/W21) ->  | Y22: =+(Z21/Y21) -> 
D24: HECHOS PUNIBLES | E24: TRANSPORTE | G24: DIRECCIONES POLICIALES | W24: TOTAL
G25: Alto Paraná | I25: Itapua | K25: Canindeyú | M25: Misiones | O25: Paraguari | Q25: Ñeembucu | S25: Boqueron | U25: Pte Hayes
E26: D | F26: A | G26: D | H26: A | I26: D | J26: A | K26: D | L26: A | M26: D | N26: A | O26: D | P26: A | Q26: D | R26: A | S26: D | T26: A | U26: D | V26: A | W26: D | X26: A
D27: ABIGEATO | E27: =(Y7) -> 0 | F27: 0 | W27: =(E27+G27+I27+K27+M27+O27+Q27+S27+U27) -> 0 | X27: =(F27+H27+J27+L27+N27+P27+R27+T27+V27) -> 0 | AD27: =(X27/W27) -> 
D28: COACCION SEXUAL | E28: 0 | F28: 0 | W28: 0 | X28: =(F28+H28+J28+L28+N28+P28+R28+T28+V28) -> 0 | AD28: =(X28/W28) -> 
D29: HOMICIDIO CULPOSO EN ACC DE TTO. | E29: 0 | F29: 0 | W29: 0 | X29: 0
D30: HOMICIDIO DOLOSO | E30: 0 | F30: 0 | W30: =(E30+G30+I30+K30+M30+O30+Q30+S30+U30) -> 0 | X30: 0
D31: HURTO | E31: 0 | F31: 0 | W31: =(E31+G31+I31+K31+M31+O31+Q31+S31+U31) -> 0 | X31: =(F31+H31+J31+L31+N31+P31+R31+T31+V31) -> 0
D32: HURTO AGRAVADO | E32: 0 | F32: 0 | W32: =(E32+G32+I32+K32+M32+O32+Q32+S32+U32) -> 0 | X32: =(F32+H32+J32+L32+N32+P32+R32+T32+V32) -> 0
D33: LESION CULPOSA EN ACC. DE TTO. | E33: 0 | F33: 0 | W33: 0 | X33: 0
D34: LESION | E34: 0 | F34: 0 | W34: 0 | X34: 0
D35: ROBO DE OBJETOS | E35: 0 | F35: 0 | W35: 0 | X35: 0
D36: ROBO AGRAVADO DE OBJETOS | E36: 0 | F36: 0 | W36: 0 | X36: 0
D37: ROBO DE VEHICULOS | E37: 0 | F37: 0 | W37: 0 | X37: 0
D38: ROBO AGRAVADO DE VEHICULOS | E38: 0 | F38: 0 | W38: 0 | X38: 0
D39: ROBO DE MOTOCICLETAS | E39: 0 | F39: 0 | W39: 0 | X39: 0
D40: ROBO AGRAVADO DE MOTOCICLETAS | E40: =(Y20) -> 0 | F40: =(Z20) -> 0 | W40: 0 | X40: 0
D41: TOTAL | E41: =+(E21+G21+I21+K21+M21+O21+Q21+S21+U21+W21) -> 0 | F41: =+(F21+H21+J21+L21+N21+P21+R21+T21+V21+X21) -> 0 | G41: =SUM(G27:G40) -> 0 | H41: =SUM(H27:H40) -> 0 | I41: 0 | J41: 0 | K41: 0 | L41: 0 | M41: 0 | N41: 0 | O41: 0 | P41: 0 | Q41: 0 | R41: 0 | S41: 0 | T41: 0 | U41: 0 | V41: 0 | W41: =SUM(W27:W40) -> 0 | X41: =SUM(X27:X40) -> 0
D42: PORCENTAJE DE ACLARADOS | E42: =+(F41/E41) ->  | G42: =+(H41/G41) ->  | I42: =+(J41/I41) ->  | K42: =+(L41/K41) ->  | M42: =+(N41/M41) ->  | O42: =+(P41/O41) ->  | Q42: =+(R41/Q41) ->  | S42: =+(T41/S41) ->  | U42: =+(V41/U41) ->  | W42: =+(X41/W41) -> 
D44: FUENTE: ELABORADO EN EL DPTO. DE ESTADISTICA EN BASE A DATOS PROPORCIONADOS POR LA DIRECCION GENERAL. DE PREVENCION Y SEGURIDAD.

Sheet GRAF 12
B1: INFORME ESTADISTICO MENSUAL 3 | Q1: POLICIA NACIONAL - DPTO. DE ESTADISTICA
D5: HECHOS PUNIBLES MAS RESALTANTES, DENUNCIADOS EN TODO EL PAÍS. DICIEMBRE 2020
T7: DENUNCIADOS
S8: ABIGEATO
S9: COACCION SEXUAL
S10: HOMICIDIO CULPOSO EN ACC DE TTO.
S11: HOMICIDIO DOLOSO
S12: HURTO
S13: HURTO AGRAVADO
S14: LESION CULPOSA EN ACC. DE TTO.
S15: LESION
S16: ROBO DE OBJETOS
S17: ROBO AGRAVADO DE OBJETOS
S18: ROBO DE VEHICULOS
S19: ROBO AGRAVADO DE VEHICULOS
S20: ROBO DE MOTOCICLETAS
S21: ROBO AGRAVADO DE MOTOCICLETAS
T22: =SUM(T8:T21) -> 0
D41: FUENTE: ELABORADO EN EL DPTO. DE ESTADISTICA EN BASE A DATOS PROPORCIONADOS POR LA DIRECCION GENERAL PREVENCION Y SEGURIDAD.

Sheet 2DO SEMESTRE
B1: INFORME ESTADISTICO MENSUAL 4 | AB1: POLICIA NACIONAL - DPTO. DE ESTADISTICA
D2: HECHOS PUNIBLES MAS RESALTANTES,DENUNCIADOS Y ACLARADOS EN TODO EL PAÍS POR ZONAS POLICIALES. 2DO SEMESTRE 2020
D4: HECHOS PUNIBLES | E4: DIRECCIONES POLICIALES | Y4: SUB TOTAL
E5: Asuncion | G5: Central | I5: Cordillera | K5: Amambay | M5: Concepcion | O5: Alto Py. | Q5: San Pedro | S5: Caaguazu | U5: Caazapa | W5: Guaira
E6: D | F6: A | G6: D | H6: A | I6: D | J6: A | K6: D | L6: A | M6: D | N6: A | O6: D | P6: A | Q6: D | R6: A | S6: D | T6: A | U6: D | V6: A | W6: D | X6: A | Y6: D | Z6: A
D7: ABIGEATO | E7: =JULIO!E7+AGOSTO!E7+SETIEMBRE!E7+OCTUBRE!E7+NOVIEMBRE!E7+DICIEMBRE!E7 -> 0 | F7: =JULIO!F7+AGOSTO!F7+SETIEMBRE!F7+OCTUBRE!F7+NOVIEMBRE!F7+DICIEMBRE!F7 -> 0 | G7: =JULIO!G7+AGOSTO!G7+SETIEMBRE!G7+OCTUBRE!G7+NOVIEMBRE!G7+DICIEMBRE!G7 -> 0 | H7: =JULIO!H7+AGOSTO!H7+SETIEMBRE!H7+OCTUBRE!H7+NOVIEMBRE!H7+DICIEMBRE!H7 -> 0 | I7: =JULIO!I7+AGOSTO!I7+SETIEMBRE!I7+OCTUBRE!I7+NOVIEMBRE!I7+DICIEMBRE!I7 -> 0 | J7: =JULIO!J7+AGOSTO!J7+SETIEMBRE!J7+OCTUBRE!J7+NOVIEMBRE!J7+DICIEMBRE!J7 -> 0 | K7: =JULIO!K7+AGOSTO!K7+SETIEMBRE!K7+OCTUBRE!K7+NOVIEMBRE!K7+DICIEMBRE!K7 -> 0 | L7: =JULIO!L7+AGOSTO!L7+SETIEMBRE!L7+OCTUBRE!L7+NOVIEMBRE!L7+DICIEMBRE!L7 -> 0 | M7: =JULIO!M7+AGOSTO!M7+SETIEMBRE!M7+OCTUBRE!M7+NOVIEMBRE!M7+DICIEMBRE!M7 -> 0 | N7: =JULIO!N7+AGOSTO!N7+SETIEMBRE!N7+OCTUBRE!N7+NOVIEMBRE!N7+DICIEMBRE!N7 -> 0 | O7: =JULIO!O7+AGOSTO!O7+SETIEMBRE!O7+OCTUBRE!O7+NOVIEMBRE!O7+DICIEMBRE!O7 -> 0 | P7: =JULIO!P7+AGOSTO!P7+SETIEMBRE!P7+OCTUBRE!P7+NOVIEMBRE!P7+DICIEMBRE!P7 -> 0 | Q7: =JULIO!Q7+AGOSTO!Q7+SETIEMBRE!Q7+OCTUBRE!Q7+NOVIEMBRE!Q7+DICIEMBRE!Q7 -> 0 | R7: =JULIO!R7+AGOSTO!R7+SETIEMBRE!R7+OCTUBRE!R7+NOVIEMBRE!R7+DICIEMBRE!R7 -> 0 | S7: =JULIO!S7+AGOSTO!S7+SETIEMBRE!S7+OCTUBRE!S7+NOVIEMBRE!S7+DICIEMBRE!S7 -> 0 | T7: =JULIO!T7+AGOSTO!T7+SETIEMBRE!T7+OCTUBRE!T7+NOVIEMBRE!T7+DICIEMBRE!T7 -> 0 | U7: =JULIO!U7+AGOSTO!U7+SETIEMBRE!U7+OCTUBRE!U7+NOVIEMBRE!U7+DICIEMBRE!U7 -> 0 | V7: =JULIO!V7+AGOSTO!V7+SETIEMBRE!V7+OCTUBRE!V7+NOVIEMBRE!V7+DICIEMBRE!V7 -> 0 | W7: =JULIO!W7+AGOSTO!W7+SETIEMBRE!W7+OCTUBRE!W7+NOVIEMBRE!W7+DICIEMBRE!W7 -> 0 | X7: =JULIO!X7+AGOSTO!X7+SETIEMBRE!X7+OCTUBRE!X7+NOVIEMBRE!X7+DICIEMBRE!X7 -> 0 | Y7: =(E7+G7+I7+K7+M7+O7+Q7+S7+U7+W7) -> 0 | Z7: 0
D8: COACCION SEXUAL | E8: =JULIO!E8+AGOSTO!E8+SETIEMBRE!E8+OCTUBRE!E8+NOVIEMBRE!E8+DICIEMBRE!E8 -> 0 | F8: =JULIO!F8+AGOSTO!F8+SETIEMBRE!F8+OCTUBRE!F8+NOVIEMBRE!F8+DICIEMBRE!F8 -> 0 | G8: =JULIO!G8+AGOSTO!G8+SETIEMBRE!G8+OCTUBRE!G8+NOVIEMBRE!G8+DICIEMBRE!G8 -> 0 | H8: =JULIO!H8+AGOSTO!H8+SETIEMBRE!H8+OCTUBRE!H8+NOVIEMBRE!H8+DICIEMBRE!H8 -> 0 | I8: =JULIO!I8+AGOSTO!I8+SETIEMBRE!I8+OCTUBRE!I8+NOVIEMBRE!I8+DICIEMBRE!I8 -> 0 | J8: =JULIO!J8+AGOSTO!J8+SETIEMBRE!J8+OCTUBRE!J8+NOVIEMBRE!J8+DICIEMBRE!J8 -> 0 | K8: =JULIO!K8+AGOSTO!K8+SETIEMBRE!K8+OCTUBRE!K8+NOVIEMBRE!K8+DICIEMBRE!K8 -> 0 | L8: =JULIO!L8+AGOSTO!L8+SETIEMBRE!L8+OCTUBRE!L8+NOVIEMBRE!L8+DICIEMBRE!L8 -> 0 | M8: =JULIO!M8+AGOSTO!M8+SETIEMBRE!M8+OCTUBRE!M8+NOVIEMBRE!M8+DICIEMBRE!M8 -> 0 | N8: =JULIO!N8+AGOSTO!N8+SETIEMBRE!N8+OCTUBRE!N8+NOVIEMBRE!N8+DICIEMBRE!N8 -> 0 | O8: =JULIO!O8+AGOSTO!O8+SETIEMBRE!O8+OCTUBRE!O8+NOVIEMBRE!O8+DICIEMBRE!O8 -> 0 | P8: =JULIO!P8+AGOSTO!P8+SETIEMBRE!P8+OCTUBRE!P8+NOVIEMBRE!P8+DICIEMBRE!P8 -> 0 | Q8: =JULIO!Q8+AGOSTO!Q8+SETIEMBRE!Q8+OCTUBRE!Q8+NOVIEMBRE!Q8+DICIEMBRE!Q8 -> 0 | R8: =JULIO!R8+AGOSTO!R8+SETIEMBRE!R8+OCTUBRE!R8+NOVIEMBRE!R8+DICIEMBRE!R8 -> 0 | S8: =JULIO!S8+AGOSTO!S8+SETIEMBRE!S8+OCTUBRE!S8+NOVIEMBRE!S8+DICIEMBRE!S8 -> 0 | T8: =JULIO!T8+AGOSTO!T8+SETIEMBRE!T8+OCTUBRE!T8+NOVIEMBRE!T8+DICIEMBRE!T8 -> 0 | U8: =JULIO!U8+AGOSTO!U8+SETIEMBRE!U8+OCTUBRE!U8+NOVIEMBRE!U8+DICIEMBRE!U8 -> 0 | V8: =JULIO!V8+AGOSTO!V8+SETIEMBRE!V8+OCTUBRE!V8+NOVIEMBRE!V8+DICIEMBRE!V8 -> 0 | W8: =JULIO!W8+AGOSTO!W8+SETIEMBRE!W8+OCTUBRE!W8+NOVIEMBRE!W8+DICIEMBRE!W8 -> 0 | X8: =JULIO!X8+AGOSTO!X8+SETIEMBRE!X8+OCTUBRE!X8+NOVIEMBRE!X8+DICIEMBRE!X8 -> 0 | Y8: 0 | Z8: 0
D9: HOMICIDIO CULPOSO EN ACC DE TTO. | E9: =JULIO!E9+AGOSTO!E9+SETIEMBRE!E9+OCTUBRE!E9+NOVIEMBRE!E9+DICIEMBRE!E9 -> 0 | F9: =JULIO!F9+AGOSTO!F9+SETIEMBRE!F9+OCTUBRE!F9+NOVIEMBRE!F9+DICIEMBRE!F9 -> 0 | G9: =JULIO!G9+AGOSTO!G9+SETIEMBRE!G9+OCTUBRE!G9+NOVIEMBRE!G9+DICIEMBRE!G9 -> 0 | H9: =JULIO!H9+AGOSTO!H9+SETIEMBRE!H9+OCTUBRE!H9+NOVIEMBRE!H9+DICIEMBRE!H9 -> 0 | I9: =JULIO!I9+AGOSTO!I9+SETIEMBRE!I9+OCTUBRE!I9+NOVIEMBRE!I9+DICIEMBRE!I9 -> 0 | J9: =JULIO!J9+AGOSTO!J9+SETIEMBRE!J9+OCTUBRE!J9+NOVIEMBRE!J9+DICIEMBRE!J9 -> 0 | K9: =JULIO!K9+AGOSTO!K9+SETIEMBRE!K9+OCTUBRE!K9+NOVIEMBRE!K9+DICIEMBRE!K9 -> 0 | L9: =JULIO!L9+AGOSTO!L9+SETIEMBRE!L9+OCTUBRE!L9+NOVIEMBRE!L9+DICIEMBRE!L9 -> 0 | M9: =JULIO!M9+AGOSTO!M9+SETIEMBRE!M9+OCTUBRE!M9+NOVIEMBRE!M9+DICIEMBRE!M9 -> 0 | N9: =JULIO!N9+AGOSTO!N9+SETIEMBRE!N9+OCTUBRE!N9+NOVIEMBRE!N9+DICIEMBRE!N9 -> 0 | O9: =JULIO!O9+AGOSTO!O9+SETIEMBRE!O9+OCTUBRE!O9+NOVIEMBRE!O9+DICIEMBRE!O9 -> 0 | P9: =JULIO!P9+AGOSTO!P9+SETIEMBRE!P9+OCTUBRE!P9+NOVIEMBRE!P9+DICIEMBRE!P9 -> 0 | Q9: =JULIO!Q9+AGOSTO!Q9+SETIEMBRE!Q9+OCTUBRE!Q9+NOVIEMBRE!Q9+DICIEMBRE!Q9 -> 0 | R9: =JULIO!R9+AGOSTO!R9+SETIEMBRE!R9+OCTUBRE!R9+NOVIEMBRE!R9+DICIEMBRE!R9 -> 0 | S9: =JULIO!S9+AGOSTO!S9+SETIEMBRE!S9+OCTUBRE!S9+NOVIEMBRE!S9+DICIEMBRE!S9 -> 0 | T9: =JULIO!T9+AGOSTO!T9+SETIEMBRE!T9+OCTUBRE!T9+NOVIEMBRE!T9+DICIEMBRE!T9 -> 0 | U9: =JULIO!U9+AGOSTO!U9+SETIEMBRE!U9+OCTUBRE!U9+NOVIEMBRE!U9+DICIEMBRE!U9 -> 0 | V9: =JULIO!V9+AGOSTO!V9+SETIEMBRE!V9+OCTUBRE!V9+NOVIEMBRE!V9+DICIEMBRE!V9 -> 0 | W9: =JULIO!W9+AGOSTO!W9+SETIEMBRE!W9+OCTUBRE!W9+NOVIEMBRE!W9+DICIEMBRE!W9 -> 0 | X9: =JULIO!X9+AGOSTO!X9+SETIEMBRE!X9+OCTUBRE!X9+NOVIEMBRE!X9+DICIEMBRE!X9 -> 0 | Y9: 0 | Z9: 0
D10: HOMICIDIO DOLOSO | E10: =JULIO!E10+AGOSTO!E10+SETIEMBRE!E10+OCTUBRE!E10+NOVIEMBRE!E10+DICIEMBRE!E10 -> 0 | F10: =JULIO!F10+AGOSTO!F10+SETIEMBRE!F10+OCTUBRE!F10+NOVIEMBRE!F10+DICIEMBRE!F10 -> 0 | G10: =JULIO!G10+AGOSTO!G10+SETIEMBRE!G10+OCTUBRE!G10+NOVIEMBRE!G10+DICIEMBRE!G10 -> 0 | H10: =JULIO!H10+AGOSTO!H10+SETIEMBRE!H10+OCTUBRE!H10+NOVIEMBRE!H10+DICIEMBRE!H10 -> 0 | I10: =JULIO!I10+AGOSTO!I10+SETIEMBRE!I10+OCTUBRE!I10+NOVIEMBRE!I10+DICIEMBRE!I10 -> 0 | J10: =JULIO!J10+AGOSTO!J10+SETIEMBRE!J10+OCTUBRE!J10+NOVIEMBRE!J10+DICIEMBRE!J10 -> 0 | K10: =JULIO!K10+AGOSTO!K10+SETIEMBRE!K10+OCTUBRE!K10+NOVIEMBRE!K10+DICIEMBRE!K10 -> 0 | L10: =JULIO!L10+AGOSTO!L10+SETIEMBRE!L10+OCTUBRE!L10+NOVIEMBRE!L10+DICIEMBRE!L10 -> 0 | M10: =JULIO!M10+AGOSTO!M10+SETIEMBRE!M10+OCTUBRE!M10+NOVIEMBRE!M10+DICIEMBRE!M10 -> 0 | N10: =JULIO!N10+AGOSTO!N10+SETIEMBRE!N10+OCTUBRE!N10+NOVIEMBRE!N10+DICIEMBRE!N10 -> 0 | O10: =JULIO!O10+AGOSTO!O10+SETIEMBRE!O10+OCTUBRE!O10+NOVIEMBRE!O10+DICIEMBRE!O10 -> 0 | P10: =JULIO!P10+AGOSTO!P10+SETIEMBRE!P10+OCTUBRE!P10+NOVIEMBRE!P10+DICIEMBRE!P10 -> 0 | Q10: =JULIO!Q10+AGOSTO!Q10+SETIEMBRE!Q10+OCTUBRE!Q10+NOVIEMBRE!Q10+DICIEMBRE!Q10 -> 0 | R10: =JULIO!R10+AGOSTO!R10+SETIEMBRE!R10+OCTUBRE!R10+NOVIEMBRE!R10+DICIEMBRE!R10 -> 0 | S10: =JULIO!S10+AGOSTO!S10+SETIEMBRE!S10+OCTUBRE!S10+NOVIEMBRE!S10+DICIEMBRE!S10 -> 0 | T10: =JULIO!T10+AGOSTO!T10+SETIEMBRE!T10+OCTUBRE!T10+NOVIEMBRE!T10+DICIEMBRE!T10 -> 0 | U10: =JULIO!U10+AGOSTO!U10+SETIEMBRE!U10+OCTUBRE!U10+NOVIEMBRE!U10+DICIEMBRE!U10 -> 0 | V10: =JULIO!V10+AGOSTO!V10+SETIEMBRE!V10+OCTUBRE!V10+NOVIEMBRE!V10+DICIEMBRE!V10 -> 0 | W10: =JULIO!W10+AGOSTO!W10+SETIEMBRE!W10+OCTUBRE!W10+NOVIEMBRE!W10+DICIEMBRE!W10 -> 0 | X10: =JULIO!X10+AGOSTO!X10+SETIEMBRE!X10+OCTUBRE!X10+NOVIEMBRE!X10+DICIEMBRE!X10 -> 0 | Y10: 0 | Z10: 0
D11: HURTO | E11: =JULIO!E11+AGOSTO!E11+SETIEMBRE!E11+OCTUBRE!E11+NOVIEMBRE!E11+DICIEMBRE!E11 -> 0 | F11: =JULIO!F11+AGOSTO!F11+SETIEMBRE!F11+OCTUBRE!F11+NOVIEMBRE!F11+DICIEMBRE!F11 -> 0 | G11: =JULIO!G11+AGOSTO!G11+SETIEMBRE!G11+OCTUBRE!G11+NOVIEMBRE!G11+DICIEMBRE!G11 -> 0 | H11: =JULIO!H11+AGOSTO!H11+SETIEMBRE!H11+OCTUBRE!H11+NOVIEMBRE!H11+DICIEMBRE!H11 -> 0 | I11: =JULIO!I11+AGOSTO!I11+SETIEMBRE!I11+OCTUBRE!I11+NOVIEMBRE!I11+DICIEMBRE!I11 -> 0 | J11: =JULIO!J11+AGOSTO!J11+SETIEMBRE!J11+OCTUBRE!J11+NOVIEMBRE!J11+DICIEMBRE!J11 -> 0 | K11: =JULIO!K11+AGOSTO!K11+SETIEMBRE!K11+OCTUBRE!K11+NOVIEMBRE!K11+DICIEMBRE!K11 -> 0 | L11: =JULIO!L11+AGOSTO!L11+SETIEMBRE!L11+OCTUBRE!L11+NOVIEMBRE!L11+DICIEMBRE!L11 -> 0 | M11: =JULIO!M11+AGOSTO!M11+SETIEMBRE!M11+OCTUBRE!M11+NOVIEMBRE!M11+DICIEMBRE!M11 -> 0 | N11: =JULIO!N11+AGOSTO!N11+SETIEMBRE!N11+OCTUBRE!N11+NOVIEMBRE!N11+DICIEMBRE!N11 -> 0 | O11: =JULIO!O11+AGOSTO!O11+SETIEMBRE!O11+OCTUBRE!O11+NOVIEMBRE!O11+DICIEMBRE!O11 -> 0 | P11: =JULIO!P11+AGOSTO!P11+SETIEMBRE!P11+OCTUBRE!P11+NOVIEMBRE!P11+DICIEMBRE!P11 -> 0 | Q11: =JULIO!Q11+AGOSTO!Q11+SETIEMBRE!Q11+OCTUBRE!Q11+NOVIEMBRE!Q11+DICIEMBRE!Q11 -> 0 | R11: =JULIO!R11+AGOSTO!R11+SETIEMBRE!R11+OCTUBRE!R11+NOVIEMBRE!R11+DICIEMBRE!R11 -> 0 | S11: =JULIO!S11+AGOSTO!S11+SETIEMBRE!S11+OCTUBRE!S11+NOVIEMBRE!S11+DICIEMBRE!S11 -> 0 | T11: =JULIO!T11+AGOSTO!T11+SETIEMBRE!T11+OCTUBRE!T11+NOVIEMBRE!T11+DICIEMBRE!T11 -> 0 | U11: =JULIO!U11+AGOSTO!U11+SETIEMBRE!U11+OCTUBRE!U11+NOVIEMBRE!U11+DICIEMBRE!U11 -> 0 | V11: =JULIO!V11+AGOSTO!V11+SETIEMBRE!V11+OCTUBRE!V11+NOVIEMBRE!V11+DICIEMBRE!V11 -> 0 | W11: =JULIO!W11+AGOSTO!W11+SETIEMBRE!W11+OCTUBRE!W11+NOVIEMBRE!W11+DICIEMBRE!W11 -> 0 | X11: =JULIO!X11+AGOSTO!X11+SETIEMBRE!X11+OCTUBRE!X11+NOVIEMBRE!X11+DICIEMBRE!X11 -> 0 | Y11: =(E11+G11+I11+K11+M11+O11+Q11+S11+U11+W11) -> 0 | Z11: =(F11+H11+J11+L11+N11+P11+R11+T11+V11+X11) -> 0
D12: HURTO AGRAVADO | E12: =JULIO!E12+AGOSTO!E12+SETIEMBRE!E12+OCTUBRE!E12+NOVIEMBRE!E12+DICIEMBRE!E12 -> 0 | F12: =JULIO!F12+AGOSTO!F12+SETIEMBRE!F12+OCTUBRE!F12+NOVIEMBRE!F12+DICIEMBRE!F12 -> 0 | G12: =JULIO!G12+AGOSTO!G12+SETIEMBRE!G12+OCTUBRE!G12+NOVIEMBRE!G12+DICIEMBRE!G12 -> 0 | H12: =JULIO!H12+AGOSTO!H12+SETIEMBRE!H12+OCTUBRE!H12+NOVIEMBRE!H12+DICIEMBRE!H12 -> 0 | I12: =JULIO!I12+AGOSTO!I12+SETIEMBRE!I12+OCTUBRE!I12+NOVIEMBRE!I12+DICIEMBRE!I12 -> 0 | J12: =JULIO!J12+AGOSTO!J12+SETIEMBRE!J12+OCTUBRE!J12+NOVIEMBRE!J12+DICIEMBRE!J12 -> 0 | K12: =JULIO!K12+AGOSTO!K12+SETIEMBRE!K12+OCTUBRE!K12+NOVIEMBRE!K12+DICIEMBRE!K12 -> 0 | L12: =JULIO!L12+AGOSTO!L12+SETIEMBRE!L12+OCTUBRE!L12+NOVIEMBRE!L12+DICIEMBRE!L12 -> 0 | M12: =JULIO!M12+AGOSTO!M12+SETIEMBRE!M12+OCTUBRE!M12+NOVIEMBRE!M12+DICIEMBRE!M12 -> 0 | N12: =JULIO!N12+AGOSTO!N12+SETIEMBRE!N12+OCTUBRE!N12+NOVIEMBRE!N12+DICIEMBRE!N12 -> 0 | O12: =JULIO!O12+AGOSTO!O12+SETIEMBRE!O12+OCTUBRE!O12+NOVIEMBRE!O12+DICIEMBRE!O12 -> 0 | P12: =JULIO!P12+AGOSTO!P12+SETIEMBRE!P12+OCTUBRE!P12+NOVIEMBRE!P12+DICIEMBRE!P12 -> 0 | Q12: =JULIO!Q12+AGOSTO!Q12+SETIEMBRE!Q12+OCTUBRE!Q12+NOVIEMBRE!Q12+DICIEMBRE!Q12 -> 0 | R12: =JULIO!R12+AGOSTO!R12+SETIEMBRE!R12+OCTUBRE!R12+NOVIEMBRE!R12+DICIEMBRE!R12 -> 0 | S12: =JULIO!S12+AGOSTO!S12+SETIEMBRE!S12+OCTUBRE!S12+NOVIEMBRE!S12+DICIEMBRE!S12 -> 0 | T12: =JULIO!T12+AGOSTO!T12+SETIEMBRE!T12+OCTUBRE!T12+NOVIEMBRE!T12+DICIEMBRE!T12 -> 0 | U12: =JULIO!U12+AGOSTO!U12+SETIEMBRE!U12+OCTUBRE!U12+NOVIEMBRE!U12+DICIEMBRE!U12 -> 0 | V12: =JULIO!V12+AGOSTO!V12+SETIEMBRE!V12+OCTUBRE!V12+NOVIEMBRE!V12+DICIEMBRE!V12 -> 0 | W12: =JULIO!W12+AGOSTO!W12+SETIEMBRE!W12+OCTUBRE!W12+NOVIEMBRE!W12+DICIEMBRE!W12 -> 0 | X12: =JULIO!X12+AGOSTO!X12+SETIEMBRE!X12+OCTUBRE!X12+NOVIEMBRE!X12+DICIEMBRE!X12 -> 0 | Y12: =(E12+G12+I12+K12+M12+O12+Q12+S12+U12+W12) -> 0 | Z12: =(F12+H12+J12+L12+N12+P12+R12+T12+V12+X12) -> 0
D13: LESION CULPOSA EN ACC. DE TTO. | E13: =JULIO!E13+AGOSTO!E13+SETIEMBRE!E13+OCTUBRE!E13+NOVIEMBRE!E13+DICIEMBRE!E13 -> 0 | F13: =JULIO!F13+AGOSTO!F13+SETIEMBRE!F13+OCTUBRE!F13+NOVIEMBRE!F13+DICIEMBRE!F13 -> 0 | G13: =JULIO!G13+AGOSTO!G13+SETIEMBRE!G13+OCTUBRE!G13+NOVIEMBRE!G13+DICIEMBRE!G13 -> 0 | H13: =JULIO!H13+AGOSTO!H13+SETIEMBRE!H13+OCTUBRE!H13+NOVIEMBRE!H13+DICIEMBRE!H13 -> 0 | I13: =JULIO!I13+AGOSTO!I13+SETIEMBRE!I13+OCTUBRE!I13+NOVIEMBRE!I13+DICIEMBRE!I13 -> 0 | J13: =JULIO!J13+AGOSTO!J13+SETIEMBRE!J13+OCTUBRE!J13+NOVIEMBRE!J13+DICIEMBRE!J13 -> 0 | K13: =JULIO!K13+AGOSTO!K13+SETIEMBRE!K13+OCTUBRE!K13+NOVIEMBRE!K13+DICIEMBRE!K13 -> 0 | L13: =JULIO!L13+AGOSTO!L13+SETIEMBRE!L13+OCTUBRE!L13+NOVIEMBRE!L13+DICIEMBRE!L13 -> 0 | M13: =JULIO!M13+AGOSTO!M13+SETIEMBRE!M13+OCTUBRE!M13+NOVIEMBRE!M13+DICIEMBRE!M13 -> 0 | N13: =JULIO!N13+AGOSTO!N13+SETIEMBRE!N13+OCTUBRE!N13+NOVIEMBRE!N13+DICIEMBRE!N13 -> 0 | O13: =JULIO!O13+AGOSTO!O13+SETIEMBRE!O13+OCTUBRE!O13+NOVIEMBRE!O13+DICIEMBRE!O13 -> 0 | P13: =JULIO!P13+AGOSTO!P13+SETIEMBRE!P13+OCTUBRE!P13+NOVIEMBRE!P13+DICIEMBRE!P13 -> 0 | Q13: =JULIO!Q13+AGOSTO!Q13+SETIEMBRE!Q13+OCTUBRE!Q13+NOVIEMBRE!Q13+DICIEMBRE!Q13 -> 0 | R13: =JULIO!R13+AGOSTO!R13+SETIEMBRE!R13+OCTUBRE!R13+NOVIEMBRE!R13+DICIEMBRE!R13 -> 0 | S13: =JULIO!S13+AGOSTO!S13+SETIEMBRE!S13+OCTUBRE!S13+NOVIEMBRE!S13+DICIEMBRE!S13 -> 0 | T13: =JULIO!T13+AGOSTO!T13+SETIEMBRE!T13+OCTUBRE!T13+NOVIEMBRE!T13+DICIEMBRE!T13 -> 0 | U13: =JULIO!U13+AGOSTO!U13+SETIEMBRE!U13+OCTUBRE!U13+NOVIEMBRE!U13+DICIEMBRE!U13 -> 0 | V13: =JULIO!V13+AGOSTO!V13+SETIEMBRE!V13+OCTUBRE!V13+NOVIEMBRE!V13+DICIEMBRE!V13 -> 0 | W13: =JULIO!W13+AGOSTO!W13+SETIEMBRE!W13+OCTUBRE!W13+NOVIEMBRE!W13+DICIEMBRE!W13 -> 0 | X13: =JULIO!X13+AGOSTO!X13+SETIEMBRE!X13+OCTUBRE!X13+NOVIEMBRE!X13+DICIEMBRE!X13 -> 0 | Y13: 0 | Z13: 0
D14: LESION | E14: =JULIO!E14+AGOSTO!E14+SETIEMBRE!E14+OCTUBRE!E14+NOVIEMBRE!E14+DICIEMBRE!E14 -> 0 | F14: =JULIO!F14+AGOSTO!F14+SETIEMBRE!F14+OCTUBRE!F14+NOVIEMBRE!F14+DICIEMBRE!F14 -> 0 | G14: =JULIO!G14+AGOSTO!G14+SETIEMBRE!G14+OCTUBRE!G14+NOVIEMBRE!G14+DICIEMBRE!G14 -> 0 | H14: =JULIO!H14+AGOSTO!H14+SETIEMBRE!H14+OCTUBRE!H14+NOVIEMBRE!H14+DICIEMBRE!H14 -> 0 | I14: =JULIO!I14+AGOSTO!I14+SETIEMBRE!I14+OCTUBRE!I14+NOVIEMBRE!I14+DICIEMBRE!I14 -> 0 | J14: =JULIO!J14+AGOSTO!J14+SETIEMBRE!J14+OCTUBRE!J14+NOVIEMBRE!J14+DICIEMBRE!J14 -> 0 | K14: =JULIO!K14+AGOSTO!K14+SETIEMBRE!K14+OCTUBRE!K14+NOVIEMBRE!K14+DICIEMBRE!K14 -> 0 | L14: =JULIO!L14+AGOSTO!L14+SETIEMBRE!L14+OCTUBRE!L14+NOVIEMBRE!L14+DICIEMBRE!L14 -> 0 | M14: =JULIO!M14+AGOSTO!M14+SETIEMBRE!M14+OCTUBRE!M14+NOVIEMBRE!M14+DICIEMBRE!M14 -> 0 | N14: =JULIO!N14+AGOSTO!N14+SETIEMBRE!N14+OCTUBRE!N14+NOVIEMBRE!N14+DICIEMBRE!N14 -> 0 | O14: =JULIO!O14+AGOSTO!O14+SETIEMBRE!O14+OCTUBRE!O14+NOVIEMBRE!O14+DICIEMBRE!O14 -> 0 | P14: =JULIO!P14+AGOSTO!P14+SETIEMBRE!P14+OCTUBRE!P14+NOVIEMBRE!P14+DICIEMBRE!P14 -> 0 | Q14: =JULIO!Q14+AGOSTO!Q14+SETIEMBRE!Q14+OCTUBRE!Q14+NOVIEMBRE!Q14+DICIEMBRE!Q14 -> 0 | R14: =JULIO!R14+AGOSTO!R14+SETIEMBRE!R14+OCTUBRE!R14+NOVIEMBRE!R14+DICIEMBRE!R14 -> 0 | S14: =JULIO!S14+AGOSTO!S14+SETIEMBRE!S14+OCTUBRE!S14+NOVIEMBRE!S14+DICIEMBRE!S14 -> 0 | T14: =JULIO!T14+AGOSTO!T14+SETIEMBRE!T14+OCTUBRE!T14+NOVIEMBRE!T14+DICIEMBRE!T14 -> 0 | U14: =JULIO!U14+AGOSTO!U14+SETIEMBRE!U14+OCTUBRE!U14+NOVIEMBRE!U14+DICIEMBRE!U14 -> 0 | V14: =JULIO!V14+AGOSTO!V14+SETIEMBRE!V14+OCTUBRE!V14+NOVIEMBRE!V14+DICIEMBRE!V14 -> 0 | W14: =JULIO!W14+AGOSTO!W14+SETIEMBRE!W14+OCTUBRE!W14+NOVIEMBRE!W14+DICIEMBRE!W14 -> 0 | X14: =JULIO!X14+AGOSTO!X14+SETIEMBRE!X14+OCTUBRE!X14+NOVIEMBRE!X14+DICIEMBRE!X14 -> 0 | Y14: 0 | Z14: 0
D15: ROBO DE OBJETOS | E15: =JULIO!E15+AGOSTO!E15+SETIEMBRE!E15+OCTUBRE!E15+NOVIEMBRE!E15+DICIEMBRE!E15 -> 0 | F15: =JULIO!F15+AGOSTO!F15+SETIEMBRE!F15+OCTUBRE!F15+NOVIEMBRE!F15+DICIEMBRE!F15 -> 0 | G15: =JULIO!G15+AGOSTO!G15+SETIEMBRE!G15+OCTUBRE!G15+NOVIEMBRE!G15+DICIEMBRE!G15 -> 0 | H15: =JULIO!H15+AGOSTO!H15+SETIEMBRE!H15+OCTUBRE!H15+NOVIEMBRE!H15+DICIEMBRE!H15 -> 0 | I15: =JULIO!I15+AGOSTO!I15+SETIEMBRE!I15+OCTUBRE!I15+NOVIEMBRE!I15+DICIEMBRE!I15 -> 0 | J15: =JULIO!J15+AGOSTO!J15+SETIEMBRE!J15+OCTUBRE!J15+NOVIEMBRE!J15+DICIEMBRE!J15 -> 0 | K15: =JULIO!K15+AGOSTO!K15+SETIEMBRE!K15+OCTUBRE!K15+NOVIEMBRE!K15+DICIEMBRE!K15 -> 0 | L15: =JULIO!L15+AGOSTO!L15+SETIEMBRE!L15+OCTUBRE!L15+NOVIEMBRE!L15+DICIEMBRE!L15 -> 0 | M15: =JULIO!M15+AGOSTO!M15+SETIEMBRE!M15+OCTUBRE!M15+NOVIEMBRE!M15+DICIEMBRE!M15 -> 0 | N15: =JULIO!N15+AGOSTO!N15+SETIEMBRE!N15+OCTUBRE!N15+NOVIEMBRE!N15+DICIEMBRE!N15 -> 0 | O15: =JULIO!O15+AGOSTO!O15+SETIEMBRE!O15+OCTUBRE!O15+NOVIEMBRE!O15+DICIEMBRE!O15 -> 0 | P15: =JULIO!P15+AGOSTO!P15+SETIEMBRE!P15+OCTUBRE!P15+NOVIEMBRE!P15+DICIEMBRE!P15 -> 0 | Q15: =JULIO!Q15+AGOSTO!Q15+SETIEMBRE!Q15+OCTUBRE!Q15+NOVIEMBRE!Q15+DICIEMBRE!Q15 -> 0 | R15: =JULIO!R15+AGOSTO!R15+SETIEMBRE!R15+OCTUBRE!R15+NOVIEMBRE!R15+DICIEMBRE!R15 -> 0 | S15: =JULIO!S15+AGOSTO!S15+SETIEMBRE!S15+OCTUBRE!S15+NOVIEMBRE!S15+DICIEMBRE!S15 -> 0 | T15: =JULIO!T15+AGOSTO!T15+SETIEMBRE!T15+OCTUBRE!T15+NOVIEMBRE!T15+DICIEMBRE!T15 -> 0 | U15: =JULIO!U15+AGOSTO!U15+SETIEMBRE!U15+OCTUBRE!U15+NOVIEMBRE!U15+DICIEMBRE!U15 -> 0 | V15: =JULIO!V15+AGOSTO!V15+SETIEMBRE!V15+OCTUBRE!V15+NOVIEMBRE!V15+DICIEMBRE!V15 -> 0 | W15: =JULIO!W15+AGOSTO!W15+SETIEMBRE!W15+OCTUBRE!W15+NOVIEMBRE!W15+DICIEMBRE!W15 -> 0 | X15: =JULIO!X15+AGOSTO!X15+SETIEMBRE!X15+OCTUBRE!X15+NOVIEMBRE!X15+DICIEMBRE!X15 -> 0 | Y15: 0 | Z15: 0
D16: ROBO AGRAVADO DE OBJETOS | E16: =JULIO!E16+AGOSTO!E16+SETIEMBRE!E16+OCTUBRE!E16+NOVIEMBRE!E16+DICIEMBRE!E16 -> 0 | F16: =JULIO!F16+AGOSTO!F16+SETIEMBRE!F16+OCTUBRE!F16+NOVIEMBRE!F16+DICIEMBRE!F16 -> 0 | G16: =JULIO!G16+AGOSTO!G16+SETIEMBRE!G16+OCTUBRE!G16+NOVIEMBRE!G16+DICIEMBRE!G16 -> 0 | H16: =JULIO!H16+AGOSTO!H16+SETIEMBRE!H16+OCTUBRE!H16+NOVIEMBRE!H16+DICIEMBRE!H16 -> 0 | I16: =JULIO!I16+AGOSTO!I16+SETIEMBRE!I16+OCTUBRE!I16+NOVIEMBRE!I16+DICIEMBRE!I16 -> 0 | J16: =JULIO!J16+AGOSTO!J16+SETIEMBRE!J16+OCTUBRE!J16+NOVIEMBRE!J16+DICIEMBRE!J16 -> 0 | K16: =JULIO!K16+AGOSTO!K16+SETIEMBRE!K16+OCTUBRE!K16+NOVIEMBRE!K16+DICIEMBRE!K16 -> 0 | L16: =JULIO!L16+AGOSTO!L16+SETIEMBRE!L16+OCTUBRE!L16+NOVIEMBRE!L16+DICIEMBRE!L16 -> 0 | M16: =JULIO!M16+AGOSTO!M16+SETIEMBRE!M16+OCTUBRE!M16+NOVIEMBRE!M16+DICIEMBRE!M16 -> 0 | N16: =JULIO!N16+AGOSTO!N16+SETIEMBRE!N16+OCTUBRE!N16+NOVIEMBRE!N16+DICIEMBRE!N16 -> 0 | O16: =JULIO!O16+AGOSTO!O16+SETIEMBRE!O16+OCTUBRE!O16+NOVIEMBRE!O16+DICIEMBRE!O16 -> 0 | P16: =JULIO!P16+AGOSTO!P16+SETIEMBRE!P16+OCTUBRE!P16+NOVIEMBRE!P16+DICIEMBRE!P16 -> 0 | Q16: =JULIO!Q16+AGOSTO!Q16+SETIEMBRE!Q16+OCTUBRE!Q16+NOVIEMBRE!Q16+DICIEMBRE!Q16 -> 0 | R16: =JULIO!R16+AGOSTO!R16+SETIEMBRE!R16+OCTUBRE!R16+NOVIEMBRE!R16+DICIEMBRE!R16 -> 0 | S16: =JULIO!S16+AGOSTO!S16+SETIEMBRE!S16+OCTUBRE!S16+NOVIEMBRE!S16+DICIEMBRE!S16 -> 0 | T16: =JULIO!T16+AGOSTO!T16+SETIEMBRE!T16+OCTUBRE!T16+NOVIEMBRE!T16+DICIEMBRE!T16 -> 0 | U16: =JULIO!U16+AGOSTO!U16+SETIEMBRE!U16+OCTUBRE!U16+NOVIEMBRE!U16+DICIEMBRE!U16 -> 0 | V16: =JULIO!V16+AGOSTO!V16+SETIEMBRE!V16+OCTUBRE!V16+NOVIEMBRE!V16+DICIEMBRE!V16 -> 0 | W16: =JULIO!W16+AGOSTO!W16+SETIEMBRE!W16+OCTUBRE!W16+NOVIEMBRE!W16+DICIEMBRE!W16 -> 0 | X16: =JULIO!X16+AGOSTO!X16+SETIEMBRE!X16+OCTUBRE!X16+NOVIEMBRE!X16+DICIEMBRE!X16 -> 0 | Y16: 0 | Z16: 0
D17: ROBO DE VEHICULOS | E17: =JULIO!E17+AGOSTO!E17+SETIEMBRE!E17+OCTUBRE!E17+NOVIEMBRE!E17+DICIEMBRE!E17 -> 0 | F17: =JULIO!F17+AGOSTO!F17+SETIEMBRE!F17+OCTUBRE!F17+NOVIEMBRE!F17+DICIEMBRE!F17 -> 0 | G17: =JULIO!G17+AGOSTO!G17+SETIEMBRE!G17+OCTUBRE!G17+NOVIEMBRE!G17+DICIEMBRE!G17 -> 0 | H17: =JULIO!H17+AGOSTO!H17+SETIEMBRE!H17+OCTUBRE!H17+NOVIEMBRE!H17+DICIEMBRE!H17 -> 0 | I17: =JULIO!I17+AGOSTO!I17+SETIEMBRE!I17+OCTUBRE!I17+NOVIEMBRE!I17+DICIEMBRE!I17 -> 0 | J17: =JULIO!J17+AGOSTO!J17+SETIEMBRE!J17+OCTUBRE!J17+NOVIEMBRE!J17+DICIEMBRE!J17 -> 0 | K17: =JULIO!K17+AGOSTO!K17+SETIEMBRE!K17+OCTUBRE!K17+NOVIEMBRE!K17+DICIEMBRE!K17 -> 0 | L17: =JULIO!L17+AGOSTO!L17+SETIEMBRE!L17+OCTUBRE!L17+NOVIEMBRE!L17+DICIEMBRE!L17 -> 0 | M17: =JULIO!M17+AGOSTO!M17+SETIEMBRE!M17+OCTUBRE!M17+NOVIEMBRE!M17+DICIEMBRE!M17 -> 0 | N17: =JULIO!N17+AGOSTO!N17+SETIEMBRE!N17+OCTUBRE!N17+NOVIEMBRE!N17+DICIEMBRE!N17 -> 0 | O17: =JULIO!O17+AGOSTO!O17+SETIEMBRE!O17+OCTUBRE!O17+NOVIEMBRE!O17+DICIEMBRE!O17 -> 0 | P17: =JULIO!P17+AGOSTO!P17+SETIEMBRE!P17+OCTUBRE!P17+NOVIEMBRE!P17+DICIEMBRE!P17 -> 0 | Q17: =JULIO!Q17+AGOSTO!Q17+SETIEMBRE!Q17+OCTUBRE!Q17+NOVIEMBRE!Q17+DICIEMBRE!Q17 -> 0 | R17: =JULIO!R17+AGOSTO!R17+SETIEMBRE!R17+OCTUBRE!R17+NOVIEMBRE!R17+DICIEMBRE!R17 -> 0 | S17: =JULIO!S17+AGOSTO!S17+SETIEMBRE!S17+OCTUBRE!S17+NOVIEMBRE!S17+DICIEMBRE!S17 -> 0 | T17: =JULIO!T17+AGOSTO!T17+SETIEMBRE!T17+OCTUBRE!T17+NOVIEMBRE!T17+DICIEMBRE!T17 -> 0 | U17: =JULIO!U17+AGOSTO!U17+SETIEMBRE!U17+OCTUBRE!U17+NOVIEMBRE!U17+DICIEMBRE!U17 -> 0 | V17: =JULIO!V17+AGOSTO!V17+SETIEMBRE!V17+OCTUBRE!V17+NOVIEMBRE!V17+DICIEMBRE!V17 -> 0 | W17: =JULIO!W17+AGOSTO!W17+SETIEMBRE!W17+OCTUBRE!W17+NOVIEMBRE!W17+DICIEMBRE!W17 -> 0 | X17: =JULIO!X17+AGOSTO!X17+SETIEMBRE!X17+OCTUBRE!X17+NOVIEMBRE!X17+DICIEMBRE!X17 -> 0 | Y17: 0 | Z17: 0
D18: ROBO AGRAVADO DE VEHICULOS | E18: =JULIO!E18+AGOSTO!E18+SETIEMBRE!E18+OCTUBRE!E18+NOVIEMBRE!E18+DICIEMBRE!E18 -> 0 | F18: =JULIO!F18+AGOSTO!F18+SETIEMBRE!F18+OCTUBRE!F18+NOVIEMBRE!F18+DICIEMBRE!F18 -> 0 | G18: =JULIO!G18+AGOSTO!G18+SETIEMBRE!G18+OCTUBRE!G18+NOVIEMBRE!G18+DICIEMBRE!G18 -> 0 | H18: =JULIO!H18+AGOSTO!H18+SETIEMBRE!H18+OCTUBRE!H18+NOVIEMBRE!H18+DICIEMBRE!H18 -> 0 | I18: =JULIO!I18+AGOSTO!I18+SETIEMBRE!I18+OCTUBRE!I18+NOVIEMBRE!I18+DICIEMBRE!I18 -> 0 | J18: =JULIO!J18+AGOSTO!J18+SETIEMBRE!J18+OCTUBRE!J18+NOVIEMBRE!J18+DICIEMBRE!J18 -> 0 | K18: =JULIO!K18+AGOSTO!K18+SETIEMBRE!K18+OCTUBRE!K18+NOVIEMBRE!K18+DICIEMBRE!K18 -> 0 | L18: =JULIO!L18+AGOSTO!L18+SETIEMBRE!L18+OCTUBRE!L18+NOVIEMBRE!L18+DICIEMBRE!L18 -> 0 | M18: =JULIO!M18+AGOSTO!M18+SETIEMBRE!M18+OCTUBRE!M18+NOVIEMBRE!M18+DICIEMBRE!M18 -> 0 | N18: =JULIO!N18+AGOSTO!N18+SETIEMBRE!N18+OCTUBRE!N18+NOVIEMBRE!N18+DICIEMBRE!N18 -> 0 | O18: =JULIO!O18+AGOSTO!O18+SETIEMBRE!O18+OCTUBRE!O18+NOVIEMBRE!O18+DICIEMBRE!O18 -> 0 | P18: =JULIO!P18+AGOSTO!P18+SETIEMBRE!P18+OCTUBRE!P18+NOVIEMBRE!P18+DICIEMBRE!P18 -> 0 | Q18: =JULIO!Q18+AGOSTO!Q18+SETIEMBRE!Q18+OCTUBRE!Q18+NOVIEMBRE!Q18+DICIEMBRE!Q18 -> 0 | R18: =JULIO!R18+AGOSTO!R18+SETIEMBRE!R18+OCTUBRE!R18+NOVIEMBRE!R18+DICIEMBRE!R18 -> 0 | S18: =JULIO!S18+AGOSTO!S18+SETIEMBRE!S18+OCTUBRE!S18+NOVIEMBRE!S18+DICIEMBRE!S18 -> 0 | T18: =JULIO!T18+AGOSTO!T18+SETIEMBRE!T18+OCTUBRE!T18+NOVIEMBRE!T18+DICIEMBRE!T18 -> 0 | U18: =JULIO!U18+AGOSTO!U18+SETIEMBRE!U18+OCTUBRE!U18+NOVIEMBRE!U18+DICIEMBRE!U18 -> 0 | V18: =JULIO!V18+AGOSTO!V18+SETIEMBRE!V18+OCTUBRE!V18+NOVIEMBRE!V18+DICIEMBRE!V18 -> 0 | W18: =JULIO!W18+AGOSTO!W18+SETIEMBRE!W18+OCTUBRE!W18+NOVIEMBRE!W18+DICIEMBRE!W18 -> 0 | X18: =JULIO!X18+AGOSTO!X18+SETIEMBRE!X18+OCTUBRE!X18+NOVIEMBRE!X18+DICIEMBRE!X18 -> 0 | Y18: 0 | Z18: 0
D19: ROBO DE MOTOCICLETAS | E19: =JULIO!E19+AGOSTO!E19+SETIEMBRE!E19+OCTUBRE!E19+NOVIEMBRE!E19+DICIEMBRE!E19 -> 0 | F19: =JULIO!F19+AGOSTO!F19+SETIEMBRE!F19+OCTUBRE!F19+NOVIEMBRE!F19+DICIEMBRE!F19 -> 0 | G19: =JULIO!G19+AGOSTO!G19+SETIEMBRE!G19+OCTUBRE!G19+NOVIEMBRE!G19+DICIEMBRE!G19 -> 0 | H19: =JULIO!H19+AGOSTO!H19+SETIEMBRE!H19+OCTUBRE!H19+NOVIEMBRE!H19+DICIEMBRE!H19 -> 0 | I19: =JULIO!I19+AGOSTO!I19+SETIEMBRE!I19+OCTUBRE!I19+NOVIEMBRE!I19+DICIEMBRE!I19 -> 0 | J19: =JULIO!J19+AGOSTO!J19+SETIEMBRE!J19+OCTUBRE!J19+NOVIEMBRE!J19+DICIEMBRE!J19 -> 0 | K19: =JULIO!K19+AGOSTO!K19+SETIEMBRE!K19+OCTUBRE!K19+NOVIEMBRE!K19+DICIEMBRE!K19 -> 0 | L19: =JULIO!L19+AGOSTO!L19+SETIEMBRE!L19+OCTUBRE!L19+NOVIEMBRE!L19+DICIEMBRE!L19 -> 0 | M19: =JULIO!M19+AGOSTO!M19+SETIEMBRE!M19+OCTUBRE!M19+NOVIEMBRE!M19+DICIEMBRE!M19 -> 0 | N19: =JULIO!N19+AGOSTO!N19+SETIEMBRE!N19+OCTUBRE!N19+NOVIEMBRE!N19+DICIEMBRE!N19 -> 0 | O19: =JULIO!O19+AGOSTO!O19+SETIEMBRE!O19+OCTUBRE!O19+NOVIEMBRE!O19+DICIEMBRE!O19 -> 0 | P19: =JULIO!P19+AGOSTO!P19+SETIEMBRE!P19+OCTUBRE!P19+NOVIEMBRE!P19+DICIEMBRE!P19 -> 0 | Q19: =JULIO!Q19+AGOSTO!Q19+SETIEMBRE!Q19+OCTUBRE!Q19+NOVIEMBRE!Q19+DICIEMBRE!Q19 -> 0 | R19: =JULIO!R19+AGOSTO!R19+SETIEMBRE!R19+OCTUBRE!R19+NOVIEMBRE!R19+DICIEMBRE!R19 -> 0 | S19: =JULIO!S19+AGOSTO!S19+SETIEMBRE!S19+OCTUBRE!S19+NOVIEMBRE!S19+DICIEMBRE!S19 -> 0 | T19: =JULIO!T19+AGOSTO!T19+SETIEMBRE!T19+OCTUBRE!T19+NOVIEMBRE!T19+DICIEMBRE!T19 -> 0 | U19: =JULIO!U19+AGOSTO!U19+SETIEMBRE!U19+OCTUBRE!U19+NOVIEMBRE!U19+DICIEMBRE!U19 -> 0 | V19: =JULIO!V19+AGOSTO!V19+SETIEMBRE!V19+OCTUBRE!V19+NOVIEMBRE!V19+DICIEMBRE!V19 -> 0 | W19: =JULIO!W19+AGOSTO!W19+SETIEMBRE!W19+OCTUBRE!W19+NOVIEMBRE!W19+DICIEMBRE!W19 -> 0 | X19: =JULIO!X19+AGOSTO!X19+SETIEMBRE!X19+OCTUBRE!X19+NOVIEMBRE!X19+DICIEMBRE!X19 -> 0 | Y19: 0 | Z19: 0
D20: ROBO AGRAVADO DE MOTOCICLETAS | E20: =JULIO!E20+AGOSTO!E20+SETIEMBRE!E20+OCTUBRE!E20+NOVIEMBRE!E20+DICIEMBRE!E20 -> 0 | F20: =JULIO!F20+AGOSTO!F20+SETIEMBRE!F20+OCTUBRE!F20+NOVIEMBRE!F20+DICIEMBRE!F20 -> 0 | G20: =JULIO!G20+AGOSTO!G20+SETIEMBRE!G20+OCTUBRE!G20+NOVIEMBRE!G20+DICIEMBRE!G20 -> 0 | H20: =JULIO!H20+AGOSTO!H20+SETIEMBRE!H20+OCTUBRE!H20+NOVIEMBRE!H20+DICIEMBRE!H20 -> 0 | I20: =JULIO!I20+AGOSTO!I20+SETIEMBRE!I20+OCTUBRE!I20+NOVIEMBRE!I20+DICIEMBRE!I20 -> 0 | J20: =JULIO!J20+AGOSTO!J20+SETIEMBRE!J20+OCTUBRE!J20+NOVIEMBRE!J20+DICIEMBRE!J20 -> 0 | K20: =JULIO!K20+AGOSTO!K20+SETIEMBRE!K20+OCTUBRE!K20+NOVIEMBRE!K20+DICIEMBRE!K20 -> 0 | L20: =JULIO!L20+AGOSTO!L20+SETIEMBRE!L20+OCTUBRE!L20+NOVIEMBRE!L20+DICIEMBRE!L20 -> 0 | M20: =JULIO!M20+AGOSTO!M20+SETIEMBRE!M20+OCTUBRE!M20+NOVIEMBRE!M20+DICIEMBRE!M20 -> 0 | N20: =JULIO!N20+AGOSTO!N20+SETIEMBRE!N20+OCTUBRE!N20+NOVIEMBRE!N20+DICIEMBRE!N20 -> 0 | O20: =JULIO!O20+AGOSTO!O20+SETIEMBRE!O20+OCTUBRE!O20+NOVIEMBRE!O20+DICIEMBRE!O20 -> 0 | P20: =JULIO!P20+AGOSTO!P20+SETIEMBRE!P20+OCTUBRE!P20+NOVIEMBRE!P20+DICIEMBRE!P20 -> 0 | Q20: =JULIO!Q20+AGOSTO!Q20+SETIEMBRE!Q20+OCTUBRE!Q20+NOVIEMBRE!Q20+DICIEMBRE!Q20 -> 0 | R20: =JULIO!R20+AGOSTO!R20+SETIEMBRE!R20+OCTUBRE!R20+NOVIEMBRE!R20+DICIEMBRE!R20 -> 0 | S20: =JULIO!S20+AGOSTO!S20+SETIEMBRE!S20+OCTUBRE!S20+NOVIEMBRE!S20+DICIEMBRE!S20 -> 0 | T20: =JULIO!T20+AGOSTO!T20+SETIEMBRE!T20+OCTUBRE!T20+NOVIEMBRE!T20+DICIEMBRE!T20 -> 0 | U20: =JULIO!U20+AGOSTO!U20+SETIEMBRE!U20+OCTUBRE!U20+NOVIEMBRE!U20+DICIEMBRE!U20 -> 0 | V20: =JULIO!V20+AGOSTO!V20+SETIEMBRE!V20+OCTUBRE!V20+NOVIEMBRE!V20+DICIEMBRE!V20 -> 0 | W20: =JULIO!W20+AGOSTO!W20+SETIEMBRE!W20+OCTUBRE!W20+NOVIEMBRE!W20+DICIEMBRE!W20 -> 0 | X20: =JULIO!X20+AGOSTO!X20+SETIEMBRE!X20+OCTUBRE!X20+NOVIEMBRE!X20+DICIEMBRE!X20 -> 0 | Y20: 0 | Z20: 0
D21: TOTAL | E21: =E7+E8+E9+E10+E11+E12+E13+E14+E15+E16+E17+E18+E19+E20 -> 0 | F21: =F7+F8+F9+F10+F11+F12+F13+F14+F15+F16+F17+F18+F19+F20 -> 0 | G21: 0 | H21: 0 | I21: 0 | J21: 0 | K21: 0 | L21: 0 | M21: 0 | N21: 0 | O21: 0 | P21: 0 | Q21: 0 | R21: 0 | S21: 0 | T21: 0 | U21: 0 | V21: 0 | W21: 0 | X21: 0 | Y21: =SUM(Y7:Y20) -> 0 | Z21: =SUM(Z7:Z20) -> 0
D22: PORCENTAJE DE ACLARADOS | E22: =+(F21/E21) ->  | G22: =+(H21/G21) ->  | I22: =+(J21/I21) ->  | K22: =+(L21/K21) ->  | M22: =+(N21/M21) ->  | O22: =+(P21/O21) ->  | Q22: =+(R21/Q21) ->  | S22: =+(T21/S21) ->  | U22: =+(V21/U21) ->  | W22: =+(X21/W21) ->  | Y22: =+(Z21/Y21) -> 
D24: HECHOS PUNIBLES | E24: TRANSPORTE | G24: DIRECCIONES POLICIALES | W24: TOTAL
G25: Alto Paraná | I25: Itapua | K25: Canindeyú | M25: Misiones | O25: Paraguari | Q25: Ñeembucu | S25: Boqueron | U25: Pte Hayes
E26: D | F26: A | G26: D | H26: A | I26: D | J26: A | K26: D | L26: A | M26: D | N26: A | O26: D | P26: A | Q26: D | R26: A | S26: D | T26: A | U26: D | V26: A | W26: D | X26: A
D27: ABIGEATO | E27: =(Y7) -> 0 | F27: 0 | G27: =JULIO!G27+AGOSTO!G27+SETIEMBRE!G27+OCTUBRE!G27+NOVIEMBRE!G27+DICIEMBRE!G27 -> 0 | H27: =JULIO!H27+AGOSTO!H27+SETIEMBRE!H27+OCTUBRE!H27+NOVIEMBRE!H27+DICIEMBRE!H27 -> 0 | I27: =JULIO!I27+AGOSTO!I27+SETIEMBRE!I27+OCTUBRE!I27+NOVIEMBRE!I27+DICIEMBRE!I27 -> 0 | J27: =JULIO!J27+AGOSTO!J27+SETIEMBRE!J27+OCTUBRE!J27+NOVIEMBRE!J27+DICIEMBRE!J27 -> 0 | K27: =JULIO!K27+AGOSTO!K27+SETIEMBRE!K27+OCTUBRE!K27+NOVIEMBRE!K27+DICIEMBRE!K27 -> 0 | L27: =JULIO!L27+AGOSTO!L27+SETIEMBRE!L27+OCTUBRE!L27+NOVIEMBRE!L27+DICIEMBRE!L27 -> 0 | M27: =JULIO!M27+AGOSTO!M27+SETIEMBRE!M27+OCTUBRE!M27+NOVIEMBRE!M27+DICIEMBRE!M27 -> 0 | N27: =JULIO!N27+AGOSTO!N27+SETIEMBRE!N27+OCTUBRE!N27+NOVIEMBRE!N27+DICIEMBRE!N27 -> 0 | O27: =JULIO!O27+AGOSTO!O27+SETIEMBRE!O27+OCTUBRE!O27+NOVIEMBRE!O27+DICIEMBRE!O27 -> 0 | P27: =JULIO!P27+AGOSTO!P27+SETIEMBRE!P27+OCTUBRE!P27+NOVIEMBRE!P27+DICIEMBRE!P27 -> 0 | Q27: =JULIO!Q27+AGOSTO!Q27+SETIEMBRE!Q27+OCTUBRE!Q27+NOVIEMBRE!Q27+DICIEMBRE!Q27 -> 0 | R27: =JULIO!R27+AGOSTO!R27+SETIEMBRE!R27+OCTUBRE!R27+NOVIEMBRE!R27+DICIEMBRE!R27 -> 0 | S27: =JULIO!S27+AGOSTO!S27+SETIEMBRE!S27+OCTUBRE!S27+NOVIEMBRE!S27+DICIEMBRE!S27 -> 0 | T27: =JULIO!T27+AGOSTO!T27+SETIEMBRE!T27+OCTUBRE!T27+NOVIEMBRE!T27+DICIEMBRE!T27 -> 0 | U27: =JULIO!U27+AGOSTO!U27+SETIEMBRE!U27+OCTUBRE!U27+NOVIEMBRE!U27+DICIEMBRE!U27 -> 0 | V27: =JULIO!V27+AGOSTO!V27+SETIEMBRE!V27+OCTUBRE!V27+NOVIEMBRE!V27+DICIEMBRE!V27 -> 0 | W27: =(E27+G27+I27+K27+M27+O27+Q27+S27+U27) -> 0 | X27: =(F27+H27+J27+L27+N27+P27+R27+T27+V27) -> 0 | AD27: =(X27/W27) -> 
D28: COACCION SEXUAL | E28: 0 | F28: 0 | G28: =JULIO!G28+AGOSTO!G28+SETIEMBRE!G28+OCTUBRE!G28+NOVIEMBRE!G28+DICIEMBRE!G28 -> 0 | H28: =JULIO!H28+AGOSTO!H28+SETIEMBRE!H28+OCTUBRE!H28+NOVIEMBRE!H28+DICIEMBRE!H28 -> 0 | I28: =JULIO!I28+AGOSTO!I28+SETIEMBRE!I28+OCTUBRE!I28+NOVIEMBRE!I28+DICIEMBRE!I28 -> 0 | J28: =JULIO!J28+AGOSTO!J28+SETIEMBRE!J28+OCTUBRE!J28+NOVIEMBRE!J28+DICIEMBRE!J28 -> 0 | K28: =JULIO!K28+AGOSTO!K28+SETIEMBRE!K28+OCTUBRE!K28+NOVIEMBRE!K28+DICIEMBRE!K28 -> 0 | L28: =JULIO!L28+AGOSTO!L28+SETIEMBRE!L28+OCTUBRE!L28+NOVIEMBRE!L28+DICIEMBRE!L28 -> 0 | M28: =JULIO!M28+AGOSTO!M28+SETIEMBRE!M28+OCTUBRE!M28+NOVIEMBRE!M28+DICIEMBRE!M28 -> 0 | N28: =JULIO!N28+AGOSTO!N28+SETIEMBRE!N28+OCTUBRE!N28+NOVIEMBRE!N28+DICIEMBRE!N28 -> 0 | O28: =JULIO!O28+AGOSTO!O28+SETIEMBRE!O28+OCTUBRE!O28+NOVIEMBRE!O28+DICIEMBRE!O28 -> 0 | P28: =JULIO!P28+AGOSTO!P28+SETIEMBRE!P28+OCTUBRE!P28+NOVIEMBRE!P28+DICIEMBRE!P28 -> 0 | Q28: =JULIO!Q28+AGOSTO!Q28+SETIEMBRE!Q28+OCTUBRE!Q28+NOVIEMBRE!Q28+DICIEMBRE!Q28 -> 0 | R28: =JULIO!R28+AGOSTO!R28+SETIEMBRE!R28+OCTUBRE!R28+NOVIEMBRE!R28+DICIEMBRE!R28 -> 0 | S28: =JULIO!S28+AGOSTO!S28+SETIEMBRE!S28+OCTUBRE!S28+NOVIEMBRE!S28+DICIEMBRE!S28 -> 0 | T28: =JULIO!T28+AGOSTO!T28+SETIEMBRE!T28+OCTUBRE!T28+NOVIEMBRE!T28+DICIEMBRE!T28 -> 0 | U28: =JULIO!U28+AGOSTO!U28+SETIEMBRE!U28+OCTUBRE!U28+NOVIEMBRE!U28+DICIEMBRE!U28 -> 0 | V28: =JULIO!V28+AGOSTO!V28+SETIEMBRE!V28+OCTUBRE!V28+NOVIEMBRE!V28+DICIEMBRE!V28 -> 0 | W28: 0 | X28: =(F28+H28+J28+L28+N28+P28+R28+T28+V28) -> 0 | AD28: =(X28/W28) -> 
D29: HOMICIDIO CULPOSO EN ACC DE TTO. | E29: 0 | F29: 0 | G29: =JULIO!G29+AGOSTO!G29+SETIEMBRE!G29+OCTUBRE!G29+NOVIEMBRE!G29+DICIEMBRE!G29 -> 0 | H29: =JULIO!H29+AGOSTO!H29+SETIEMBRE!H29+OCTUBRE!H29+NOVIEMBRE!H29+DICIEMBRE!H29 -> 0 | I29: =JULIO!I29+AGOSTO!I29+SETIEMBRE!I29+OCTUBRE!I29+NOVIEMBRE!I29+DICIEMBRE!I29 -> 0 | J29: =JULIO!J29+AGOSTO!J29+SETIEMBRE!J29+OCTUBRE!J29+NOVIEMBRE!J29+DICIEMBRE!J29 -> 0 | K29: =JULIO!K29+AGOSTO!K29+SETIEMBRE!K29+OCTUBRE!K29+NOVIEMBRE!K29+DICIEMBRE!K29 -> 0 | L29: =JULIO!L29+AGOSTO!L29+SETIEMBRE!L29+OCTUBRE!L29+NOVIEMBRE!L29+DICIEMBRE!L29 -> 0 | M29: =JULIO!M29+AGOSTO!M29+SETIEMBRE!M29+OCTUBRE!M29+NOVIEMBRE!M29+DICIEMBRE!M29 -> 0 | N29: =JULIO!N29+AGOSTO!N29+SETIEMBRE!N29+OCTUBRE!N29+NOVIEMBRE!N29+DICIEMBRE!N29 -> 0 | O29: =JULIO!O29+AGOSTO!O29+SETIEMBRE!O29+OCTUBRE!O29+NOVIEMBRE!O29+DICIEMBRE!O29 -> 0 | P29: =JULIO!P29+AGOSTO!P29+SETIEMBRE!P29+OCTUBRE!P29+NOVIEMBRE!P29+DICIEMBRE!P29 -> 0 | Q29: =JULIO!Q29+AGOSTO!Q29+SETIEMBRE!Q29+OCTUBRE!Q29+NOVIEMBRE!Q29+DICIEMBRE!Q29 -> 0 | R29: =JULIO!R29+AGOSTO!R29+SETIEMBRE!R29+OCTUBRE!R29+NOVIEMBRE!R29+DICIEMBRE!R29 -> 0 | S29: =JULIO!S29+AGOSTO!S29+SETIEMBRE!S29+OCTUBRE!S29+NOVIEMBRE!S29+DICIEMBRE!S29 -> 0 | T29: =JULIO!T29+AGOSTO!T29+SETIEMBRE!T29+OCTUBRE!T29+NOVIEMBRE!T29+DICIEMBRE!T29 -> 0 | U29: =JULIO!U29+AGOSTO!U29+SETIEMBRE!U29+OCTUBRE!U29+NOVIEMBRE!U29+DICIEMBRE!U29 -> 0 | V29: =JULIO!V29+AGOSTO!V29+SETIEMBRE!V29+OCTUBRE!V29+NOVIEMBRE!V29+DICIEMBRE!V29 -> 0 | W29: 0 | X29: 0
D30: HOMICIDIO DOLOSO | E30: 0 | F30: 0 | G30: =JULIO!G30+AGOSTO!G30+SETIEMBRE!G30+OCTUBRE!G30+NOVIEMBRE!G30+DICIEMBRE!G30 -> 0 | H30: =JULIO!H30+AGOSTO!H30+SETIEMBRE!H30+OCTUBRE!H30+NOVIEMBRE!H30+DICIEMBRE!H30 -> 0 | I30: =JULIO!I30+AGOSTO!I30+SETIEMBRE!I30+OCTUBRE!I30+NOVIEMBRE!I30+DICIEMBRE!I30 -> 0 | J30: =JULIO!J30+AGOSTO!J30+SETIEMBRE!J30+OCTUBRE!J30+NOVIEMBRE!J30+DICIEMBRE!J30 -> 0 | K30: =JULIO!K30+AGOSTO!K30+SETIEMBRE!K30+OCTUBRE!K30+NOVIEMBRE!K30+DICIEMBRE!K30 -> 0 | L30: =JULIO!L30+AGOSTO!L30+SETIEMBRE!L30+OCTUBRE!L30+NOVIEMBRE!L30+DICIEMBRE!L30 -> 0 | M30: =JULIO!M30+AGOSTO!M30+SETIEMBRE!M30+OCTUBRE!M30+NOVIEMBRE!M30+DICIEMBRE!M30 -> 0 | N30: =JULIO!N30+AGOSTO!N30+SETIEMBRE!N30+OCTUBRE!N30+NOVIEMBRE!N30+DICIEMBRE!N30 -> 0 | O30: =JULIO!O30+AGOSTO!O30+SETIEMBRE!O30+OCTUBRE!O30+NOVIEMBRE!O30+DICIEMBRE!O30 -> 0 | P30: =JULIO!P30+AGOSTO!P30+SETIEMBRE!P30+OCTUBRE!P30+NOVIEMBRE!P30+DICIEMBRE!P30 -> 0 | Q30: =JULIO!Q30+AGOSTO!Q30+SETIEMBRE!Q30+OCTUBRE!Q30+NOVIEMBRE!Q30+DICIEMBRE!Q30 -> 0 | R30: =JULIO!R30+AGOSTO!R30+SETIEMBRE!R30+OCTUBRE!R30+NOVIEMBRE!R30+DICIEMBRE!R30 -> 0 | S30: =JULIO!S30+AGOSTO!S30+SETIEMBRE!S30+OCTUBRE!S30+NOVIEMBRE!S30+DICIEMBRE!S30 -> 0 | T30: =JULIO!T30+AGOSTO!T30+SETIEMBRE!T30+OCTUBRE!T30+NOVIEMBRE!T30+DICIEMBRE!T30 -> 0 | U30: =JULIO!U30+AGOSTO!U30+SETIEMBRE!U30+OCTUBRE!U30+NOVIEMBRE!U30+DICIEMBRE!U30 -> 0 | V30: =JULIO!V30+AGOSTO!V30+SETIEMBRE!V30+OCTUBRE!V30+NOVIEMBRE!V30+DICIEMBRE!V30 -> 0 | W30: =(E30+G30+I30+K30+M30+O30+Q30+S30+U30) -> 0 | X30: 0
D31: HURTO | E31: 0 | F31: 0 | G31: =JULIO!G31+AGOSTO!G31+SETIEMBRE!G31+OCTUBRE!G31+NOVIEMBRE!G31+DICIEMBRE!G31 -> 0 | H31: =JULIO!H31+AGOSTO!H31+SETIEMBRE!H31+OCTUBRE!H31+NOVIEMBRE!H31+DICIEMBRE!H31 -> 0 | I31: =JULIO!I31+AGOSTO!I31+SETIEMBRE!I31+OCTUBRE!I31+NOVIEMBRE!I31+DICIEMBRE!I31 -> 0 | J31: =JULIO!J31+AGOSTO!J31+SETIEMBRE!J31+OCTUBRE!J31+NOVIEMBRE!J31+DICIEMBRE!J31 -> 0 | K31: =JULIO!K31+AGOSTO!K31+SETIEMBRE!K31+OCTUBRE!K31+NOVIEMBRE!K31+DICIEMBRE!K31 -> 0 | L31: =JULIO!L31+AGOSTO!L31+SETIEMBRE!L31+OCTUBRE!L31+NOVIEMBRE!L31+DICIEMBRE!L31 -> 0 | M31: =JULIO!M31+AGOSTO!M31+SETIEMBRE!M31+OCTUBRE!M31+NOVIEMBRE!M31+DICIEMBRE!M31 -> 0 | N31: =JULIO!N31+AGOSTO!N31+SETIEMBRE!N31+OCTUBRE!N31+NOVIEMBRE!N31+DICIEMBRE!N31 -> 0 | O31: =JULIO!O31+AGOSTO!O31+SETIEMBRE!O31+OCTUBRE!O31+NOVIEMBRE!O31+DICIEMBRE!O31 -> 0 | P31: =JULIO!P31+AGOSTO!P31+SETIEMBRE!P31+OCTUBRE!P31+NOVIEMBRE!P31+DICIEMBRE!P31 -> 0 | Q31: =JULIO!Q31+AGOSTO!Q31+SETIEMBRE!Q31+OCTUBRE!Q31+NOVIEMBRE!Q31+DICIEMBRE!Q31 -> 0 | R31: =JULIO!R31+AGOSTO!R31+SETIEMBRE!R31+OCTUBRE!R31+NOVIEMBRE!R31+DICIEMBRE!R31 -> 0 | S31: =JULIO!S31+AGOSTO!S31+SETIEMBRE!S31+OCTUBRE!S31+NOVIEMBRE!S31+DICIEMBRE!S31 -> 0 | T31: =JULIO!T31+AGOSTO!T31+SETIEMBRE!T31+OCTUBRE!T31+NOVIEMBRE!T31+DICIEMBRE!T31 -> 0 | U31: =JULIO!U31+AGOSTO!U31+SETIEMBRE!U31+OCTUBRE!U31+NOVIEMBRE!U31+DICIEMBRE!U31 -> 0 | V31: =JULIO!V31+AGOSTO!V31+SETIEMBRE!V31+OCTUBRE!V31+NOVIEMBRE!V31+DICIEMBRE!V31 -> 0 | W31: =(E31+G31+I31+K31+M31+O31+Q31+S31+U31) -> 0 | X31: =(F31+H31+J31+L31+N31+P31+R31+T31+V31) -> 0
D32: HURTO AGRAVADO | E32: 0 | F32: 0 | G32: =JULIO!G32+AGOSTO!G32+SETIEMBRE!G32+OCTUBRE!G32+NOVIEMBRE!G32+DICIEMBRE!G32 -> 0 | H32: =JULIO!H32+AGOSTO!H32+SETIEMBRE!H32+OCTUBRE!H32+NOVIEMBRE!H32+DICIEMBRE!H32 -> 0 | I32: =JULIO!I32+AGOSTO!I32+SETIEMBRE!I32+OCTUBRE!I32+NOVIEMBRE!I32+DICIEMBRE!I32 -> 0 | J32: =JULIO!J32+AGOSTO!J32+SETIEMBRE!J32+OCTUBRE!J32+NOVIEMBRE!J32+DICIEMBRE!J32 -> 0 | K32: =JULIO!K32+AGOSTO!K32+SETIEMBRE!K32+OCTUBRE!K32+NOVIEMBRE!K32+DICIEMBRE!K32 -> 0 | L32: =JULIO!L32+AGOSTO!L32+SETIEMBRE!L32+OCTUBRE!L32+NOVIEMBRE!L32+DICIEMBRE!L32 -> 0 | M32: =JULIO!M32+AGOSTO!M32+SETIEMBRE!M32+OCTUBRE!M32+NOVIEMBRE!M32+DICIEMBRE!M32 -> 0 | N32: =JULIO!N32+AGOSTO!N32+SETIEMBRE!N32+OCTUBRE!N32+NOVIEMBRE!N32+DICIEMBRE!N32 -> 0 | O32: =JULIO!O32+AGOSTO!O32+SETIEMBRE!O32+OCTUBRE!O32+NOVIEMBRE!O32+DICIEMBRE!O32 -> 0 | P32: =JULIO!P32+AGOSTO!P32+SETIEMBRE!P32+OCTUBRE!P32+NOVIEMBRE!P32+DICIEMBRE!P32 -> 0 | Q32: =JULIO!Q32+AGOSTO!Q32+SETIEMBRE!Q32+OCTUBRE!Q32+NOVIEMBRE!Q32+DICIEMBRE!Q32 -> 0 | R32: =JULIO!R32+AGOSTO!R32+SETIEMBRE!R32+OCTUBRE!R32+NOVIEMBRE!R32+DICIEMBRE!R32 -> 0 | S32: =JULIO!S32+AGOSTO!S32+SETIEMBRE!S32+OCTUBRE!S32+NOVIEMBRE!S32+DICIEMBRE!S32 -> 0 | T32: =JULIO!T32+AGOSTO!T32+SETIEMBRE!T32+OCTUBRE!T32+NOVIEMBRE!T32+DICIEMBRE!T32 -> 0 | U32: =JULIO!U32+AGOSTO!U32+SETIEMBRE!U32+OCTUBRE!U32+NOVIEMBRE!U32+DICIEMBRE!U32 -> 0 | V32: =JULIO!V32+AGOSTO!V32+SETIEMBRE!V32+OCTUBRE!V32+NOVIEMBRE!V32+DICIEMBRE!V32 -> 0 | W32: =(E32+G32+I32+K32+M32+O32+Q32+S32+U32) -> 0 | X32: =(F32+H32+J32+L32+N32+P32+R32+T32+V32) -> 0
D33: LESION CULPOSA EN ACC. DE TTO. | E33: 0 | F33: 0 | G33: =JULIO!G33+AGOSTO!G33+SETIEMBRE!G33+OCTUBRE!G33+NOVIEMBRE!G33+DICIEMBRE!G33 -> 0 | H33: =JULIO!H33+AGOSTO!H33+SETIEMBRE!H33+OCTUBRE!H33+NOVIEMBRE!H33+DICIEMBRE!H33 -> 0 | I33: =JULIO!I33+AGOSTO!I33+SETIEMBRE!I33+OCTUBRE!I33+NOVIEMBRE!I33+DICIEMBRE!I33 -> 0 | J33: =JULIO!J33+AGOSTO!J33+SETIEMBRE!J33+OCTUBRE!J33+NOVIEMBRE!J33+DICIEMBRE!J33 -> 0 | K33: =JULIO!K33+AGOSTO!K33+SETIEMBRE!K33+OCTUBRE!K33+NOVIEMBRE!K33+DICIEMBRE!K33 -> 0 | L33: =JULIO!L33+AGOSTO!L33+SETIEMBRE!L33+OCTUBRE!L33+NOVIEMBRE!L33+DICIEMBRE!L33 -> 0 | M33: =JULIO!M33+AGOSTO!M33+SETIEMBRE!M33+OCTUBRE!M33+NOVIEMBRE!M33+DICIEMBRE!M33 -> 0 | N33: =JULIO!N33+AGOSTO!N33+SETIEMBRE!N33+OCTUBRE!N33+NOVIEMBRE!N33+DICIEMBRE!N33 -> 0 | O33: =JULIO!O33+AGOSTO!O33+SETIEMBRE!O33+OCTUBRE!O33+NOVIEMBRE!O33+DICIEMBRE!O33 -> 0 | P33: =JULIO!P33+AGOSTO!P33+SETIEMBRE!P33+OCTUBRE!P33+NOVIEMBRE!P33+DICIEMBRE!P33 -> 0 | Q33: =JULIO!Q33+AGOSTO!Q33+SETIEMBRE!Q33+OCTUBRE!Q33+NOVIEMBRE!Q33+DICIEMBRE!Q33 -> 0 | R33: =JULIO!R33+AGOSTO!R33+SETIEMBRE!R33+OCTUBRE!R33+NOVIEMBRE!R33+DICIEMBRE!R33 -> 0 | S33: =JULIO!S33+AGOSTO!S33+SETIEMBRE!S33+OCTUBRE!S33+NOVIEMBRE!S33+DICIEMBRE!S33 -> 0 | T33: =JULIO!T33+AGOSTO!T33+SETIEMBRE!T33+OCTUBRE!T33+NOVIEMBRE!T33+DICIEMBRE!T33 -> 0 | U33: =JULIO!U33+AGOSTO!U33+SETIEMBRE!U33+OCTUBRE!U33+NOVIEMBRE!U33+DICIEMBRE!U33 -> 0 | V33: =JULIO!V33+AGOSTO!V33+SETIEMBRE!V33+OCTUBRE!V33+NOVIEMBRE!V33+DICIEMBRE!V33 -> 0 | W33: 0 | X33: 0
D34: LESION | E34: 0 | F34: 0 | G34: =JULIO!G34+AGOSTO!G34+SETIEMBRE!G34+OCTUBRE!G34+NOVIEMBRE!G34+DICIEMBRE!G34 -> 0 | H34: =JULIO!H34+AGOSTO!H34+SETIEMBRE!H34+OCTUBRE!H34+NOVIEMBRE!H34+DICIEMBRE!H34 -> 0 | I34: =JULIO!I34+AGOSTO!I34+SETIEMBRE!I34+OCTUBRE!I34+NOVIEMBRE!I34+DICIEMBRE!I34 -> 0 | J34: =JULIO!J34+AGOSTO!J34+SETIEMBRE!J34+OCTUBRE!J34+NOVIEMBRE!J34+DICIEMBRE!J34 -> 0 | K34: =JULIO!K34+AGOSTO!K34+SETIEMBRE!K34+OCTUBRE!K34+NOVIEMBRE!K34+DICIEMBRE!K34 -> 0 | L34: =JULIO!L34+AGOSTO!L34+SETIEMBRE!L34+OCTUBRE!L34+NOVIEMBRE!L34+DICIEMBRE!L34 -> 0 | M34: =JULIO!M34+AGOSTO!M34+SETIEMBRE!M34+OCTUBRE!M34+NOVIEMBRE!M34+DICIEMBRE!M34 -> 0 | N34: =JULIO!N34+AGOSTO!N34+SETIEMBRE!N34+OCTUBRE!N34+NOVIEMBRE!N34+DICIEMBRE!N34 -> 0 | O34: =JULIO!O34+AGOSTO!O34+SETIEMBRE!O34+OCTUBRE!O34+NOVIEMBRE!O34+DICIEMBRE!O34 -> 0 | P34: =JULIO!P34+AGOSTO!P34+SETIEMBRE!P34+OCTUBRE!P34+NOVIEMBRE!P34+DICIEMBRE!P34 -> 0 | Q34: =JULIO!Q34+AGOSTO!Q34+SETIEMBRE!Q34+OCTUBRE!Q34+NOVIEMBRE!Q34+DICIEMBRE!Q34 -> 0 | R34: =JULIO!R34+AGOSTO!R34+SETIEMBRE!R34+OCTUBRE!R34+NOVIEMBRE!R34+DICIEMBRE!R34 -> 0 | S34: =JULIO!S34+AGOSTO!S34+SETIEMBRE!S34+OCTUBRE!S34+NOVIEMBRE!S34+DICIEMBRE!S34 -> 0 | T34: =JULIO!T34+AGOSTO!T34+SETIEMBRE!T34+OCTUBRE!T34+NOVIEMBRE!T34+DICIEMBRE!T34 -> 0 | U34: =JULIO!U34+AGOSTO!U34+SETIEMBRE!U34+OCTUBRE!U34+NOVIEMBRE!U34+DICIEMBRE!U34 -> 0 | V34: =JULIO!V34+AGOSTO!V34+SETIEMBRE!V34+OCTUBRE!V34+NOVIEMBRE!V34+DICIEMBRE!V34 -> 0 | W34: 0 | X34: 0
D35: ROBO DE OBJETOS | E35: 0 | F35: 0 | G35: =JULIO!G35+AGOSTO!G35+SETIEMBRE!G35+OCTUBRE!G35+NOVIEMBRE!G35+DICIEMBRE!G35 -> 0 | H35: =JULIO!H35+AGOSTO!H35+SETIEMBRE!H35+OCTUBRE!H35+NOVIEMBRE!H35+DICIEMBRE!H35 -> 0 | I35: =JULIO!I35+AGOSTO!I35+SETIEMBRE!I35+OCTUBRE!I35+NOVIEMBRE!I35+DICIEMBRE!I35 -> 0 | J35: =JULIO!J35+AGOSTO!J35+SETIEMBRE!J35+OCTUBRE!J35+NOVIEMBRE!J35+DICIEMBRE!J35 -> 0 | K35: =JULIO!K35+AGOSTO!K35+SETIEMBRE!K35+OCTUBRE!K35+NOVIEMBRE!K35+DICIEMBRE!K35 -> 0 | L35: =JULIO!L35+AGOSTO!L35+SETIEMBRE!L35+OCTUBRE!L35+NOVIEMBRE!L35+DICIEMBRE!L35 -> 0 | M35: =JULIO!M35+AGOSTO!M35+SETIEMBRE!M35+OCTUBRE!M35+NOVIEMBRE!M35+DICIEMBRE!M35 -> 0 | N35: =JULIO!N35+AGOSTO!N35+SETIEMBRE!N35+OCTUBRE!N35+NOVIEMBRE!N35+DICIEMBRE!N35 -> 0 | O35: =JULIO!O35+AGOSTO!O35+SETIEMBRE!O35+OCTUBRE!O35+NOVIEMBRE!O35+DICIEMBRE!O35 -> 0 | P35: =JULIO!P35+AGOSTO!P35+SETIEMBRE!P35+OCTUBRE!P35+NOVIEMBRE!P35+DICIEMBRE!P35 -> 0 | Q35: =JULIO!Q35+AGOSTO!Q35+SETIEMBRE!Q35+OCTUBRE!Q35+NOVIEMBRE!Q35+DICIEMBRE!Q35 -> 0 | R35: =JULIO!R35+AGOSTO!R35+SETIEMBRE!R35+OCTUBRE!R35+NOVIEMBRE!R35+DICIEMBRE!R35 -> 0 | S35: =JULIO!S35+AGOSTO!S35+SETIEMBRE!S35+OCTUBRE!S35+NOVIEMBRE!S35+DICIEMBRE!S35 -> 0 | T35: =JULIO!T35+AGOSTO!T35+SETIEMBRE!T35+OCTUBRE!T35+NOVIEMBRE!T35+DICIEMBRE!T35 -> 0 | U35: =JULIO!U35+AGOSTO!U35+SETIEMBRE!U35+OCTUBRE!U35+NOVIEMBRE!U35+DICIEMBRE!U35 -> 0 | V35: =JULIO!V35+AGOSTO!V35+SETIEMBRE!V35+OCTUBRE!V35+NOVIEMBRE!V35+DICIEMBRE!V35 -> 0 | W35: 0 | X35: 0
D36: ROBO AGRAVADO DE OBJETOS | E36: 0 | F36: 0 | G36: =JULIO!G36+AGOSTO!G36+SETIEMBRE!G36+OCTUBRE!G36+NOVIEMBRE!G36+DICIEMBRE!G36 -> 0 | H36: =JULIO!H36+AGOSTO!H36+SETIEMBRE!H36+OCTUBRE!H36+NOVIEMBRE!H36+DICIEMBRE!H36 -> 0 | I36: =JULIO!I36+AGOSTO!I36+SETIEMBRE!I36+OCTUBRE!I36+NOVIEMBRE!I36+DICIEMBRE!I36 -> 0 | J36: =JULIO!J36+AGOSTO!J36+SETIEMBRE!J36+OCTUBRE!J36+NOVIEMBRE!J36+DICIEMBRE!J36 -> 0 | K36: =JULIO!K36+AGOSTO!K36+SETIEMBRE!K36+OCTUBRE!K36+NOVIEMBRE!K36+DICIEMBRE!K36 -> 0 | L36: =JULIO!L36+AGOSTO!L36+SETIEMBRE!L36+OCTUBRE!L36+NOVIEMBRE!L36+DICIEMBRE!L36 -> 0 | M36: =JULIO!M36+AGOSTO!M36+SETIEMBRE!M36+OCTUBRE!M36+NOVIEMBRE!M36+DICIEMBRE!M36 -> 0 | N36: =JULIO!N36+AGOSTO!N36+SETIEMBRE!N36+OCTUBRE!N36+NOVIEMBRE!N36+DICIEMBRE!N36 -> 0 | O36: =JULIO!O36+AGOSTO!O36+SETIEMBRE!O36+OCTUBRE!O36+NOVIEMBRE!O36+DICIEMBRE!O36 -> 0 | P36: =JULIO!P36+AGOSTO!P36+SETIEMBRE!P36+OCTUBRE!P36+NOVIEMBRE!P36+DICIEMBRE!P36 -> 0 | Q36: =JULIO!Q36+AGOSTO!Q36+SETIEMBRE!Q36+OCTUBRE!Q36+NOVIEMBRE!Q36+DICIEMBRE!Q36 -> 0 | R36: =JULIO!R36+AGOSTO!R36+SETIEMBRE!R36+OCTUBRE!R36+NOVIEMBRE!R36+DICIEMBRE!R36 -> 0 | S36: =JULIO!S36+AGOSTO!S36+SETIEMBRE!S36+OCTUBRE!S36+NOVIEMBRE!S36+DICIEMBRE!S36 -> 0 | T36: =JULIO!T36+AGOSTO!T36+SETIEMBRE!T36+OCTUBRE!T36+NOVIEMBRE!T36+DICIEMBRE!T36 -> 0 | U36: =JULIO!U36+AGOSTO!U36+SETIEMBRE!U36+OCTUBRE!U36+NOVIEMBRE!U36+DICIEMBRE!U36 -> 0 | V36: =JULIO!V36+AGOSTO!V36+SETIEMBRE!V36+OCTUBRE!V36+NOVIEMBRE!V36+DICIEMBRE!V36 -> 0 | W36: 0 | X36: 0
D37: ROBO DE VEHICULOS | E37: 0 | F37: 0 | G37: =JULIO!G37+AGOSTO!G37+SETIEMBRE!G37+OCTUBRE!G37+NOVIEMBRE!G37+DICIEMBRE!G37 -> 0 | H37: =JULIO!H37+AGOSTO!H37+SETIEMBRE!H37+OCTUBRE!H37+NOVIEMBRE!H37+DICIEMBRE!H37 -> 0 | I37: =JULIO!I37+AGOSTO!I37+SETIEMBRE!I37+OCTUBRE!I37+NOVIEMBRE!I37+DICIEMBRE!I37 -> 0 | J37: =JULIO!J37+AGOSTO!J37+SETIEMBRE!J37+OCTUBRE!J37+NOVIEMBRE!J37+DICIEMBRE!J37 -> 0 | K37: =JULIO!K37+AGOSTO!K37+SETIEMBRE!K37+OCTUBRE!K37+NOVIEMBRE!K37+DICIEMBRE!K37 -> 0 | L37: =JULIO!L37+AGOSTO!L37+SETIEMBRE!L37+OCTUBRE!L37+NOVIEMBRE!L37+DICIEMBRE!L37 -> 0 | M37: =JULIO!M37+AGOSTO!M37+SETIEMBRE!M37+OCTUBRE!M37+NOVIEMBRE!M37+DICIEMBRE!M37 -> 0 | N37: =JULIO!N37+AGOSTO!N37+SETIEMBRE!N37+OCTUBRE!N37+NOVIEMBRE!N37+DICIEMBRE!N37 -> 0 | O37: =JULIO!O37+AGOSTO!O37+SETIEMBRE!O37+OCTUBRE!O37+NOVIEMBRE!O37+DICIEMBRE!O37 -> 0 | P37: =JULIO!P37+AGOSTO!P37+SETIEMBRE!P37+OCTUBRE!P37+NOVIEMBRE!P37+DICIEMBRE!P37 -> 0 | Q37: =JULIO!Q37+AGOSTO!Q37+SETIEMBRE!Q37+OCTUBRE!Q37+NOVIEMBRE!Q37+DICIEMBRE!Q37 -> 0 | R37: =JULIO!R37+AGOSTO!R37+SETIEMBRE!R37+OCTUBRE!R37+NOVIEMBRE!R37+DICIEMBRE!R37 -> 0 | S37: =JULIO!S37+AGOSTO!S37+SETIEMBRE!S37+OCTUBRE!S37+NOVIEMBRE!S37+DICIEMBRE!S37 -> 0 | T37: =JULIO!T37+AGOSTO!T37+SETIEMBRE!T37+OCTUBRE!T37+NOVIEMBRE!T37+DICIEMBRE!T37 -> 0 | U37: =JULIO!U37+AGOSTO!U37+SETIEMBRE!U37+OCTUBRE!U37+NOVIEMBRE!U37+DICIEMBRE!U37 -> 0 | V37: =JULIO!V37+AGOSTO!V37+SETIEMBRE!V37+OCTUBRE!V37+NOVIEMBRE!V37+DICIEMBRE!V37 -> 0 | W37: 0 | X37: 0
D38: ROBO AGRAVADO DE VEHICULOS | E38: 0 | F38: 0 | G38: =JULIO!G38+AGOSTO!G38+SETIEMBRE!G38+OCTUBRE!G38+NOVIEMBRE!G38+DICIEMBRE!G38 -> 0 | H38: =JULIO!H38+AGOSTO!H38+SETIEMBRE!H38+OCTUBRE!H38+NOVIEMBRE!H38+DICIEMBRE!H38 -> 0 | I38: =JULIO!I38+AGOSTO!I38+SETIEMBRE!I38+OCTUBRE!I38+NOVIEMBRE!I38+DICIEMBRE!I38 -> 0 | J38: =JULIO!J38+AGOSTO!J38+SETIEMBRE!J38+OCTUBRE!J38+NOVIEMBRE!J38+DICIEMBRE!J38 -> 0 | K38: =JULIO!K38+AGOSTO!K38+SETIEMBRE!K38+OCTUBRE!K38+NOVIEMBRE!K38+DICIEMBRE!K38 -> 0 | L38: =JULIO!L38+AGOSTO!L38+SETIEMBRE!L38+OCTUBRE!L38+NOVIEMBRE!L38+DICIEMBRE!L38 -> 0 | M38: =JULIO!M38+AGOSTO!M38+SETIEMBRE!M38+OCTUBRE!M38+NOVIEMBRE!M38+DICIEMBRE!M38 -> 0 | N38: =JULIO!N38+AGOSTO!N38+SETIEMBRE!N38+OCTUBRE!N38+NOVIEMBRE!N38+DICIEMBRE!N38 -> 0 | O38: =JULIO!O38+AGOSTO!O38+SETIEMBRE!O38+OCTUBRE!O38+NOVIEMBRE!O38+DICIEMBRE!O38 -> 0 | P38: =JULIO!P38+AGOSTO!P38+SETIEMBRE!P38+OCTUBRE!P38+NOVIEMBRE!P38+DICIEMBRE!P38 -> 0 | Q38: =JULIO!Q38+AGOSTO!Q38+SETIEMBRE!Q38+OCTUBRE!Q38+NOVIEMBRE!Q38+DICIEMBRE!Q38 -> 0 | R38: =JULIO!R38+AGOSTO!R38+SETIEMBRE!R38+OCTUBRE!R38+NOVIEMBRE!R38+DICIEMBRE!R38 -> 0 | S38: =JULIO!S38+AGOSTO!S38+SETIEMBRE!S38+OCTUBRE!S38+NOVIEMBRE!S38+DICIEMBRE!S38 -> 0 | T38: =JULIO!T38+AGOSTO!T38+SETIEMBRE!T38+OCTUBRE!T38+NOVIEMBRE!T38+DICIEMBRE!T38 -> 0 | U38: =JULIO!U38+AGOSTO!U38+SETIEMBRE!U38+OCTUBRE!U38+NOVIEMBRE!U38+DICIEMBRE!U38 -> 0 | V38: =JULIO!V38+AGOSTO!V38+SETIEMBRE!V38+OCTUBRE!V38+NOVIEMBRE!V38+DICIEMBRE!V38 -> 0 | W38: 0 | X38: 0
D39: ROBO DE MOTOCICLETAS | E39: 0 | F39: 0 | G39: =JULIO!G39+AGOSTO!G39+SETIEMBRE!G39+OCTUBRE!G39+NOVIEMBRE!G39+DICIEMBRE!G39 -> 0 | H39: =JULIO!H39+AGOSTO!H39+SETIEMBRE!H39+OCTUBRE!H39+NOVIEMBRE!H39+DICIEMBRE!H39 -> 0 | I39: =JULIO!I39+AGOSTO!I39+SETIEMBRE!I39+OCTUBRE!I39+NOVIEMBRE!I39+DICIEMBRE!I39 -> 0 | J39: =JULIO!J39+AGOSTO!J39+SETIEMBRE!J39+OCTUBRE!J39+NOVIEMBRE!J39+DICIEMBRE!J39 -> 0 | K39: =JULIO!K39+AGOSTO!K39+SETIEMBRE!K39+OCTUBRE!K39+NOVIEMBRE!K39+DICIEMBRE!K39 -> 0 | L39: =JULIO!L39+AGOSTO!L39+SETIEMBRE!L39+OCTUBRE!L39+NOVIEMBRE!L39+DICIEMBRE!L39 -> 0 | M39: =JULIO!M39+AGOSTO!M39+SETIEMBRE!M39+OCTUBRE!M39+NOVIEMBRE!M39+DICIEMBRE!M39 -> 0 | N39: =JULIO!N39+AGOSTO!N39+SETIEMBRE!N39+OCTUBRE!N39+NOVIEMBRE!N39+DICIEMBRE!N39 -> 0 | O39: =JULIO!O39+AGOSTO!O39+SETIEMBRE!O39+OCTUBRE!O39+NOVIEMBRE!O39+DICIEMBRE!O39 -> 0 | P39: =JULIO!P39+AGOSTO!P39+SETIEMBRE!P39+OCTUBRE!P39+NOVIEMBRE!P39+DICIEMBRE!P39 -> 0 | Q39: =JULIO!Q39+AGOSTO!Q39+SETIEMBRE!Q39+OCTUBRE!Q39+NOVIEMBRE!Q39+DICIEMBRE!Q39 -> 0 | R39: =JULIO!R39+AGOSTO!R39+SETIEMBRE!R39+OCTUBRE!R39+NOVIEMBRE!R39+DICIEMBRE!R39 -> 0 | S39: =JULIO!S39+AGOSTO!S39+SETIEMBRE!S39+OCTUBRE!S39+NOVIEMBRE!S39+DICIEMBRE!S39 -> 0 | T39: =JULIO!T39+AGOSTO!T39+SETIEMBRE!T39+OCTUBRE!T39+NOVIEMBRE!T39+DICIEMBRE!T39 -> 0 | U39: =JULIO!U39+AGOSTO!U39+SETIEMBRE!U39+OCTUBRE!U39+NOVIEMBRE!U39+DICIEMBRE!U39 -> 0 | V39: =JULIO!V39+AGOSTO!V39+SETIEMBRE!V39+OCTUBRE!V39+NOVIEMBRE!V39+DICIEMBRE!V39 -> 0 | W39: 0 | X39: =(F39+H39+J39+L39+N39+P39+R39+T39+V39) -> 0
D40: ROBO AGRAVADO DE MOTOCICLETAS | E40: =(Y20) -> 0 | F40: =(Z20) -> 0 | G40: =JULIO!G40+AGOSTO!G40+SETIEMBRE!G40+OCTUBRE!G40+NOVIEMBRE!G40+DICIEMBRE!G40 -> 0 | H40: =JULIO!H40+AGOSTO!H40+SETIEMBRE!H40+OCTUBRE!H40+NOVIEMBRE!H40+DICIEMBRE!H40 -> 0 | I40: =JULIO!I40+AGOSTO!I40+SETIEMBRE!I40+OCTUBRE!I40+NOVIEMBRE!I40+DICIEMBRE!I40 -> 0 | J40: =JULIO!J40+AGOSTO!J40+SETIEMBRE!J40+OCTUBRE!J40+NOVIEMBRE!J40+DICIEMBRE!J40 -> 0 | K40: =JULIO!K40+AGOSTO!K40+SETIEMBRE!K40+OCTUBRE!K40+NOVIEMBRE!K40+DICIEMBRE!K40 -> 0 | L40: =JULIO!L40+AGOSTO!L40+SETIEMBRE!L40+OCTUBRE!L40+NOVIEMBRE!L40+DICIEMBRE!L40 -> 0 | M40: =JULIO!M40+AGOSTO!M40+SETIEMBRE!M40+OCTUBRE!M40+NOVIEMBRE!M40+DICIEMBRE!M40 -> 0 | N40: =JULIO!N40+AGOSTO!N40+SETIEMBRE!N40+OCTUBRE!N40+NOVIEMBRE!N40+DICIEMBRE!N40 -> 0 | O40: =JULIO!O40+AGOSTO!O40+SETIEMBRE!O40+OCTUBRE!O40+NOVIEMBRE!O40+DICIEMBRE!O40 -> 0 | P40: =JULIO!P40+AGOSTO!P40+SETIEMBRE!P40+OCTUBRE!P40+NOVIEMBRE!P40+DICIEMBRE!P40 -> 0 | Q40: =JULIO!Q40+AGOSTO!Q40+SETIEMBRE!Q40+OCTUBRE!Q40+NOVIEMBRE!Q40+DICIEMBRE!Q40 -> 0 | R40: =JULIO!R40+AGOSTO!R40+SETIEMBRE!R40+OCTUBRE!R40+NOVIEMBRE!R40+DICIEMBRE!R40 -> 0 | S40: =JULIO!S40+AGOSTO!S40+SETIEMBRE!S40+OCTUBRE!S40+NOVIEMBRE!S40+DICIEMBRE!S40 -> 0 | T40: =JULIO!T40+AGOSTO!T40+SETIEMBRE!T40+OCTUBRE!T40+NOVIEMBRE!T40+DICIEMBRE!T40 -> 0 | U40: =JULIO!U40+AGOSTO!U40+SETIEMBRE!U40+OCTUBRE!U40+NOVIEMBRE!U40+DICIEMBRE!U40 -> 0 | V40: =JULIO!V40+AGOSTO!V40+SETIEMBRE!V40+OCTUBRE!V40+NOVIEMBRE!V40+DICIEMBRE!V40 -> 0 | W40: 0 | X40: 0
D41: TOTAL | E41: =+(E21+G21+I21+K21+M21+O21+Q21+S21+U21+W21) -> 0 | F41: =+(F21+H21+J21+L21+N21+P21+R21+T21+V21+X21) -> 0 | G41: =SUM(G27:G40) -> 0 | H41: =SUM(H27:H40) -> 0 | I41: 0 | J41: 0 | K41: 0 | L41: 0 | M41: 0 | N41: 0 | O41: 0 | P41: 0 | Q41: 0 | R41: 0 | S41: 0 | T41: 0 | U41: 0 | V41: 0 | W41: =SUM(W27:W40) -> 0 | X41: =SUM(X27:X40) -> 0
D42: PORCENTAJE DE ACLARADOS | E42: =+(F41/E41) ->  | G42: =+(H41/G41) ->  | I42: =+(J41/I41) ->  | K42: =+(L41/K41) ->  | M42: =+(N41/M41) ->  | O42: =+(P41/O41) ->  | Q42: =+(R41/Q41) ->  | S42: =+(T41/S41) ->  | U42: =+(V41/U41) ->  | W42: =+(X41/W41) -> 
D44: FUENTE: ELABORADO EN EL DPTO. DE ESTADISTICA EN BASE A DATOS PROPORCIONADOS POR LA DIRECCION GENERAL. DE PREVENCION Y SEGURIDAD.

Sheet GRAF 13
B1: INFORME ESTADISTICO MENSUAL 3 | Q1: POLICIA NACIONAL - DPTO. DE ESTADISTICA
D5: HECHOS PUNIBLES MAS RESALTANTES, DENUNCIADOS EN TODO EL PAÍS. 2DO SEMESTRE 2020
T7: DENUNCIADOS
S8: ABIGEATO
S9: COACCION SEXUAL
S10: HOMICIDIO CULPOSO EN ACC DE TTO.
S11: HOMICIDIO DOLOSO
S12: HURTO
S13: HURTO AGRAVADO
S14: LESION CULPOSA EN ACC. DE TTO.
S15: LESION
S16: ROBO DE OBJETOS
S17: ROBO AGRAVADO DE OBJETOS
S18: ROBO DE VEHICULOS
S19: ROBO AGRAVADO DE VEHICULOS
S20: ROBO DE MOTOCICLETAS
S21: ROBO AGRAVADO DE MOTOCICLETAS
T22: =SUM(T8:T21) -> 0
D41: FUENTE: ELABORADO EN EL DPTO. DE ESTADISTICA EN BASE A DATOS PROPORCIONADOS POR LA DIRECCION GENERAL PREVENCION Y SEGURIDAD.

Sheet ANUAL
B1: INFORME ESTADISTICO MENSUAL 4 | AB1: POLICIA NACIONAL - DPTO. DE ESTADISTICA
D2: HECHOS PUNIBLES MAS RESALTANTES,DENUNCIADOS Y ACLARADOS EN TODO EL PAÍS POR ZONAS POLICIALES. ANUAL 2020
D4: HECHOS PUNIBLES | E4: DIRECCIONES POLICIALES | Y4: SUB TOTAL
E5: Asuncion | G5: Central | I5: Cordillera | K5: Amambay | M5: Concepcion | O5: Alto Py. | Q5: San Pedro | S5: Caaguazu | U5: Caazapa | W5: Guaira
E6: D | F6: A | G6: D | H6: A | I6: D | J6: A | K6: D | L6: A | M6: D | N6: A | O6: D | P6: A | Q6: D | R6: A | S6: D | T6: A | U6: D | V6: A | W6: D | X6: A | Y6: D | Z6: A
D7: ABIGEATO | E7: ='1ER SEMESTRE'!D7+'2DO SEMESTRE'!E7 -> 0 | F7: ='1ER SEMESTRE'!E7+'2DO SEMESTRE'!F7 -> 0 | G7: ='1ER SEMESTRE'!F7+'2DO SEMESTRE'!G7 -> 19 | H7: ='1ER SEMESTRE'!G7+'2DO SEMESTRE'!H7 -> 1 | I7: ='1ER SEMESTRE'!H7+'2DO SEMESTRE'!I7 -> 44 | J7: ='1ER SEMESTRE'!I7+'2DO SEMESTRE'!J7 -> 5 | K7: ='1ER SEMESTRE'!J7+'2DO SEMESTRE'!K7 -> 5 | L7: ='1ER SEMESTRE'!K7+'2DO SEMESTRE'!L7 -> 2 | M7: ='1ER SEMESTRE'!L7+'2DO SEMESTRE'!M7 -> 8 | N7: ='1ER SEMESTRE'!M7+'2DO SEMESTRE'!N7 -> 4 | O7: ='1ER SEMESTRE'!N7+'2DO SEMESTRE'!O7 -> 4 | P7: ='1ER SEMESTRE'!O7+'2DO SEMESTRE'!P7 -> 0 | Q7: ='1ER SEMESTRE'!P7+'2DO SEMESTRE'!Q7 -> 33 | R7: ='1ER SEMESTRE'!Q7+'2DO SEMESTRE'!R7 -> 7 | S7: ='1ER SEMESTRE'!R7+'2DO SEMESTRE'!S7 -> 30 | T7: ='1ER SEMESTRE'!S7+'2DO SEMESTRE'!T7 -> 5 | U7: ='1ER SEMESTRE'!T7+'2DO SEMESTRE'!U7 -> 30 | V7: ='1ER SEMESTRE'!U7+'2DO SEMESTRE'!V7 -> 5 | W7: ='1ER SEMESTRE'!V7+'2DO SEMESTRE'!W7 -> 26 | X7: ='1ER SEMESTRE'!W7+'2DO SEMESTRE'!X7 -> 6 | Y7: =(E7+G7+I7+K7+M7+O7+Q7+S7+U7+W7) -> 199 | Z7: 35
D8: COACCION SEXUAL | E8: ='1ER SEMESTRE'!D8+'2DO SEMESTRE'!E8 -> 20 | F8: ='1ER SEMESTRE'!E8+'2DO SEMESTRE'!F8 -> 13 | G8: ='1ER SEMESTRE'!F8+'2DO SEMESTRE'!G8 -> 81 | H8: ='1ER SEMESTRE'!G8+'2DO SEMESTRE'!H8 -> 63 | I8: ='1ER SEMESTRE'!H8+'2DO SEMESTRE'!I8 -> 19 | J8: ='1ER SEMESTRE'!I8+'2DO SEMESTRE'!J8 -> 8 | K8: ='1ER SEMESTRE'!J8+'2DO SEMESTRE'!K8 -> 12 | L8: ='1ER SEMESTRE'!K8+'2DO SEMESTRE'!L8 -> 7 | M8: ='1ER SEMESTRE'!L8+'2DO SEMESTRE'!M8 -> 8 | N8: ='1ER SEMESTRE'!M8+'2DO SEMESTRE'!N8 -> 6 | O8: ='1ER SEMESTRE'!N8+'2DO SEMESTRE'!O8 -> 0 | P8: ='1ER SEMESTRE'!O8+'2DO SEMESTRE'!P8 -> 0 | Q8: ='1ER SEMESTRE'!P8+'2DO SEMESTRE'!Q8 -> 12 | R8: ='1ER SEMESTRE'!Q8+'2DO SEMESTRE'!R8 -> 6 | S8: ='1ER SEMESTRE'!R8+'2DO SEMESTRE'!S8 -> 12 | T8: ='1ER SEMESTRE'!S8+'2DO SEMESTRE'!T8 -> 4 | U8: ='1ER SEMESTRE'!T8+'2DO SEMESTRE'!U8 -> 8 | V8: ='1ER SEMESTRE'!U8+'2DO SEMESTRE'!V8 -> 4 | W8: ='1ER SEMESTRE'!V8+'2DO SEMESTRE'!W8 -> 6 | X8: ='1ER SEMESTRE'!W8+'2DO SEMESTRE'!X8 -> 3 | Y8: 178 | Z8: 114
D9: HOMICIDIO CULPOSO EN ACC DE TTO. | E9: ='1ER SEMESTRE'!D9+'2DO SEMESTRE'!E9 -> 13 | F9: ='1ER SEMESTRE'!E9+'2DO SEMESTRE'!F9 -> 13 | G9: ='1ER SEMESTRE'!F9+'2DO SEMESTRE'!G9 -> 77 | H9: ='1ER SEMESTRE'!G9+'2DO SEMESTRE'!H9 -> 69 | I9: ='1ER SEMESTRE'!H9+'2DO SEMESTRE'!I9 -> 12 | J9: ='1ER SEMESTRE'!I9+'2DO SEMESTRE'!J9 -> 10 | K9: ='1ER SEMESTRE'!J9+'2DO SEMESTRE'!K9 -> 14 | L9: ='1ER SEMESTRE'!K9+'2DO SEMESTRE'!L9 -> 12 | M9: ='1ER SEMESTRE'!L9+'2DO SEMESTRE'!M9 -> 18 | N9: ='1ER SEMESTRE'!M9+'2DO SEMESTRE'!N9 -> 17 | O9: ='1ER SEMESTRE'!N9+'2DO SEMESTRE'!O9 -> 1 | P9: ='1ER SEMESTRE'!O9+'2DO SEMESTRE'!P9 -> 1 | Q9: ='1ER SEMESTRE'!P9+'2DO SEMESTRE'!Q9 -> 43 | R9: ='1ER SEMESTRE'!Q9+'2DO SEMESTRE'!R9 -> 39 | S9: ='1ER SEMESTRE'!R9+'2DO SEMESTRE'!S9 -> 36 | T9: ='1ER SEMESTRE'!S9+'2DO SEMESTRE'!T9 -> 34 | U9: ='1ER SEMESTRE'!T9+'2DO SEMESTRE'!U9 -> 8 | V9: ='1ER SEMESTRE'!U9+'2DO SEMESTRE'!V9 -> 7 | W9: ='1ER SEMESTRE'!V9+'2DO SEMESTRE'!W9 -> 12 | X9: ='1ER SEMESTRE'!W9+'2DO SEMESTRE'!X9 -> 10 | Y9: 234 | Z9: 212
D10: HOMICIDIO DOLOSO | E10: ='1ER SEMESTRE'!D10+'2DO SEMESTRE'!E10 -> 15 | F10: ='1ER SEMESTRE'!E10+'2DO SEMESTRE'!F10 -> 7 | G10: ='1ER SEMESTRE'!F10+'2DO SEMESTRE'!G10 -> 26 | H10: ='1ER SEMESTRE'!G10+'2DO SEMESTRE'!H10 -> 17 | I10: ='1ER SEMESTRE'!H10+'2DO SEMESTRE'!I10 -> 1 | J10: ='1ER SEMESTRE'!I10+'2DO SEMESTRE'!J10 -> 0 | K10: ='1ER SEMESTRE'!J10+'2DO SEMESTRE'!K10 -> 47 | L10: ='1ER SEMESTRE'!K10+'2DO SEMESTRE'!L10 -> 8 | M10: ='1ER SEMESTRE'!L10+'2DO SEMESTRE'!M10 -> 18 | N10: ='1ER SEMESTRE'!M10+'2DO SEMESTRE'!N10 -> 8 | O10: ='1ER SEMESTRE'!N10+'2DO SEMESTRE'!O10 -> 5 | P10: ='1ER SEMESTRE'!O10+'2DO SEMESTRE'!P10 -> 1 | Q10: ='1ER SEMESTRE'!P10+'2DO SEMESTRE'!Q10 -> 7 | R10: ='1ER SEMESTRE'!Q10+'2DO SEMESTRE'!R10 -> 3 | S10: ='1ER SEMESTRE'!R10+'2DO SEMESTRE'!S10 -> 4 | T10: ='1ER SEMESTRE'!S10+'2DO SEMESTRE'!T10 -> 2 | U10: ='1ER SEMESTRE'!T10+'2DO SEMESTRE'!U10 -> 8 | V10: ='1ER SEMESTRE'!U10+'2DO SEMESTRE'!V10 -> 2 | W10: ='1ER SEMESTRE'!V10+'2DO SEMESTRE'!W10 -> 9 | X10: ='1ER SEMESTRE'!W10+'2DO SEMESTRE'!X10 -> 2 | Y10: 140 | Z10: 50
D11: HURTO | E11: ='1ER SEMESTRE'!D11+'2DO SEMESTRE'!E11 -> 101 | F11: ='1ER SEMESTRE'!E11+'2DO SEMESTRE'!F11 -> 57 | G11: ='1ER SEMESTRE'!F11+'2DO SEMESTRE'!G11 -> 245 | H11: ='1ER SEMESTRE'!G11+'2DO SEMESTRE'!H11 -> 135 | I11: ='1ER SEMESTRE'!H11+'2DO SEMESTRE'!I11 -> 42 | J11: ='1ER SEMESTRE'!I11+'2DO SEMESTRE'!J11 -> 12 | K11: ='1ER SEMESTRE'!J11+'2DO SEMESTRE'!K11 -> 15 | L11: ='1ER SEMESTRE'!K11+'2DO SEMESTRE'!L11 -> 7 | M11: ='1ER SEMESTRE'!L11+'2DO SEMESTRE'!M11 -> 9 | N11: ='1ER SEMESTRE'!M11+'2DO SEMESTRE'!N11 -> 4 | O11: ='1ER SEMESTRE'!N11+'2DO SEMESTRE'!O11 -> 2 | P11: ='1ER SEMESTRE'!O11+'2DO SEMESTRE'!P11 -> 0 | Q11: ='1ER SEMESTRE'!P11+'2DO SEMESTRE'!Q11 -> 12 | R11: ='1ER SEMESTRE'!Q11+'2DO SEMESTRE'!R11 -> 8 | S11: ='1ER SEMESTRE'!R11+'2DO SEMESTRE'!S11 -> 34 | T11: ='1ER SEMESTRE'!S11+'2DO SEMESTRE'!T11 -> 15 | U11: ='1ER SEMESTRE'!T11+'2DO SEMESTRE'!U11 -> 7 | V11: ='1ER SEMESTRE'!U11+'2DO SEMESTRE'!V11 -> 1 | W11: ='1ER SEMESTRE'!V11+'2DO SEMESTRE'!W11 -> 20 | X11: ='1ER SEMESTRE'!W11+'2DO SEMESTRE'!X11 -> 13 | Y11: =(E11+G11+I11+K11+M11+O11+Q11+S11+U11+W11) -> 487 | Z11: =(F11+H11+J11+L11+N11+P11+R11+T11+V11+X11) -> 252
D12: HURTO AGRAVADO | E12: ='1ER SEMESTRE'!D12+'2DO SEMESTRE'!E12 -> 78 | F12: ='1ER SEMESTRE'!E12+'2DO SEMESTRE'!F12 -> 29 | G12: ='1ER SEMESTRE'!F12+'2DO SEMESTRE'!G12 -> 188 | H12: ='1ER SEMESTRE'!G12+'2DO SEMESTRE'!H12 -> 70 | I12: ='1ER SEMESTRE'!H12+'2DO SEMESTRE'!I12 -> 34 | J12: ='1ER SEMESTRE'!I12+'2DO SEMESTRE'!J12 -> 7 | K12: ='1ER SEMESTRE'!J12+'2DO SEMESTRE'!K12 -> 16 | L12: ='1ER SEMESTRE'!K12+'2DO SEMESTRE'!L12 -> 5 | M12: ='1ER SEMESTRE'!L12+'2DO SEMESTRE'!M12 -> 18 | N12: ='1ER SEMESTRE'!M12+'2DO SEMESTRE'!N12 -> 4 | O12: ='1ER SEMESTRE'!N12+'2DO SEMESTRE'!O12 -> 0 | P12: ='1ER SEMESTRE'!O12+'2DO SEMESTRE'!P12 -> 0 | Q12: ='1ER SEMESTRE'!P12+'2DO SEMESTRE'!Q12 -> 17 | R12: ='1ER SEMESTRE'!Q12+'2DO SEMESTRE'!R12 -> 6 | S12: ='1ER SEMESTRE'!R12+'2DO SEMESTRE'!S12 -> 31 | T12: ='1ER SEMESTRE'!S12+'2DO SEMESTRE'!T12 -> 5 | U12: ='1ER SEMESTRE'!T12+'2DO SEMESTRE'!U12 -> 17 | V12: ='1ER SEMESTRE'!U12+'2DO SEMESTRE'!V12 -> 1 | W12: ='1ER SEMESTRE'!V12+'2DO SEMESTRE'!W12 -> 15 | X12: ='1ER SEMESTRE'!W12+'2DO SEMESTRE'!X12 -> 8 | Y12: =(E12+G12+I12+K12+M12+O12+Q12+S12+U12+W12) -> 414 | Z12: =(F12+H12+J12+L12+N12+P12+R12+T12+V12+X12) -> 135
D13: LESION CULPOSA EN ACC. DE TTO. | E13: ='1ER SEMESTRE'!D13+'2DO SEMESTRE'!E13 -> 80 | F13: ='1ER SEMESTRE'!E13+'2DO SEMESTRE'!F13 -> 79 | G13: ='1ER SEMESTRE'!F13+'2DO SEMESTRE'!G13 -> 285 | H13: ='1ER SEMESTRE'!G13+'2DO SEMESTRE'!H13 -> 273 | I13: ='1ER SEMESTRE'!H13+'2DO SEMESTRE'!I13 -> 81 | J13: ='1ER SEMESTRE'!I13+'2DO SEMESTRE'!J13 -> 74 | K13: ='1ER SEMESTRE'!J13+'2DO SEMESTRE'!K13 -> 47 | L13: ='1ER SEMESTRE'!K13+'2DO SEMESTRE'!L13 -> 40 | M13: ='1ER SEMESTRE'!L13+'2DO SEMESTRE'!M13 -> 42 | N13: ='1ER SEMESTRE'!M13+'2DO SEMESTRE'!N13 -> 37 | O13: ='1ER SEMESTRE'!N13+'2DO SEMESTRE'!O13 -> 0 | P13: ='1ER SEMESTRE'!O13+'2DO SEMESTRE'!P13 -> 0 | Q13: ='1ER SEMESTRE'!P13+'2DO SEMESTRE'!Q13 -> 65 | R13: ='1ER SEMESTRE'!Q13+'2DO SEMESTRE'!R13 -> 61 | S13: ='1ER SEMESTRE'!R13+'2DO SEMESTRE'!S13 -> 148 | T13: ='1ER SEMESTRE'!S13+'2DO SEMESTRE'!T13 -> 133 | U13: ='1ER SEMESTRE'!T13+'2DO SEMESTRE'!U13 -> 24 | V13: ='1ER SEMESTRE'!U13+'2DO SEMESTRE'!V13 -> 23 | W13: ='1ER SEMESTRE'!V13+'2DO SEMESTRE'!W13 -> 36 | X13: ='1ER SEMESTRE'!W13+'2DO SEMESTRE'!X13 -> 30 | Y13: 808 | Z13: 750
D14: LESION | E14: ='1ER SEMESTRE'!D14+'2DO SEMESTRE'!E14 -> 83 | F14: ='1ER SEMESTRE'!E14+'2DO SEMESTRE'!F14 -> 54 | G14: ='1ER SEMESTRE'!F14+'2DO SEMESTRE'!G14 -> 211 | H14: ='1ER SEMESTRE'!G14+'2DO SEMESTRE'!H14 -> 94 | I14: ='1ER SEMESTRE'!H14+'2DO SEMESTRE'!I14 -> 23 | J14: ='1ER SEMESTRE'!I14+'2DO SEMESTRE'!J14 -> 15 | K14: ='1ER SEMESTRE'!J14+'2DO SEMESTRE'!K14 -> 62 | L14: ='1ER SEMESTRE'!K14+'2DO SEMESTRE'!L14 -> 19 | M14: ='1ER SEMESTRE'!L14+'2DO SEMESTRE'!M14 -> 39 | N14: ='1ER SEMESTRE'!M14+'2DO SEMESTRE'!N14 -> 22 | O14: ='1ER SEMESTRE'!N14+'2DO SEMESTRE'!O14 -> 6 | P14: ='1ER SEMESTRE'!O14+'2DO SEMESTRE'!P14 -> 2 | Q14: ='1ER SEMESTRE'!P14+'2DO SEMESTRE'!Q14 -> 33 | R14: ='1ER SEMESTRE'!Q14+'2DO SEMESTRE'!R14 -> 10 | S14: ='1ER SEMESTRE'!R14+'2DO SEMESTRE'!S14 -> 47 | T14: ='1ER SEMESTRE'!S14+'2DO SEMESTRE'!T14 -> 26 | U14: ='1ER SEMESTRE'!T14+'2DO SEMESTRE'!U14 -> 12 | V14: ='1ER SEMESTRE'!U14+'2DO SEMESTRE'!V14 -> 5 | W14: ='1ER SEMESTRE'!V14+'2DO SEMESTRE'!W14 -> 10 | X14: ='1ER SEMESTRE'!W14+'2DO SEMESTRE'!X14 -> 6 | Y14: 526 | Z14: 253
D15: ROBO DE OBJETOS | E15: ='1ER SEMESTRE'!D15+'2DO SEMESTRE'!E15 -> 49 | F15: ='1ER SEMESTRE'!E15+'2DO SEMESTRE'!F15 -> 32 | G15: ='1ER SEMESTRE'!F15+'2DO SEMESTRE'!G15 -> 86 | H15: ='1ER SEMESTRE'!G15+'2DO SEMESTRE'!H15 -> 48 | I15: ='1ER SEMESTRE'!H15+'2DO SEMESTRE'!I15 -> 8 | J15: ='1ER SEMESTRE'!I15+'2DO SEMESTRE'!J15 -> 3 | K15: ='1ER SEMESTRE'!J15+'2DO SEMESTRE'!K15 -> 6 | L15: ='1ER SEMESTRE'!K15+'2DO SEMESTRE'!L15 -> 1 | M15: ='1ER SEMESTRE'!L15+'2DO SEMESTRE'!M15 -> 13 | N15: ='1ER SEMESTRE'!M15+'2DO SEMESTRE'!N15 -> 1 | O15: ='1ER SEMESTRE'!N15+'2DO SEMESTRE'!O15 -> 0 | P15: ='1ER SEMESTRE'!O15+'2DO SEMESTRE'!P15 -> 0 | Q15: ='1ER SEMESTRE'!P15+'2DO SEMESTRE'!Q15 -> 2 | R15: ='1ER SEMESTRE'!Q15+'2DO SEMESTRE'!R15 -> 2 | S15: ='1ER SEMESTRE'!R15+'2DO SEMESTRE'!S15 -> 3 | T15: ='1ER SEMESTRE'!S15+'2DO SEMESTRE'!T15 -> 2 | U15: ='1ER SEMESTRE'!T15+'2DO SEMESTRE'!U15 -> 0 | V15: ='1ER SEMESTRE'!U15+'2DO SEMESTRE'!V15 -> 0 | W15: ='1ER SEMESTRE'!V15+'2DO SEMESTRE'!W15 -> 0 | X15: ='1ER SEMESTRE'!W15+'2DO SEMESTRE'!X15 -> 0 | Y15: 167 | Z15: 89
D16: ROBO AGRAVADO DE OBJETOS | E16: ='1ER SEMESTRE'!D16+'2DO SEMESTRE'!E16 -> 50 | F16: ='1ER SEMESTRE'!E16+'2DO SEMESTRE'!F16 -> 13 | G16: ='1ER SEMESTRE'!F16+'2DO SEMESTRE'!G16 -> 263 | H16: ='1ER SEMESTRE'!G16+'2DO SEMESTRE'!H16 -> 53 | I16: ='1ER SEMESTRE'!H16+'2DO SEMESTRE'!I16 -> 15 | J16: ='1ER SEMESTRE'!I16+'2DO SEMESTRE'!J16 -> 1 | K16: ='1ER SEMESTRE'!J16+'2DO SEMESTRE'!K16 -> 20 | L16: ='1ER SEMESTRE'!K16+'2DO SEMESTRE'!L16 -> 3 | M16: ='1ER SEMESTRE'!L16+'2DO SEMESTRE'!M16 -> 25 | N16: ='1ER SEMESTRE'!M16+'2DO SEMESTRE'!N16 -> 3 | O16: ='1ER SEMESTRE'!N16+'2DO SEMESTRE'!O16 -> 0 | P16: ='1ER SEMESTRE'!O16+'2DO SEMESTRE'!P16 -> 0 | Q16: ='1ER SEMESTRE'!P16+'2DO SEMESTRE'!Q16 -> 30 | R16: ='1ER SEMESTRE'!Q16+'2DO SEMESTRE'!R16 -> 3 | S16: ='1ER SEMESTRE'!R16+'2DO SEMESTRE'!S16 -> 32 | T16: ='1ER SEMESTRE'!S16+'2DO SEMESTRE'!T16 -> 1 | U16: ='1ER SEMESTRE'!T16+'2DO SEMESTRE'!U16 -> 20 | V16: ='1ER SEMESTRE'!U16+'2DO SEMESTRE'!V16 -> 0 | W16: ='1ER SEMESTRE'!V16+'2DO SEMESTRE'!W16 -> 12 | X16: ='1ER SEMESTRE'!W16+'2DO SEMESTRE'!X16 -> 0 | Y16: 467 | Z16: 77
D17: ROBO DE VEHICULOS | E17: ='1ER SEMESTRE'!D17+'2DO SEMESTRE'!E17 -> 117 | F17: ='1ER SEMESTRE'!E17+'2DO SEMESTRE'!F17 -> 2 | G17: ='1ER SEMESTRE'!F17+'2DO SEMESTRE'!G17 -> 125 | H17: ='1ER SEMESTRE'!G17+'2DO SEMESTRE'!H17 -> 2 | I17: ='1ER SEMESTRE'!H17+'2DO SEMESTRE'!I17 -> 2 | J17: ='1ER SEMESTRE'!I17+'2DO SEMESTRE'!J17 -> 0 | K17: ='1ER SEMESTRE'!J17+'2DO SEMESTRE'!K17 -> 1 | L17: ='1ER SEMESTRE'!K17+'2DO SEMESTRE'!L17 -> 0 | M17: ='1ER SEMESTRE'!L17+'2DO SEMESTRE'!M17 -> 1 | N17: ='1ER SEMESTRE'!M17+'2DO SEMESTRE'!N17 -> 0 | O17: ='1ER SEMESTRE'!N17+'2DO SEMESTRE'!O17 -> 0 | P17: ='1ER SEMESTRE'!O17+'2DO SEMESTRE'!P17 -> 0 | Q17: ='1ER SEMESTRE'!P17+'2DO SEMESTRE'!Q17 -> 3 | R17: ='1ER SEMESTRE'!Q17+'2DO SEMESTRE'!R17 -> 1 | S17: ='1ER SEMESTRE'!R17+'2DO SEMESTRE'!S17 -> 3 | T17: ='1ER SEMESTRE'!S17+'2DO SEMESTRE'!T17 -> 0 | U17: ='1ER SEMESTRE'!T17+'2DO SEMESTRE'!U17 -> 1 | V17: ='1ER SEMESTRE'!U17+'2DO SEMESTRE'!V17 -> 0 | W17: ='1ER SEMESTRE'!V17+'2DO SEMESTRE'!W17 -> 3 | X17: ='1ER SEMESTRE'!W17+'2DO SEMESTRE'!X17 -> 0 | Y17: 256 | Z17: 5
D18: ROBO AGRAVADO DE VEHICULOS | E18: ='1ER SEMESTRE'!D18+'2DO SEMESTRE'!E18 -> 0 | F18: ='1ER SEMESTRE'!E18+'2DO SEMESTRE'!F18 -> 0 | G18: ='1ER SEMESTRE'!F18+'2DO SEMESTRE'!G18 -> 10 | H18: ='1ER SEMESTRE'!G18+'2DO SEMESTRE'!H18 -> 0 | I18: ='1ER SEMESTRE'!H18+'2DO SEMESTRE'!I18 -> 2 | J18: ='1ER SEMESTRE'!I18+'2DO SEMESTRE'!J18 -> 0 | K18: ='1ER SEMESTRE'!J18+'2DO SEMESTRE'!K18 -> 1 | L18: ='1ER SEMESTRE'!K18+'2DO SEMESTRE'!L18 -> 0 | M18: ='1ER SEMESTRE'!L18+'2DO SEMESTRE'!M18 -> 0 | N18: ='1ER SEMESTRE'!M18+'2DO SEMESTRE'!N18 -> 0 | O18: ='1ER SEMESTRE'!N18+'2DO SEMESTRE'!O18 -> 0 | P18: ='1ER SEMESTRE'!O18+'2DO SEMESTRE'!P18 -> 0 | Q18: ='1ER SEMESTRE'!P18+'2DO SEMESTRE'!Q18 -> 2 | R18: ='1ER SEMESTRE'!Q18+'2DO SEMESTRE'!R18 -> 0 | S18: ='1ER SEMESTRE'!R18+'2DO SEMESTRE'!S18 -> 5 | T18: ='1ER SEMESTRE'!S18+'2DO SEMESTRE'!T18 -> 1 | U18: ='1ER SEMESTRE'!T18+'2DO SEMESTRE'!U18 -> 2 | V18: ='1ER SEMESTRE'!U18+'2DO SEMESTRE'!V18 -> 0 | W18: ='1ER SEMESTRE'!V18+'2DO SEMESTRE'!W18 -> 1 | X18: ='1ER SEMESTRE'!W18+'2DO SEMESTRE'!X18 -> 0 | Y18: 23 | Z18: 1
D19: ROBO DE MOTOCICLETAS | E19: ='1ER SEMESTRE'!D19+'2DO SEMESTRE'!E19 -> 290 | F19: ='1ER SEMESTRE'!E19+'2DO SEMESTRE'!F19 -> 18 | G19: ='1ER SEMESTRE'!F19+'2DO SEMESTRE'!G19 -> 474 | H19: ='1ER SEMESTRE'!G19+'2DO SEMESTRE'!H19 -> 23 | I19: ='1ER SEMESTRE'!H19+'2DO SEMESTRE'!I19 -> 44 | J19: ='1ER SEMESTRE'!I19+'2DO SEMESTRE'!J19 -> 7 | K19: ='1ER SEMESTRE'!J19+'2DO SEMESTRE'!K19 -> 11 | L19: ='1ER SEMESTRE'!K19+'2DO SEMESTRE'!L19 -> 4 | M19: ='1ER SEMESTRE'!L19+'2DO SEMESTRE'!M19 -> 34 | N19: ='1ER SEMESTRE'!M19+'2DO SEMESTRE'!N19 -> 1 | O19: ='1ER SEMESTRE'!N19+'2DO SEMESTRE'!O19 -> 4 | P19: ='1ER SEMESTRE'!O19+'2DO SEMESTRE'!P19 -> 1 | Q19: ='1ER SEMESTRE'!P19+'2DO SEMESTRE'!Q19 -> 9 | R19: ='1ER SEMESTRE'!Q19+'2DO SEMESTRE'!R19 -> 3 | S19: ='1ER SEMESTRE'!R19+'2DO SEMESTRE'!S19 -> 30 | T19: ='1ER SEMESTRE'!S19+'2DO SEMESTRE'!T19 -> 1 | U19: ='1ER SEMESTRE'!T19+'2DO SEMESTRE'!U19 -> 14 | V19: ='1ER SEMESTRE'!U19+'2DO SEMESTRE'!V19 -> 2 | W19: ='1ER SEMESTRE'!V19+'2DO SEMESTRE'!W19 -> 34 | X19: ='1ER SEMESTRE'!W19+'2DO SEMESTRE'!X19 -> 10 | Y19: 944 | Z19: 70
D20: ROBO AGRAVADO DE MOTOCICLETAS | E20: ='1ER SEMESTRE'!D20+'2DO SEMESTRE'!E20 -> 2 | F20: ='1ER SEMESTRE'!E20+'2DO SEMESTRE'!F20 -> 1 | G20: ='1ER SEMESTRE'!F20+'2DO SEMESTRE'!G20 -> 77 | H20: ='1ER SEMESTRE'!G20+'2DO SEMESTRE'!H20 -> 8 | I20: ='1ER SEMESTRE'!H20+'2DO SEMESTRE'!I20 -> 5 | J20: ='1ER SEMESTRE'!I20+'2DO SEMESTRE'!J20 -> 3 | K20: ='1ER SEMESTRE'!J20+'2DO SEMESTRE'!K20 -> 9 | L20: ='1ER SEMESTRE'!K20+'2DO SEMESTRE'!L20 -> 3 | M20: ='1ER SEMESTRE'!L20+'2DO SEMESTRE'!M20 -> 36 | N20: ='1ER SEMESTRE'!M20+'2DO SEMESTRE'!N20 -> 2 | O20: ='1ER SEMESTRE'!N20+'2DO SEMESTRE'!O20 -> 0 | P20: ='1ER SEMESTRE'!O20+'2DO SEMESTRE'!P20 -> 0 | Q20: ='1ER SEMESTRE'!P20+'2DO SEMESTRE'!Q20 -> 9 | R20: ='1ER SEMESTRE'!Q20+'2DO SEMESTRE'!R20 -> 3 | S20: ='1ER SEMESTRE'!R20+'2DO SEMESTRE'!S20 -> 5 | T20: ='1ER SEMESTRE'!S20+'2DO SEMESTRE'!T20 -> 1 | U20: ='1ER SEMESTRE'!T20+'2DO SEMESTRE'!U20 -> 6 | V20: ='1ER SEMESTRE'!U20+'2DO SEMESTRE'!V20 -> 1 | W20: ='1ER SEMESTRE'!V20+'2DO SEMESTRE'!W20 -> 3 | X20: ='1ER SEMESTRE'!W20+'2DO SEMESTRE'!X20 -> 2 | Y20: 152 | Z20: 24
D21: TOTAL | E21: =E7+E8+E9+E10+E11+E12+E13+E14+E15+E16+E17+E18+E19+E20 -> 898 | F21: =F7+F8+F9+F10+F11+F12+F13+F14+F15+F16+F17+F18+F19+F20 -> 318 | G21: 2167 | H21: 856 | I21: 332 | J21: 145 | K21: 266 | L21: 111 | M21: 269 | N21: 109 | O21: 22 | P21: 5 | Q21: 277 | R21: 152 | S21: 420 | T21: 230 | U21: 157 | V21: 51 | W21: 187 | X21: 90 | Y21: =SUM(Y7:Y20) -> 4995 | Z21: =SUM(Z7:Z20) -> 2067
D22: PORCENTAJE DE ACLARADOS | E22: =+(F21/E21) -> 0.3541202673 | G22: =+(H21/G21) -> 0.3950161514 | I22: =+(J21/I21) -> 0.436746988 | K22: =+(L21/K21) -> 0.4172932331 | M22: =+(N21/M21) -> 0.405204461 | O22: =+(P21/O21) -> 0.2272727273 | Q22: =+(R21/Q21) -> 0.5487364621 | S22: =+(T21/S21) -> 0.5476190476 | U22: =+(V21/U21) -> 0.3248407643 | W22: =+(X21/W21) -> 0.4812834225 | Y22: =+(Z21/Y21) -> 0.4138138138
D24: HECHOS PUNIBLES | E24: TRANSPORTE | G24: DIRECCIONES POLICIALES | W24: TOTAL
G25: Alto Paraná | I25: Itapua | K25: Canindeyú | M25: Misiones | O25: Paraguari | Q25: Ñeembucu | S25: Boqueron | U25: Pte Hayes
E26: D | F26: A | G26: D | H26: A | I26: D | J26: A | K26: D | L26: A | M26: D | N26: A | O26: D | P26: A | Q26: D | R26: A | S26: D | T26: A | U26: D | V26: A | W26: D | X26: A
D27: ABIGEATO | E27: =(Y7) -> 199 | F27: 35 | G27: ='1ER SEMESTRE'!F27+'2DO SEMESTRE'!G27 -> 12 | H27: ='1ER SEMESTRE'!G27+'2DO SEMESTRE'!H27 -> 3 | I27: ='1ER SEMESTRE'!H27+'2DO SEMESTRE'!I27 -> 31 | J27: ='1ER SEMESTRE'!I27+'2DO SEMESTRE'!J27 -> 5 | K27: ='1ER SEMESTRE'!J27+'2DO SEMESTRE'!K27 -> 1 | L27: ='1ER SEMESTRE'!K27+'2DO SEMESTRE'!L27 -> 0 | M27: ='1ER SEMESTRE'!L27+'2DO SEMESTRE'!M27 -> 6 | N27: ='1ER SEMESTRE'!M27+'2DO SEMESTRE'!N27 -> 1 | O27: ='1ER SEMESTRE'!N27+'2DO SEMESTRE'!O27 -> 61 | P27: ='1ER SEMESTRE'!O27+'2DO SEMESTRE'!P27 -> 26 | Q27: ='1ER SEMESTRE'!P27+'2DO SEMESTRE'!Q27 -> 35 | R27: ='1ER SEMESTRE'!Q27+'2DO SEMESTRE'!R27 -> 10 | S27: ='1ER SEMESTRE'!R27+'2DO SEMESTRE'!S27 -> 0 | T27: ='1ER SEMESTRE'!S27+'2DO SEMESTRE'!T27 -> 0 | U27: ='1ER SEMESTRE'!T27+'2DO SEMESTRE'!U27 -> 3 | V27: ='1ER SEMESTRE'!U27+'2DO SEMESTRE'!V27 -> 2 | W27: =(E27+G27+I27+K27+M27+O27+Q27+S27+U27) -> 348 | X27: =(F27+H27+J27+L27+N27+P27+R27+T27+V27) -> 82 | AD27: =(X27/W27) -> 0.2356321839
D28: COACCION SEXUAL | E28: 178 | F28: 114 | G28: ='1ER SEMESTRE'!F28+'2DO SEMESTRE'!G28 -> 45 | H28: ='1ER SEMESTRE'!G28+'2DO SEMESTRE'!H28 -> 24 | I28: ='1ER SEMESTRE'!H28+'2DO SEMESTRE'!I28 -> 26 | J28: ='1ER SEMESTRE'!I28+'2DO SEMESTRE'!J28 -> 10 | K28: ='1ER SEMESTRE'!J28+'2DO SEMESTRE'!K28 -> 5 | L28: ='1ER SEMESTRE'!K28+'2DO SEMESTRE'!L28 -> 3 | M28: ='1ER SEMESTRE'!L28+'2DO SEMESTRE'!M28 -> 2 | N28: ='1ER SEMESTRE'!M28+'2DO SEMESTRE'!N28 -> 1 | O28: ='1ER SEMESTRE'!N28+'2DO SEMESTRE'!O28 -> 11 | P28: ='1ER SEMESTRE'!O28+'2DO SEMESTRE'!P28 -> 2 | Q28: ='1ER SEMESTRE'!P28+'2DO SEMESTRE'!Q28 -> 7 | R28: ='1ER SEMESTRE'!Q28+'2DO SEMESTRE'!R28 -> 4 | S28: ='1ER SEMESTRE'!R28+'2DO SEMESTRE'!S28 -> 3 | T28: ='1ER SEMESTRE'!S28+'2DO SEMESTRE'!T28 -> 3 | U28: ='1ER SEMESTRE'!T28+'2DO SEMESTRE'!U28 -> 3 | V28: ='1ER SEMESTRE'!U28+'2DO SEMESTRE'!V28 -> 2 | W28: 280 | X28: =(F28+H28+J28+L28+N28+P28+R28+T28+V28) -> 163 | AD28: =(X28/W28) -> 0.5821428571
D29: HOMICIDIO CULPOSO EN ACC DE TTO. | E29: 234 | F29: 212 | G29: ='1ER SEMESTRE'!F29+'2DO SEMESTRE'!G29 -> 28 | H29: ='1ER SEMESTRE'!G29+'2DO SEMESTRE'!H29 -> 23 | I29: ='1ER SEMESTRE'!H29+'2DO SEMESTRE'!I29 -> 20 | J29: ='1ER SEMESTRE'!I29+'2DO SEMESTRE'!J29 -> 20 | K29: ='1ER SEMESTRE'!J29+'2DO SEMESTRE'!K29 -> 8 | L29: ='1ER SEMESTRE'!K29+'2DO SEMESTRE'!L29 -> 7 | M29: ='1ER SEMESTRE'!L29+'2DO SEMESTRE'!M29 -> 10 | N29: ='1ER SEMESTRE'!M29+'2DO SEMESTRE'!N29 -> 8 | O29: ='1ER SEMESTRE'!N29+'2DO SEMESTRE'!O29 -> 19 | P29: ='1ER SEMESTRE'!O29+'2DO SEMESTRE'!P29 -> 18 | Q29: ='1ER SEMESTRE'!P29+'2DO SEMESTRE'!Q29 -> 2 | R29: ='1ER SEMESTRE'!Q29+'2DO SEMESTRE'!R29 -> 2 | S29: ='1ER SEMESTRE'!R29+'2DO SEMESTRE'!S29 -> 4 | T29: ='1ER SEMESTRE'!S29+'2DO SEMESTRE'!T29 -> 3 | U29: ='1ER SEMESTRE'!T29+'2DO SEMESTRE'!U29 -> 9 | V29: ='1ER SEMESTRE'!U29+'2DO SEMESTRE'!V29 -> 9 | W29: 334 | X29: 302 | AD29: 0.9041916168
D30: HOMICIDIO DOLOSO | E30: 140 | F30: 50 | G30: ='1ER SEMESTRE'!F30+'2DO SEMESTRE'!G30 -> 31 | H30: ='1ER SEMESTRE'!G30+'2DO SEMESTRE'!H30 -> 11 | I30: ='1ER SEMESTRE'!H30+'2DO SEMESTRE'!I30 -> 14 | J30: ='1ER SEMESTRE'!I30+'2DO SEMESTRE'!J30 -> 8 | K30: ='1ER SEMESTRE'!J30+'2DO SEMESTRE'!K30 -> 5 | L30: ='1ER SEMESTRE'!K30+'2DO SEMESTRE'!L30 -> 1 | M30: ='1ER SEMESTRE'!L30+'2DO SEMESTRE'!M30 -> 2 | N30: ='1ER SEMESTRE'!M30+'2DO SEMESTRE'!N30 -> 0 | O30: ='1ER SEMESTRE'!N30+'2DO SEMESTRE'!O30 -> 1 | P30: ='1ER SEMESTRE'!O30+'2DO SEMESTRE'!P30 -> 1 | Q30: ='1ER SEMESTRE'!P30+'2DO SEMESTRE'!Q30 -> 1 | R30: ='1ER SEMESTRE'!Q30+'2DO SEMESTRE'!R30 -> 0 | S30: ='1ER SEMESTRE'!R30+'2DO SEMESTRE'!S30 -> 0 | T30: ='1ER SEMESTRE'!S30+'2DO SEMESTRE'!T30 -> 0 | U30: ='1ER SEMESTRE'!T30+'2DO SEMESTRE'!U30 -> 4 | V30: ='1ER SEMESTRE'!U30+'2DO SEMESTRE'!V30 -> 4 | W30: =(E30+G30+I30+K30+M30+O30+Q30+S30+U30) -> 198 | X30: 75 | AD30: 0.3787878788
D31: HURTO | E31: 487 | F31: 252 | G31: ='1ER SEMESTRE'!F31+'2DO SEMESTRE'!G31 -> 77 | H31: ='1ER SEMESTRE'!G31+'2DO SEMESTRE'!H31 -> 37 | I31: ='1ER SEMESTRE'!H31+'2DO SEMESTRE'!I31 -> 76 | J31: ='1ER SEMESTRE'!I31+'2DO SEMESTRE'!J31 -> 32 | K31: ='1ER SEMESTRE'!J31+'2DO SEMESTRE'!K31 -> 8 | L31: ='1ER SEMESTRE'!K31+'2DO SEMESTRE'!L31 -> 4 | M31: ='1ER SEMESTRE'!L31+'2DO SEMESTRE'!M31 -> 9 | N31: ='1ER SEMESTRE'!M31+'2DO SEMESTRE'!N31 -> 4 | O31: ='1ER SEMESTRE'!N31+'2DO SEMESTRE'!O31 -> 18 | P31: ='1ER SEMESTRE'!O31+'2DO SEMESTRE'!P31 -> 6 | Q31: ='1ER SEMESTRE'!P31+'2DO SEMESTRE'!Q31 -> 17 | R31: ='1ER SEMESTRE'!Q31+'2DO SEMESTRE'!R31 -> 3 | S31: ='1ER SEMESTRE'!R31+'2DO SEMESTRE'!S31 -> 2 | T31: ='1ER SEMESTRE'!S31+'2DO SEMESTRE'!T31 -> 1 | U31: ='1ER SEMESTRE'!T31+'2DO SEMESTRE'!U31 -> 11 | V31: ='1ER SEMESTRE'!U31+'2DO SEMESTRE'!V31 -> 5 | W31: =(E31+G31+I31+K31+M31+O31+Q31+S31+U31) -> 705 | X31: =(F31+H31+J31+L31+N31+P31+R31+T31+V31) -> 344 | AD31: 0.4879432624
D32: HURTO AGRAVADO | E32: 414 | F32: 135 | G32: ='1ER SEMESTRE'!F32+'2DO SEMESTRE'!G32 -> 53 | H32: ='1ER SEMESTRE'!G32+'2DO SEMESTRE'!H32 -> 15 | I32: ='1ER SEMESTRE'!H32+'2DO SEMESTRE'!I32 -> 33 | J32: ='1ER SEMESTRE'!I32+'2DO SEMESTRE'!J32 -> 10 | K32: ='1ER SEMESTRE'!J32+'2DO SEMESTRE'!K32 -> 6 | L32: ='1ER SEMESTRE'!K32+'2DO SEMESTRE'!L32 -> 2 | M32: ='1ER SEMESTRE'!L32+'2DO SEMESTRE'!M32 -> 10 | N32: ='1ER SEMESTRE'!M32+'2DO SEMESTRE'!N32 -> 8 | O32: ='1ER SEMESTRE'!N32+'2DO SEMESTRE'!O32 -> 29 | P32: ='1ER SEMESTRE'!O32+'2DO SEMESTRE'!P32 -> 3 | Q32: ='1ER SEMESTRE'!P32+'2DO SEMESTRE'!Q32 -> 9 | R32: ='1ER SEMESTRE'!Q32+'2DO SEMESTRE'!R32 -> 1 | S32: ='1ER SEMESTRE'!R32+'2DO SEMESTRE'!S32 -> 3 | T32: ='1ER SEMESTRE'!S32+'2DO SEMESTRE'!T32 -> 2 | U32: ='1ER SEMESTRE'!T32+'2DO SEMESTRE'!U32 -> 2 | V32: ='1ER SEMESTRE'!U32+'2DO SEMESTRE'!V32 -> 0 | W32: =(E32+G32+I32+K32+M32+O32+Q32+S32+U32) -> 559 | X32: =(F32+H32+J32+L32+N32+P32+R32+T32+V32) -> 176 | AD32: 0.3148479428
D33: LESION CULPOSA EN ACC. DE TTO. | E33: 808 | F33: 750 | G33: ='1ER SEMESTRE'!F33+'2DO SEMESTRE'!G33 -> 112 | H33: ='1ER SEMESTRE'!G33+'2DO SEMESTRE'!H33 -> 101 | I33: ='1ER SEMESTRE'!H33+'2DO SEMESTRE'!I33 -> 78 | J33: ='1ER SEMESTRE'!I33+'2DO SEMESTRE'!J33 -> 71 | K33: ='1ER SEMESTRE'!J33+'2DO SEMESTRE'!K33 -> 8 | L33: ='1ER SEMESTRE'!K33+'2DO SEMESTRE'!L33 -> 8 | M33: ='1ER SEMESTRE'!L33+'2DO SEMESTRE'!M33 -> 29 | N33: ='1ER SEMESTRE'!M33+'2DO SEMESTRE'!N33 -> 29 | O33: ='1ER SEMESTRE'!N33+'2DO SEMESTRE'!O33 -> 98 | P33: ='1ER SEMESTRE'!O33+'2DO SEMESTRE'!P33 -> 93 | Q33: ='1ER SEMESTRE'!P33+'2DO SEMESTRE'!Q33 -> 35 | R33: ='1ER SEMESTRE'!Q33+'2DO SEMESTRE'!R33 -> 34 | S33: ='1ER SEMESTRE'!R33+'2DO SEMESTRE'!S33 -> 6 | T33: ='1ER SEMESTRE'!S33+'2DO SEMESTRE'!T33 -> 6 | U33: ='1ER SEMESTRE'!T33+'2DO SEMESTRE'!U33 -> 13 | V33: ='1ER SEMESTRE'!U33+'2DO SEMESTRE'!V33 -> 13 | W33: 1187 | X33: 1105 | AD33: 0.9309182814
D34: LESION | E34: 526 | F34: 253 | G34: ='1ER SEMESTRE'!F34+'2DO SEMESTRE'!G34 -> 70 | H34: ='1ER SEMESTRE'!G34+'2DO SEMESTRE'!H34 -> 25 | I34: ='1ER SEMESTRE'!H34+'2DO SEMESTRE'!I34 -> 42 | J34: ='1ER SEMESTRE'!I34+'2DO SEMESTRE'!J34 -> 21 | K34: ='1ER SEMESTRE'!J34+'2DO SEMESTRE'!K34 -> 13 | L34: ='1ER SEMESTRE'!K34+'2DO SEMESTRE'!L34 -> 3 | M34: ='1ER SEMESTRE'!L34+'2DO SEMESTRE'!M34 -> 9 | N34: ='1ER SEMESTRE'!M34+'2DO SEMESTRE'!N34 -> 5 | O34: ='1ER SEMESTRE'!N34+'2DO SEMESTRE'!O34 -> 18 | P34: ='1ER SEMESTRE'!O34+'2DO SEMESTRE'!P34 -> 6 | Q34: ='1ER SEMESTRE'!P34+'2DO SEMESTRE'!Q34 -> 9 | R34: ='1ER SEMESTRE'!Q34+'2DO SEMESTRE'!R34 -> 5 | S34: ='1ER SEMESTRE'!R34+'2DO SEMESTRE'!S34 -> 11 | T34: ='1ER SEMESTRE'!S34+'2DO SEMESTRE'!T34 -> 7 | U34: ='1ER SEMESTRE'!T34+'2DO SEMESTRE'!U34 -> 11 | V34: ='1ER SEMESTRE'!U34+'2DO SEMESTRE'!V34 -> 9 | W34: 709 | X34: 334 | AD34: 0.4710860367
D35: ROBO DE OBJETOS | E35: 167 | F35: 89 | G35: ='1ER SEMESTRE'!F35+'2DO SEMESTRE'!G35 -> 36 | H35: ='1ER SEMESTRE'!G35+'2DO SEMESTRE'!H35 -> 6 | I35: ='1ER SEMESTRE'!H35+'2DO SEMESTRE'!I35 -> 10 | J35: ='1ER SEMESTRE'!I35+'2DO SEMESTRE'!J35 -> 3 | K35: ='1ER SEMESTRE'!J35+'2DO SEMESTRE'!K35 -> 1 | L35: ='1ER SEMESTRE'!K35+'2DO SEMESTRE'!L35 -> 0 | M35: ='1ER SEMESTRE'!L35+'2DO SEMESTRE'!M35 -> 1 | N35: ='1ER SEMESTRE'!M35+'2DO SEMESTRE'!N35 -> 1 | O35: ='1ER SEMESTRE'!N35+'2DO SEMESTRE'!O35 -> 5 | P35: ='1ER SEMESTRE'!O35+'2DO SEMESTRE'!P35 -> 3 | Q35: ='1ER SEMESTRE'!P35+'2DO SEMESTRE'!Q35 -> 1 | R35: ='1ER SEMESTRE'!Q35+'2DO SEMESTRE'!R35 -> 0 | S35: ='1ER SEMESTRE'!R35+'2DO SEMESTRE'!S35 -> 0 | T35: ='1ER SEMESTRE'!S35+'2DO SEMESTRE'!T35 -> 0 | U35: ='1ER SEMESTRE'!T35+'2DO SEMESTRE'!U35 -> 2 | V35: ='1ER SEMESTRE'!U35+'2DO SEMESTRE'!V35 -> 1 | W35: 223 | X35: 103 | AD35: 0.4618834081
D36: ROBO AGRAVADO DE OBJETOS | E36: 467 | F36: 77 | G36: ='1ER SEMESTRE'!F36+'2DO SEMESTRE'!G36 -> 99 | H36: ='1ER SEMESTRE'!G36+'2DO SEMESTRE'!H36 -> 16 | I36: ='1ER SEMESTRE'!H36+'2DO SEMESTRE'!I36 -> 37 | J36: ='1ER SEMESTRE'!I36+'2DO SEMESTRE'!J36 -> 8 | K36: ='1ER SEMESTRE'!J36+'2DO SEMESTRE'!K36 -> 15 | L36: ='1ER SEMESTRE'!K36+'2DO SEMESTRE'!L36 -> 1 | M36: ='1ER SEMESTRE'!L36+'2DO SEMESTRE'!M36 -> 0 | N36: ='1ER SEMESTRE'!M36+'2DO SEMESTRE'!N36 -> 0 | O36: ='1ER SEMESTRE'!N36+'2DO SEMESTRE'!O36 -> 13 | P36: ='1ER SEMESTRE'!O36+'2DO SEMESTRE'!P36 -> 3 | Q36: ='1ER SEMESTRE'!P36+'2DO SEMESTRE'!Q36 -> 0 | R36: ='1ER SEMESTRE'!Q36+'2DO SEMESTRE'!R36 -> 0 | S36: ='1ER SEMESTRE'!R36+'2DO SEMESTRE'!S36 -> 1 | T36: ='1ER SEMESTRE'!S36+'2DO SEMESTRE'!T36 -> 1 | U36: ='1ER SEMESTRE'!T36+'2DO SEMESTRE'!U36 -> 7 | V36: ='1ER SEMESTRE'!U36+'2DO SEMESTRE'!V36 -> 4 | W36: 639 | X36: 110 | AD36: 0.172143975
D37: ROBO DE VEHICULOS | E37: 256 | F37: 5 | G37: ='1ER SEMESTRE'!F37+'2DO SEMESTRE'!G37 -> 10 | H37: ='1ER SEMESTRE'!G37+'2DO SEMESTRE'!H37 -> 1 | I37: ='1ER SEMESTRE'!H37+'2DO SEMESTRE'!I37 -> 6 | J37: ='1ER SEMESTRE'!I37+'2DO SEMESTRE'!J37 -> 3 | K37: ='1ER SEMESTRE'!J37+'2DO SEMESTRE'!K37 -> 1 | L37: ='1ER SEMESTRE'!K37+'2DO SEMESTRE'!L37 -> 0 | M37: ='1ER SEMESTRE'!L37+'2DO SEMESTRE'!M37 -> 0 | N37: ='1ER SEMESTRE'!M37+'2DO SEMESTRE'!N37 -> 0 | O37: ='1ER SEMESTRE'!N37+'2DO SEMESTRE'!O37 -> 3 | P37: ='1ER SEMESTRE'!O37+'2DO SEMESTRE'!P37 -> 0 | Q37: ='1ER SEMESTRE'!P37+'2DO SEMESTRE'!Q37 -> 0 | R37: ='1ER SEMESTRE'!Q37+'2DO SEMESTRE'!R37 -> 0 | S37: ='1ER SEMESTRE'!R37+'2DO SEMESTRE'!S37 -> 1 | T37: ='1ER SEMESTRE'!S37+'2DO SEMESTRE'!T37 -> 0 | U37: ='1ER SEMESTRE'!T37+'2DO SEMESTRE'!U37 -> 1 | V37: ='1ER SEMESTRE'!U37+'2DO SEMESTRE'!V37 -> 0 | W37: 278 | X37: 9 | AD37: 0.03237410072
D38: ROBO AGRAVADO DE VEHICULOS | E38: 23 | F38: 1 | G38: ='1ER SEMESTRE'!F38+'2DO SEMESTRE'!G38 -> 12 | H38: ='1ER SEMESTRE'!G38+'2DO SEMESTRE'!H38 -> 3 | I38: ='1ER SEMESTRE'!H38+'2DO SEMESTRE'!I38 -> 3 | J38: ='1ER SEMESTRE'!I38+'2DO SEMESTRE'!J38 -> 1 | K38: ='1ER SEMESTRE'!J38+'2DO SEMESTRE'!K38 -> 2 | L38: ='1ER SEMESTRE'!K38+'2DO SEMESTRE'!L38 -> 1 | M38: ='1ER SEMESTRE'!L38+'2DO SEMESTRE'!M38 -> 0 | N38: ='1ER SEMESTRE'!M38+'2DO SEMESTRE'!N38 -> 0 | O38: ='1ER SEMESTRE'!N38+'2DO SEMESTRE'!O38 -> 2 | P38: ='1ER SEMESTRE'!O38+'2DO SEMESTRE'!P38 -> 1 | Q38: ='1ER SEMESTRE'!P38+'2DO SEMESTRE'!Q38 -> 0 | R38: ='1ER SEMESTRE'!Q38+'2DO SEMESTRE'!R38 -> 0 | S38: ='1ER SEMESTRE'!R38+'2DO SEMESTRE'!S38 -> 0 | T38: ='1ER SEMESTRE'!S38+'2DO SEMESTRE'!T38 -> 0 | U38: ='1ER SEMESTRE'!T38+'2DO SEMESTRE'!U38 -> 0 | V38: ='1ER SEMESTRE'!U38+'2DO SEMESTRE'!V38 -> 0 | W38: 42 | X38: 7 | AD38: 0.1666666667
D39: ROBO DE MOTOCICLETAS | E39: 944 | F39: 70 | G39: ='1ER SEMESTRE'!F39+'2DO SEMESTRE'!G39 -> 46 | H39: ='1ER SEMESTRE'!G39+'2DO SEMESTRE'!H39 -> 8 | I39: ='1ER SEMESTRE'!H39+'2DO SEMESTRE'!I39 -> 62 | J39: ='1ER SEMESTRE'!I39+'2DO SEMESTRE'!J39 -> 1 | K39: ='1ER SEMESTRE'!J39+'2DO SEMESTRE'!K39 -> 4 | L39: ='1ER SEMESTRE'!K39+'2DO SEMESTRE'!L39 -> 0 | M39: ='1ER SEMESTRE'!L39+'2DO SEMESTRE'!M39 -> 2 | N39: ='1ER SEMESTRE'!M39+'2DO SEMESTRE'!N39 -> 0 | O39: ='1ER SEMESTRE'!N39+'2DO SEMESTRE'!O39 -> 27 | P39: ='1ER SEMESTRE'!O39+'2DO SEMESTRE'!P39 -> 5 | Q39: ='1ER SEMESTRE'!P39+'2DO SEMESTRE'!Q39 -> 13 | R39: ='1ER SEMESTRE'!Q39+'2DO SEMESTRE'!R39 -> 3 | S39: ='1ER SEMESTRE'!R39+'2DO SEMESTRE'!S39 -> 3 | T39: ='1ER SEMESTRE'!S39+'2DO SEMESTRE'!T39 -> 1 | U39: ='1ER SEMESTRE'!T39+'2DO SEMESTRE'!U39 -> 22 | V39: ='1ER SEMESTRE'!U39+'2DO SEMESTRE'!V39 -> 7 | W39: 1123 | X39: 95 | AD39: 0.08459483526
D40: ROBO AGRAVADO DE MOTOCICLETAS | E40: =(Y20) -> 152 | F40: =(Z20) -> 24 | G40: ='1ER SEMESTRE'!F40+'2DO SEMESTRE'!G40 -> 15 | H40: ='1ER SEMESTRE'!G40+'2DO SEMESTRE'!H40 -> 2 | I40: ='1ER SEMESTRE'!H40+'2DO SEMESTRE'!I40 -> 7 | J40: ='1ER SEMESTRE'!I40+'2DO SEMESTRE'!J40 -> 3 | K40: ='1ER SEMESTRE'!J40+'2DO SEMESTRE'!K40 -> 2 | L40: ='1ER SEMESTRE'!K40+'2DO SEMESTRE'!L40 -> 0 | M40: ='1ER SEMESTRE'!L40+'2DO SEMESTRE'!M40 -> 0 | N40: ='1ER SEMESTRE'!M40+'2DO SEMESTRE'!N40 -> 0 | O40: ='1ER SEMESTRE'!N40+'2DO SEMESTRE'!O40 -> 3 | P40: ='1ER SEMESTRE'!O40+'2DO SEMESTRE'!P40 -> 1 | Q40: ='1ER SEMESTRE'!P40+'2DO SEMESTRE'!Q40 -> 0 | R40: ='1ER SEMESTRE'!Q40+'2DO SEMESTRE'!R40 -> 0 | S40: ='1ER SEMESTRE'!R40+'2DO SEMESTRE'!S40 -> 0 | T40: ='1ER SEMESTRE'!S40+'2DO SEMESTRE'!T40 -> 0 | U40: ='1ER SEMESTRE'!T40+'2DO SEMESTRE'!U40 -> 1 | V40: ='1ER SEMESTRE'!U40+'2DO SEMESTRE'!V40 -> 0 | W40: 180 | X40: 30 | AD40: 0.1666666667
D41: TOTAL | E41: =+(E21+G21+I21+K21+M21+O21+Q21+S21+U21+W21) -> 4995 | F41: =+(F21+H21+J21+L21+N21+P21+R21+T21+V21+X21) -> 2067 | G41: =SUM(G27:G40) -> 646 | H41: =SUM(H27:H40) -> 275 | I41: 445 | J41: 196 | K41: 79 | L41: 30 | M41: 80 | N41: 57 | O41: 308 | P41: 168 | Q41: 129 | R41: 62 | S41: 34 | T41: 24 | U41: 89 | V41: 56 | W41: =SUM(W27:W40) -> 6805 | X41: =SUM(X27:X40) -> 2935
D42: PORCENTAJE DE ACLARADOS | E42: =+(F41/E41) -> 0.4138138138 | G42: =+(H41/G41) -> 0.4256965944 | I42: =+(J41/I41) -> 0.4404494382 | K42: =+(L41/K41) -> 0.3797468354 | M42: =+(N41/M41) -> 0.7125 | O42: =+(P41/O41) -> 0.5454545455 | Q42: =+(R41/Q41) -> 0.480620155 | S42: =+(T41/S41) -> 0.7058823529 | U42: =+(V41/U41) -> 0.6292134831 | W42: =+(X41/W41) -> 0.4313005143
D44: FUENTE: ELABORADO EN EL DPTO. DE ESTADISTICA EN BASE A DATOS PROPORCIONADOS POR LA DIRECCION GENERAL. DE PREVENCION Y SEGURIDAD.

Sheet GRAF 14
B1: INFORME ESTADISTICO MENSUAL 3 | Q1: POLICIA NACIONAL - DPTO. DE ESTADISTICA
D5: HECHOS PUNIBLES MAS RESALTANTES, DENUNCIADOS EN TODO EL PAÍS. ANUAL 2020
T7: DENUNCIADOS
S8: ABIGEATO
S9: COACCION SEXUAL
S10: HOMICIDIO CULPOSO EN ACC DE TTO.
S11: HOMICIDIO DOLOSO
S12: HURTO
S13: HURTO AGRAVADO
S14: LESION CULPOSA EN ACC. DE TTO.
S15: LESION
S16: ROBO DE OBJETOS
S17: ROBO AGRAVADO DE OBJETOS
S18: ROBO DE VEHICULOS
S19: ROBO AGRAVADO DE VEHICULOS
S20: ROBO DE MOTOCICLETAS
S21: ROBO AGRAVADO DE MOTOCICLETAS
T22: =SUM(T8:T21) -> 0
D41: FUENTE: ELABORADO EN EL DPTO. DE ESTADISTICA EN BASE A DATOS PROPORCIONADOS POR LA DIRECCION GENERAL PREVENCION Y SEGURIDAD.
